Workbook

Sheet Guidance
B1: Budget forecast return (BFR) 2024
B4: This document is designed to help you prepare for the online BFR return. To actually submit your return you'll need to use the online form published on the GOV.UK website.
B6: Use the workbook to process and validate information before completing the online form.
B7: Most numbers (especially income and expenditure) are positive figures. A few numbers are negative, but this will be clear when inputting the figures either on the workbook or the online form.
B8: Enter all figures in the online form in thousands, except for line 999 for pupil numbers and line 3900 and 3950 around % for pay awards.
B10: As with the online form, enter all monetary balances in round £000s, not pounds and pence. For example, for £10,471.23 enter 10, but for £10,891.25 enter 11. Enter a six-figure amount like £453,678 as 454.
B13: The main features in the 2024 version of the spreadsheet are:
B14: • New lines to collect data on how much trusts spend in key areas of technology (ICT).
B15: • A new line to understand how much trusts spend on buildings repairs/maintenance and/or improvements that is not capitalised and that is funded through capital grants and inlcuded in the revenue section of the return.
B16: • Updated the question about reserves to better understand trust's plans for reserves.
B17: • Updated the three-year forecast section to ask for specific assumptions around pay awards or teaching and support staff.
B18: • Removal of Line 299, included guidance on RAAC income/expenditure and updated a number of help texts following user feedback. We have also created a BFR lines quick reference guide.
B19: • When BFR 2024 goes live, it'll be on a new authentification system called DfE Sign In (DSI) and IDAMS will no longer be operational.
B21: The summary declaration page shows you a summary of the revenue, capital and reserve totals from your return, these will be presented in the rounded thousands as well as in pounds. This is to make sure any roundings in your return are accurate.
B23: Once all validations are cleared in the workbook, completing the online form shouldn't result in any more validations being triggered. Note that you can copy and paste comments entered in the workbook into the online form.
B25: Protected sheets
B26: The worksheets are protected with the password 'BFR'. You can remove the protection to inspect how the workbook is structured.
B27: If you remove the password protection, there's a risk that formulas and validations could be accidentally overwritten. For that reason it's safer to do this on a separate, saved version.
B29: Queries
B30: Please use the below link to raise a query using the customer help portal
B31: If you have a query about completing your BFR return please contact the ESFA using the Customer Help Portal.
B33: Academies Chart of Accounts 2022-23 and 2023-24
B34: You can view how the CoA has been mapped to the BFR, by going to the 2022-23 CoA to BFR mapping tab within this document.
B35: If you are using the CoA or have automated this year, you can view the latest CoA to BFR mapping updates in gov.uk here:
B36: Academies chart of accounts and automating the accounts return - GOV.UK (www.gov.uk)
B38: Layout of the workbook
B39: The key features are:
B40: • an organisation page, a summary declaration, a preparer declaration page and an approver declaration page
B41: • the main BFR spreadsheet
B42: • the validations table where your trust provides answers to validation queries, reviews its responses and reviews the number of outstanding validations
B45: 3 year forecast section
B47: Reason for the 3 year forecast
B48: We want to better understand trusts' forecasts, so we can more effectively support a financially healthy sector. The return provides us with assurance that trusts are undertaking strategic budget planning, in line with best practice and helps the ESFA better understand which trusts may benefit from further support.
B50: All trusts must complete the three year forecast section, providing commentary on your underlying assumptions.
B52: The revenue lines in the table are as follows: 1) DfE income 2) Other income 3) Surplus transfer 4) Staff costs 5) Non staff-costs
B53: There's also a section to record transfers between revenue and capital
B55: The capital income and spend section should include actual income and actual spend only and ignore all the other non-cash capital lines, for example donated assets, converted assets and AUC transferred from ESFA.
B57: The final section of the form includes items such as cash, depreciation and any other non-cash items. Reserves are a single line for the trust, so line-by-line by academy isn't required.
B59: We understand that the sector would like more detailed guidance on how to prepare for the 3 year forecast and what assumptions to make. However, it's important to avoid being too prescriptive as there may be a wide variety of local factors as well as changing national circumstances that could contradict any guidance. Your forecasts need to be realistic, pragmatic and taking into consideration any implications due to COVID. It is important that your trust's governing body have agreed the forecasts and the assumptions underpinning them, before submitting your return.
B62: Some general planning assumptions that may drive your forecast are as follows.
B63: Income
B64: • Forecast pupil numbers
B65: • Estimated National Funding Formula funding per pupil with a baseline including minimum funding guarantees
B66: • Changes in pupil premium funding and mix of pupils with special needs
B67: • Mix of weighting factors including area cost adjustment
B68: • Other income assumptions such as commercial income and investment income
B70: Expenditure
B71: • Pay awards for all staff (national rates or locally determined rates)
B72: • Staff turnover estimates and future staff grade ratios
B73: • TPS contribution rates (indications of national rates)
B74: • LGPS contribution rates (varies according to region)
B75: • Non-staff cost inflation – could be a flat rate or a variable one, subject to different rates depending on specific costs.
B76: For any forecast deficits, we'll need a brief description of any mitigating actions that you're undertaking. If these actions are already approved then the forecast should reflect the impact of these plans
B78: Part 1. Introduction
B79: The Department for Education (DfE) is required to provide HM Treasury with updated financial information from the academy sector to support the Public Expenditure Statistical Analyses (PESA) national statistics release. Academy trusts will be required to provide this information through this BFR form and must submit it to the ESFA by 29th August 2024.
B80: We recommend academy trusts use this workbook to collect the information and transfer these details onto the online form.
B82: 1.1 Scope
B84: Organisations included within the exercise
B85: Throughout this document and the associated return, we use the terms “academy trusts” and “academy” to refer to:
B86: · sponsored academies
B87: · academy converters
B88: · free schools
B89: · university technical colleges
B90: · special schools
B91: · studio schools
B92: All academy trusts are required to complete the BFR 2024 and will need to complete the return on an accruals and prepayments basis.
B93: For new trusts (and trusts with academies having joined or left) include data for the period that the trust has been open, and include academies for the period that they have been part of that trust.
B95: 1.2 The online form
B97: Use the workbook to prepare for the BFR exercise. You can then transfer the figures from the workbook to the online form. The workbook isn't mandatory but trusts may find it helpful.
B99: 1.3 Using the Excel workbook
B100: All blue cells require you to enter text
B101: The FQs replicate what you're expected to answer when you start completing the online form. They're defaulted to 'No', so check that you've changed to 'Yes' if appropriate.
B102: You can enter comments and transfer relevant sections across to the online form. Please note the workbook is protected to avoid overwriting formulas.
B103: On the organisation tab you should fill in some details about your trust. Some of this will feed to the main BFR 2024 tab at the top of the sheet (such as trust name and Company House Number).
B104: You should also complete the finance questions (FQs) on the BFR 2024 tab. Most FQs require a Yes or No response. If you select 'Yes' then you'll be asked to respond to a question.
B106: As with the online form, enter all monetary balances in round £000s, not pounds and pence. For example, for £10,471.23 enter 10, but for £10,891.25 enter 11. Enter a six-figure amount like £453,678 as 454.
B108: The workbook will also flag a validation message if you:
B109: • enter decimal places, rounded £000 values only are allowed (column N).
B110: • enter values below the minimum and above maximum values expected (columns O and P). The thresholds are set so that most inputs should be within the range.
B111: • input a credit balance when only a debit value is allowed.
B112: • are required to provide an explanation. In this case you should provide an answer on the validations table.
B115: 1.4 The structure of the BFR workbook
B116: The workbook consists of the following main sections to be completed at trust level
B117: Pupil numbers - this has been moved to the front of the form to allow additional validations to be explored.
B118: 1. Revenue – covers most of the grants and income that the trust has received or generated that isn't for the purpose of capital programmes. In addition, it covers all expenditure by the trust excluding depreciation and Local Government Pension Scheme (LGPS) movements
B119: 2. Capital – for funding received under capital grant, or funding received for the express purposes of a capital programme. This section also shows the expenditure spent on land and buildings (L&B), intangibles and other fixed assets, with lines for disposals showing the cash receipts for each asset classification. The value of your land and buildings isn't required in this form
B120: 3. Other items – covers a number of items requiring additional disclosure such as cash, depreciation charges, provisions movements, investments, impairment charges loans and gain/loss on disposal of fixed assets
B121: 4. Reserves per academy – you'll need to complete this section by separately reporting reserves information for each academy included in the return. There's also a line where you can record centrally held reserves
B123: 1.5 Submission of a return by multi-academy trusts (MATs)
B124: MATs must submit a consolidated return aggregating the budgetary information of each of their academies. You'll need to add up the forecast values of each of the individual academies against each line of the workbook.
B126: 1.6 Deadline for submission of online BFR
B127: All academy trusts open as at 30 April 2024 must submit a completed online BFR to DfE by 29th August 2024. The collection is open for completion from early June 2024.
B128: The online form guidance provides further information about timelines and what's required when submitting the BFR.
B132: Part 2: Budget forecast return workbook
B134: 2.1 Introduction
B135: Use the Excel workbook to gather budgetary information and test the validation queries before you complete the online budget forecast form.
B136: You don't have to complete this workbook, but it's good practice to keep a record of forecast information and the workbook will help you to do this. It also means you can transfer your forecast figures to the online form once it's available on GOV.UK.
B138: 2.2 Sign convention
B139: Most numbers (especially income and expenditure) are positive figures. A few numbers are negative, but this will be clear when you input the figures either on the workbook or the online form.
B141: 2.3 Guidance for various sections
B142: 2.3.1 Revenue
B145: Validations
B146: The validations in this workbook mirror the online form, so you won't be able to submit the online form if there are any unresolved validations. Resolving them will either need a numerical change in the 'BFR 2024' tab or an explanation in the 'Trust validation table' tab.
B147: Once you've answered the finance questions along with any follow-up queries, the BFR spreadsheet is completed in exactly the same way as the previous year.
B148: There are validations to ensure only rounded whole numbers (£000) are input (i.e. no decimals with the exception of line 3900 and 3950) and that the values input are within the acceptable range. The thresholds are currently set quite high, so this is mainly used to prevent inputting credits or negative numbers or values in £s.
B149: When entering values, if additional action is needed, you'll see 'Check validations' in column E. If you trigger a validation error, scroll right to column S and you'll see which validation has been triggered. This may be because a number input is in decimals, is too high, too low or a query requires a response.
B150: To remove the 'Check validations' message, either amend the entry or provide an answer in the trust validations table tab.
B151: For example, if you've answered 'Yes' to having provisions in the finance questions, but you input nothing in the provisions section, the validation will require either changing your answer to 'No' or inputting relevant provision balances.
B152: If explanatory text is required a query will appear and 'Check validations' will only disappear after you've provided an explanation or corrected an error.
B153: When a validation query appears in the BFR worksheet and in the trust validations table, you should answer the query or amend the numbers to make the validation disappear.
B154: Within the 'Trust validations table', cells C5 and C6 should read zero before presenting the budget to the approver and to trustees.
B156: Pupil numbers
B157: Input the actual/estimated total number of students in your trust as at the October census date in the year of input (this shouldn't be rounded to the nearest thousand '000)
B159: DfE revenue income (lines 101 to 199)
B160: · line 101 Rates reclaim - As per section 3.66 of the Academies Accounts Direction. Include the grossed up rates reclaim and show the equal expenditure offset in line 378. You should enter the total amount for the year you are claiming.
B161: · line 102 General Academy Grant (GAG) (excluding Student Service Grant) - This is the gross GAG figure as shown on the trust's GAG funding statement and the post 16 allocation statement. Don't include any deductions for the RPA Scheme (insurance scheme), loan repayments or the Academy post 16-19 bursary funding.
B162: · line 103 Student Services Grant (Academy Post 16 Bursary Funding) - Only include the Academy post 16-19 bursary fund.
B163: · line 105 Start Up Grants - Include both elements of the post opening grant (start up grant and post opening grant) included in the GAG funding statement.
B164: · line 108 pupil premium & service premium – Don't include any looked after children pupil premium allocations. This is funding provided by local authorities and should be included within line 200.
B165: · line 132 Pupil Number Adjustment - Include any additional funding you have received due to PNA. This applies to academies who receive their funding based on pupil numbers. It is necessary so that academies funded in this way receive grant income which more accurately reflects the actual pupil numbers present during the year.
B166: · line 135 other DfE/ESFA grants – Include any non-GAG grants receivable not previously included in lines 101 to 138. This includes the ‘Catch up’ funding for tutoring and other Covid 19 related grants from the DfE/ESFA.
B167: · line 136 Universal Infant Free School Meals - Include any additional funding you receive from Universal Infant Free School Meals (UIFSM). This provides funding for all government funded schools to offer free school meals to pupils in reception, year 1 and year 2.
B168: · line 137 insurance - This should only contain any insurance top-up grant received from the ESFA. It shouldn't include the value of insurance claims.
B169: · line 138 Sponsor Capacity Grant - Include any additional funding from the Sponsor Capacity Grant, as per the Grant determination. This grant is from the DfE to facilitate an increase in the number of academies within a trust and encourage trusts to take on struggling schools. School can bid for between £50-£100k.
B170: · line 150 Other DfE/ESFA family revenue grants - This should only be used for grants from the DfE family, including National College of Teaching and Leadership, Standards Testing Agency, or Office of the Children's Commissioner.
B172: Other revenue income (lines 200 to 220)
B173: · line 200 local authority revenue income – Include all revenue income received or receivable from local authorities, but exclude revenue surplus transfers from predecessor local authority maintained schools on conversion.
B174: · line 205 other government grants – Include all revenue grants receivable from other government sources (exclude DfE, other bodies within the DfE family, ESFA and local authority) that are not included in the lines above. Line 205 should include, but is not limited to, grants receivable from any government funding intended to promote access and opportunity for minority ethnic pupils in support of English as an additional language or as part of a wider focus on raising attainment.
B175: · line 210 Non-government grants – include all revenue grants received from non-government sources
B176: · line 211 Income from trading activities – Include all revenue received from trading activities such as hall hire, catering, rental income, breakfast and after school clubs, parental contributions, staff secondments outside of the trust and insurance claims.
B177: · line 220 other income, including endowment revaluations and investment income – Include any other revenue income not covered by the above categories e.g. RAAC, donations, business sponsorship, investment income, gains or losses on endowments and any transfer of revenue reserves.
B179: Surplus transfers on conversion (lines 212 and 215)
B180: · line 212 revenue surplus transfer of an existing academy in/ (out) of the trust – Include all revenue surplus received, or receivable following the transfer of an existing academy, excluding pensions and fixed assets.
B181: · line 215 revenue surplus transfer to academy on conversion – include all revenue surplus received or receivable on conversion from local authorities, i.e. surpluses received from local authorities on conversion excluding pensions and fixed assets.
B183: Transfers between revenue from capital (line 255)
B184: Transfers between revenue and capital (line 585). Net transfer between revenue and capital. This should be the planned transfer from revenue reserves or income to the capital budget to spend on capital items. This should normally be a negative figure. However, occasionally a capital grant is spent as per the grant conditions, but the expense has been classified as revenue (for example, roof repairs). In this case you may need to make a transfer from capital to revenue, creating a positive transfer to revenue from capital (i.e. negative in contra line 585).
B186: Total revenue income (line 298)
B187: This is the sum of total DfE/ESFA revenue income (line 199), Other revenue, any revenue transfers in or out of the trust (line 212/215) and any revenue transfers between revenue and capital income (line 585). This line is used to calculate your trust’s total reserves. The reserve balance details page (if triggered) calculates a ratio between line 430 ‘c/f 31 Aug 2024’ and the 2023/24 total balance in line 298 (Line 430 divided by line 298).
B189: Revenue expenditure (lines 310 to 430)
B190: · line 310 wages and salaries – Include the full costs of employment for staff employed directly/indirectly by the trust including gross pay, bonuses, overtime, allowances, maternity and sick pay. Include any redundancy costs for staff costs in here also. Exclude third-party IT support and instead please include these in line 342 - ICT costs: IT support further below in the revenue expenditure section
B191: · line 311 social security costs – Include the employer’s national insurance and any costs of the apprenticeship levy.
B192: · line 320 pension cost: teaching staff – Include the superannuation contributions relating to teaching staff. For example, staff members in the teachers’ pension scheme including those on the leadership pay scale. It should include actual pension contributions.
B193: · line 325 pension cost: non-teaching staff – Include actual pension contributions and any payments to address the deficit on the Local Government Pension Scheme (LGPS) fund. Don't include any change in the value of the deficit calculated under FRS102.
B194: · line 336 ICT costs: connectivity – Include main and backup broadband lines, wireless networks, network switches, network cables, telephony, ISDN, ASDL, other dedicated phone lines and leasing costs associated with connectivity and telephony. Also include safety and security features such as cyber security and filtering and monitoring if bundled with connectivity services. Exclude connectivity expenditure where costs are capitalised such as installation costs or where phones are not leased. Mobile phones, including hardware and contracts. Instead, please include these in line 621 - ICT costs: connectivity, within the capital expenditure section.
B195: · line 337 ICT costs: onsite servers – Include purchased or leased physical onsite servers present in the school or trust where they are not capitalised, also onsite servers that support cloud-based storage across a trust. Exclude: cloud-based storage where the school or trust does not have a physical onsite server; instead include these in line 339 - ICT costs: administration software and systems. Exclude energy costs associated with onsite servers (please include these in line 378 – Non-staff costs), expenditure on onsite servers where costs are capitalised (please include these in line 622 – ICT Costs: onsite servers, within the capital expenditure section), and any repair and maintenance costs (please include line 342 - ICT costs: IT support).
B196: · line 338 ICT costs: IT learning resources – Include curriculum software to support teaching and learning such as apps and lesson planning tools, subscriptions and licenses associated with educational software and websites, digital learning platforms and e-books. Exclude resources that are used specifically for administration purposes such as management information systems, safeguarding systems and data storage. Instead, include these in line 339 - ICT costs: administration software and systems. Exclude any laptops, desktops, and tablets including associated licenses, should be included in line 340 ICT costs: laptops, desktops, and tablets if they haven’t been capitalised. Any other hardware not capitalised, such as audio-visual screens, printers and keyboards, should be included in line 341 - ICT costs: other hardware. Where a resource is used for learning and administration purposes, and where costs are material, costs or estimates of the split should be coded separately at the time of purchase.
B197: · line 339 ICT costs: Administration software and systems – Include administration and management software such as management information systems (MIS), safeguarding, finance, cashless catering, building management and payment portals. Also include operating systems and device licences, unless bundled into the cost of laptops, desktops and tablets. Include IT hosting including cloud and data storage, cybersecurity and filtering / monitoring if they are not part of any previously stated connectivity services. Exclude connectivity such as broadband and telephony; instead include these in line 336 - ICT costs: connectivity. Exclude IT learning resources, hardware, inhouse or third party IT support; instead include these in line 338 - ICT costs: IT learning resources. Where a resource is used for learning and administration purposes, and where costs are material, costs or estimates of the split should be coded separately at the time of purchase.
B198: · line 340 ICT costs: laptops, desktops and tablets – Include laptops, desktops and tablets purchased or leased by the school that are used for teaching, learning and administration. Include peripherals such as keyboards, mouses and display screens if bundled into the cost of the devices. Include operating systems and licences if bundled into the cost of devices, device management tools. Only include costs within this line if they have not been capitalised. If they are capitalised, include in line 624 - ICT costs: laptops, desktops and tablets within the capital expenditure section of the form. Exclude bring your own device (BYOD) schemes where pupils and / or staff are required to bring their own devices such as laptops or tablets. Exclude peripherals that are not bundled into the cost of the devices, and any other hardware, expenditure where device costs are capitalised and instead include these in line 341 - ICT costs: other hardware. Also exclude IT support unless this is bundled into the purchase or hire of the devices and instead include in line 342 - ICT costs: IT support.
B199: · line 341 ICT costs: other hardware – Include hardware such as printers and consumables, audio-visual display screens, projectors and CCTV. Include peripherals such as keyboards and mouses where they are not bundled into laptop, desktop and tablet costs. Include purchase or hire of any hardware where this has not been capitalised. Only include costs within this line if they have not been capitalised. If they are capitalised, include in line 625 - ICT costs: other hardware. Exclude laptops, desktops and tablets, instead include this in line 340 - ICT costs: laptops, desktops and tablets above. Exclude any onsite servers, instead include these in line 337 - ICT costs: onsite servers. Exclude software unless bundled as part of the cost of the hardware and instead include in 339 - ICT costs: administration software and systems.
B200: · line 342 ICT costs: IT support – Include third-party IT support contracts, maintenance and repair of technology, IT related consultancy when not bundled into any other services. Also include the estimated costs of IT support if these are bundled into other services. Please exclude inhouse IT support such as a network or IT manager. This will be included in staff costs.
B201: · line 330 – other staff support costs – Include any indirect staffing costs such as training and development, staff travel, childcare vouchers and Disclosure and Barring Service (DBS) checks. Exclude IT related training, see line 342 - ICT costs: IT support.
B202: · line 378 non-staff costs (cash) – Include any other revenue expenditure not covered by the above categories e.g. costs of all educational and non-educational supplies and services (including bought in supply cover and HR/Payroll services from the Local Authority), RPA contributions, building repairs and maintenance costs (including any service level of agreements that relate to the upkeep and maintenance of the school estate), legal and governance costs, land and buildings valuations, bank charges and interest. If your trust has any RAAC related expenditure that hasn’t been capitalised, please include this in here. Exclude revenue deficits on conversion/ transfer or any non-cash costs such as unwinding of the discount, impairment, depreciation. Include all ICT related costs in lines 336 - 342.
B203: · line 379 Building repair & maintenance / Building improvements (Disclosure only) – Disclosure only: Include any expenditure that relates to building repair & maintenance / building improvements that have not been capitalised. For example, this could include: roof repairs, heating / boiler replacements, general maintenance and repairs to the building. Only include costs in here that have not been added to the trusts balance sheet as a fixed asset. You do not need to alter line 378, as this line (379) is a disclosure only and any repair and maintenance costs within 378 will not be double counted. Line 379 is a disclosure only line and won't impact the overall total as all of the spend is included line 378. If you have entered a value in line 379, we will then ask if you can tell us the typical percentage of this spend that is funded through capital grants and that you have not capitalised. We want you to include any spend funded through capital improvement funding (CIF), Devolved formula capital (DFC), school condition allocation (SCA) etc that your trust has spent but not capitalised (i.e. included in the capital section of the BFR).
B204: · line 350 Revenue deficit transfer of an existing academy in/ (out) of the trust – Include all revenue deficit payable following the transfer of an existing academy, excluding pensions and fixed assets. Where there is a transfer of a deficit into the trust, enter this figure as a positive figure, increasing your expenditure. Where there is a transfer of a deficit out of the trust, enter this as a negative figure, decreasing your expenditure.
B205: · line 351 Revenue deficit transfer to an academy on conversion – Include revenue deficit payable on conversion from local authorities, e.g. deficits received from local authorities on conversion excluding pensions and fixed assets. Enter this as a positive figure.
B206: · line 395 other non-cash costs – Only include non-cash costs that flow into revenue reserves. If non-cash costs feed the pensions reserve or the capital fund, exclude them. For example, where depreciation flows into the capital fund, don't include this. Instead, disclose it in the other items section below. If you include impairment charges in revenue reserves, provide an explanation following the validation query. Include other non-cash items such as provisions (but not pension liabilities) or unwinding of the discount.
B207: · line 410 balance b/f from previous period – Input the closing balance of revenue funds from the previous financial year. The figures for this can be found in your statutory accounts (please refer to the AAD for guidance). Assuming there are no structural changes to the trust, the amount should agree to the sum of ‘Endowment Fund’, ‘Restricted Income Fund’ and ‘Unrestricted Fund’ in the Balance Sheet Summary of the prior year accounts return. Don’t include capital funds or pension reserves or revaluation reserves
B208: · line 430 balance c/f to next period – This is an automatic sum of lines 400 and 410 and is used to calculate your trust’s total reserves. The reserve balance details page (if triggered) calculates a ratio between line 430 ‘c/f 31 Aug 2024’ and the 2023/24 total balance in line 298 (Line 430 divided by line 298). Provide an explanation where there are any deficits.
B210: Academy trust reserves
B211: In 2022 The Public Accounts Committee (PAC) asked the DfE to investigate the geographical variation in the financial health of maintained schools, determine the underlying causes and decide whether some schools or local areas need extra support to be sustainable.
B212: We continue to request additional information for any academy trusts with reserves equivalent to more than 20% of their income. The calculation is a ratio of line 430 'c/f 31 Aug 2024' and line 298. This data will provide the ESFA with information to assess the impact of financial pressures on schools at local level.
B213: If you have a ratio of 20% or more, you’ll be asked some further follow up questions. You’re asked to provide more details about the minimum amount your trust would want to keep in reserves along with a narrative. To comply with PAC request, we need to ask specific details, including selecting the main purpose(s) your trust is holding its reserve balance for. This information is requested to try and minimise follow queries later in the year. You must select at least one from this list of options:
B214: · ‘specific building/estates projects’ (site development or maintenance e.g. new classrooms, sports facilities, CIF contributions)
B215: · ‘other non-building capital expenditure’ (curriculum development, ICT infrastructure)
B216: · ‘staff retention and development’ (planned training commitments)
B217: · ‘strategic development of the trust’ (increase in schools, conversions or transfers in)
B218: · ‘growth of existing schools in the trust’ (increase in pupil numbers/age range changes)
B219: · ‘future change/uncertainty’ (reduce income due to decreasing pupil numbers or a future in-year deficit)
B220: · ‘other’ not listed above
B221: All inputs are for the approximate cost, in rounded thousands, and an estimated date of the activity commencement.
B223: · line 510 devolved formula capital – Input the total amount of capital funding grant receivable from ESFA.
B224: · line 520 value of any capital donation of an asset from the ESFA for PSPB/free schools programme – Include the value of any asset that has been transferred, or is due to be transferred from the ESFA to the trust where the ESFA has procured the capital works centrally under the Priority Schools Building Programme (PSBP) or Free Schools Programme. This should equal row 605.
B225: · line 530 other DfE income – capital – Include the amount of any capital grants received from the ESFA that isn’t included in lines 510 or 520, for example CIF/SCA funding.
B226: · line 540 other DfE family capital grants – Enter the value of any capital grants from DfE family bodies, such as the national college, ESFA, Office of the Children’s Commissioner or the Standards and Testing Agency.
B228: Other capital grants income (lines 560 to 571)
B229: · line 560 local authority capital income (cash) – Include any local authority capital funding receivable. This should be cash payments only. Include unspent grants (cash) including any capital balances on conversion. This is the cash reserves balances on conversion only.
B230: · line 570 non-governmental capital income – Include voluntary, private capital, donations for use as capital or endowment funds or any other non-government capital income. Specify what each is in the comments section.
B231: · line 571 other government grant capital income – Include any other government capital grants received that are not included in the above lines. Specify which government body the grants are from in the comments column. If you have received any RAAC funding that relates to capital, please include this here.
B232: · line 574 endowment releases to fund capital expenditure. Include where there have been any releases from endowments reserves to fund capital expenditure.
B233: · line 575 local authority donated assets – Include any donated assets from local authorities. Please note, this will be the contra with line 606.
B235: Disposals
B236: Disposal proceeds (lines 581-583) – include the value that all disposals are carried in the financial statements, i.e. cost less depreciation in the following categories lines:
B237: · line 581 land and buildings – Disposal preceeds only.
B238: · line 582 other fixed assets – Disposal proceeds only.
B240: Transfer to revenue from capital (line 585)
B241: This should be the contra to line 255 - normally there are revenue transfers to capital and this line should be a positive figure. Transfers from capital funding to revenue reserves are normally disallowed. However on occasion for the reasons described in line 255, a reverse transfer may be necessary, where funds will flow from capital to revenue and the balance in this line would become negative. As this is unusual, an explanation is required.
B243: Capital expenditure (lines 601 to 680)
B244: Land and buildings additions are shown in lines 601-620. This includes the cost of land acquisition including all fees and charges associated. It also includes the cost of new construction, including fees, cost of conversions and renovations and cost of extension to existing premises. This needs to be broken down into the following category lines:
B245: · line 601 Land and buildings additions funded by ESFA grants - Include any expenditure of grant received from the ESFA for freehold and leasehold land and buildings additions. In here, also include any RAAC related expenditure that has been capitalised. If your trust has had any major maintenance work completed that has been capitalised, please include this in here. Any unspent grant income would be carried forward into the next financial year, usually in the capital funds balance.
B246: · line 605 Land and buildings donated to the trust by the ESFA – Include the value of any asset that has been transferred, or due to be transferred from the ESFA to the trust where the ESFA has procured the capital works centrally under the Priority Schools Building Programme (PSBP) or Free Schools Programme. Contra to row 520.
B247: · line 615 Land and buildings additions funded by other capital grants – Include any expenditure that is funded by other capital grants (not the DfE/ESFA family) include lottery funding, sports England, Local Authorities, FA.
B248: · line 620 Land and buildings additions funded by reserves – Funded by reserves – including other revenue sources as well as endowment releases.
B249: ICT additions are shown in lines 621-625. This will include the cost of ICT where they have been capitalised for network connection and installation, onsite servers, software and hardware.
B250: · line 621 - ICT costs - connectivity - Include where capitalised; broadband, wireless networks, network switches, network cables, installation costs. Telephony, ISDN, ASDL or other dedicated phone lines where they are not leased, and installation costs. Exclude leasing (see line 336 - ICT costs: connectivity, within the revenue expenditure section), IT support, repair and maintenance costs (see line 342 - ICT costs: IT support, within the revenue expenditure section).
B251: · line 622 - ICT costs - onsite servers - Include physical onsite servers where costs are capitalised. Exclude lease costs (please include in line 337 - ICT costs: onsite servers) and any repair and maintenance (please include in line 342 - ICT costs: IT support) costs associated with onsite servers, cloud storage costs, IT support.
B252: · line 623 - ICT costs - administration software and systems - Include where capitalised; administration and management software such as management information systems (MIS), safeguarding, finance, cashless catering, building management and payment portals, operating systems and device licences (unless bundled into the cost of laptops, desktops and tablets), cloud and data storage, cybersecurity and filtering and monitoring if not part of any connectivity services. Exclude connectivity such as broadband and telephony (see line 621 - ICT costs: connectivity), IT learning resources, (see line 338 - ICT costs: IT learning resources, within the revenue expenditure section), IT support, repair and maintenance costs (see line 342 - ICT costs: IT support, within the revenue expenditure section). Where a resource is used for curriculum and non-curriculum (administration) purposes, and where costs are material, costs or estimates of the split should be coded separately at the time of purchase.
B253: · line 624 - ICT costs - laptops, desktops and tablets - Include where capitalised; laptops, desktops and tablets purchased by the school (used for teaching, learning and administration), operating systems and licences (if bundled into the cost of devices) and device management tools. Exclude bring your own device (BYOD) schemes where pupils and or staff are required to bring their own devices such as laptops or tablets. Exclude any other hardware (see line 625 - ICT costs: other hardware, within the capital expenditure section), IT support, repair and maintenance costs (see line 342 - ICT costs: IT support, within the revenue expenditure section). Where a resource is used for curriculum and non-curriculum (administration) purposes, and where costs are material, costs or estimates of the split should be coded separately at the time of purchase.
B254: · line 625 - ICT costs - other hardware - Include where capitalised; hardware such as printers and consumables, audio-visual display screens, projectors and CCTV, peripherals such as keyboards and mouses (where they are not bundled into laptop, desktop and tablet costs). Exclude laptops, desktops and tablets (see line 624 - ICT costs: laptops, desktops and tablets), onsite servers (see line 622 - ICT costs: onsite servers, IT support, repair and maintenance costs (see line 342 - ICT costs: IT support, within the revenue expenditure section).
B255: Other fixed assets additions in lines 636-638 – include the cost of other fixed assets acquisition. These fixed assets include items such as furniture and equipment, computer equipment, motor vehicles, assets under construction, intangible assets etc. This needs to be broken down into the following category lines:
B256: · line 636 Other fixed assets additions funded by ESFA grants – Include any expenditure of ESFA grant received in a previous period. Include any RAAC related expenditure that has been capitalised and if your trust has had any major maintenance work that has been capitalised. The unspent grant income should be carried forward from a prior year.
... 66 more rows

Sheet Organisation user
B1: Budget Forecast Return 2024
B3: This workbook is to be used to help prepare for the online form. It should be completed on an accruals and prepayments basis at trust level. Enter all figures in the online form in round thousands, except line 999 for pupil numbers. Do not enter whole numbers.
S5: Initial validation | T5: Outstanding validation
B6: Trust name: | M6: =IF(S6=1,V6,"") -> Please enter the name of your trust. | S6: =IF(C6="",1,0) -> 1 | T6: =S6 -> 1 | V6: Please enter the name of your trust.
B8: Trust type | M8: =IF(S8=1,V8,"") -> Please state whether your trust is a MAT or a SAT. | S8: =IF(C8="",1,0) -> 1 | T8: =S8 -> 1 | V8: Please state whether your trust is a MAT or a SAT.
B10: Trust UPIN | M10: =IF(S10=1,V10,"") -> Please enter your trust UPIN. | S10: =IF(C10="",1,0) -> 1 | T10: =S10 -> 1 | V10: Please enter your trust UPIN.
B12: Company House Number | M12: =IF(S12=1,V12,"") -> Please enter your trust companies house number, this cell allows a leading zero. | S12: =IF(C12="",1,0) -> 1 | T12: =S12 -> 1 | V12: Please enter your trust companies house number, this cell allows a leading zero.
B14: What are the contact details for this trust as we may need to contact you?
B16: Full name | M16: =IF(S16=1,V16,"") -> Please enter your full name. | S16: =IF(C16="",1,0) -> 1 | T16: =S16 -> 1 | V16: Please enter your full name.
B18: UK telephone number | M18: =IF(S18=1,V18,"") -> Please enter a full UK telephone number. | S18: =IF(C18="",1,0) -> 1 | T18: =S18 -> 1 | V18: Please enter a full UK telephone number.
B20: Email Address | M20: =IF(S20=1,V20,"") -> Please enter your email address. | S20: =IF(C20="",1,0) -> 1 | T20: =S20 -> 1 | V20: Please enter your email address.
B23: No of academies in trust | M23: =IF(C23-C24=0,"",IF(E23="","Explain the different number of academies. Include new openers; transfers; mergers; closures or demergers. Are you including the financials of any academies that you expect to join your trust within the period of this return and/or before the next BFR.","")) ->  | S23: MAT | T23: Yes | V23: =IF(C23-C24=0,0,IF(E23="",1,0)) -> 0
B24: No of academies in return | M24: =IF(COUNT(B29:B150)-C24=0,"","If applicable, can you ensure that the details inputted here match the academy reserves section. This includes the upin as well as the academy name. The number of entries should match the number input in cell B25") ->  | S24: SAT | T24: No
B26: Which academies do you want to include in this return?
B28: Academy UPIN | C28: Academy Name
M29: =IF(T29="Y",IF(X29<4,$V$29,$W$29),"") ->  | S29: 1 | T29: =IF(S29<=$U$29,"Y","N") -> N | U29: =C24 -> 0 | V29: Please Enter Details for Academy | W29: Details have been entered | X29: =(IF(B29="",1,2)+(IF(C29="",1,2))) -> 2
M30: =IF(T30="Y",IF(X30<4,$V$29,$W$29),"") ->  | S30: 2 | T30: =IF(S30<=$U$29,"Y","N") -> N | X30: =(IF(B30="",1,2)+(IF(C30="",1,2))) -> 2
S31: 3 | T31: N | X31: 2
S32: 4 | T32: N | X32: 2
S33: 5 | T33: N | X33: 2
S34: 6 | T34: N | X34: 2
S35: 7 | T35: N | X35: 2
S36: 8 | T36: N | X36: 2
S37: 9 | T37: N | X37: 2
S38: 10 | T38: N | X38: 2
S39: 11 | T39: N | X39: 2
S40: 12 | T40: N | X40: 2
S41: 13 | T41: N | X41: 2
S42: 14 | T42: N | X42: 2
S43: 15 | T43: N | X43: 2
S44: 16 | T44: N | X44: 2
S45: 17 | T45: N | X45: 2
S46: 18 | T46: N | X46: 2
S47: 19 | T47: N | X47: 2
S48: 20 | T48: N | X48: 2
S49: 21 | T49: N | X49: 2
S50: 22 | T50: N | X50: 2
S51: 23 | T51: N | X51: 2
S52: 24 | T52: N | X52: 2
S53: 25 | T53: N | X53: 2
S54: 26 | T54: N | X54: 2
S55: 27 | T55: N | X55: 2
S56: 28 | T56: N | X56: 2
S57: 29 | T57: N | X57: 2
S58: 30 | T58: N | X58: 2
S59: 31 | T59: N | X59: 2
S60: 32 | T60: N | X60: 2
S61: 33 | T61: N | X61: 2
S62: 34 | T62: N | X62: 2
S63: 35 | T63: N | X63: 2
S64: 36 | T64: N | X64: 2
S65: 37 | T65: N | X65: 2
S66: 38 | T66: N | X66: 2
S67: 39 | T67: N | X67: 2
S68: 40 | T68: N | X68: 2
S69: 41 | T69: N | X69: 2
S70: 42 | T70: N | X70: 2
S71: 43 | T71: N | X71: 2
S72: 44 | T72: N | X72: 2
S73: 45 | T73: N | X73: 2
S74: 46 | T74: N | X74: 2
S75: 47 | T75: N | X75: 2
S76: 48 | T76: N | X76: 2
S77: 49 | T77: N | X77: 2
S78: 50 | T78: N | X78: 2
S79: 51 | T79: N | X79: 2
S80: 52 | T80: N | X80: 2
S81: 53 | T81: N | X81: 2
S82: 54 | T82: N | X82: 2
S83: 55 | T83: N | X83: 2
S84: 56 | T84: N | X84: 2
S85: 57 | T85: N | X85: 2
S86: 58 | T86: N | X86: 2
S87: 59 | T87: N | X87: 2
S88: 60 | T88: N | X88: 2
S89: 61 | T89: N | X89: 2
S90: 62 | T90: N | X90: 2
S91: 63 | T91: N | X91: 2
S92: 64 | T92: N | X92: 2
S93: 65 | T93: N | X93: 2
M94: =IF(T94="Y",IF(X94<4,$V$29,$W$29),"") ->  | S94: 66 | T94: =IF(S94<=$U$29,"Y","N") -> N | X94: =(IF(B94="",1,2)+(IF(C94="",1,2))) -> 2
S95: 67 | T95: N | X95: 2
S96: 68 | T96: N | X96: 2
S97: 69 | T97: N | X97: 2
S98: 70 | T98: N | X98: 2
S99: 71 | T99: N | X99: 2
S100: 72 | T100: N | X100: 2
S101: 73 | T101: N | X101: 2
S102: 74 | T102: N | X102: 2
S103: 75 | T103: N | X103: 2
S104: 76 | T104: N | X104: 2
S105: 77 | T105: N | X105: 2
S106: 78 | T106: N | X106: 2
S107: 79 | T107: N | X107: 2
S108: 80 | T108: N | X108: 2
S109: 81 | T109: N | X109: 2
S110: 82 | T110: N | X110: 2
S111: 83 | T111: N | X111: 2
S112: 84 | T112: N | X112: 2
S113: 85 | T113: N | X113: 2
S114: 86 | T114: N | X114: 2
S115: 87 | T115: N | X115: 2
S116: 88 | T116: N | X116: 2
S117: 89 | T117: N | X117: 2
S118: 90 | T118: N | X118: 2
S119: 91 | T119: N | X119: 2
S120: 92 | T120: N | X120: 2
S121: 93 | T121: N | X121: 2
S122: 94 | T122: N | X122: 2
S123: 95 | T123: N | X123: 2
S124: 96 | T124: N | X124: 2
S125: 97 | T125: N | X125: 2
S126: 98 | T126: N | X126: 2
S127: 99 | T127: N | X127: 2
S128: 100 | T128: N | X128: 2
S129: 101 | T129: N | X129: 2
S130: 102 | T130: N | X130: 2
S131: 103 | T131: N | X131: 2

Sheet BFR 2024
A1: Budget Forecast Return | AA1: hidden from here
A3: This workbook is to be used to help prepare for the online form. It should be completed on an accruals and prepayments basis at whole trust level. Enter all figures in the online form in round thousands, except for line 999 pupil numbers. Lines 3900 and 3950 around pay award % increase should be entered as a percentage % up to a maximum of 3 decimal places. QU379 if triggered is a % input to the nearest whole number.
A5: Protected sheets
A6: The worksheets are protected with the password 'BFR'. You can remove the protection to inspect how the workbook is structured. If you remove the password protection, there's a risk that formulas and validations could be accidentally overwritten. For that reason it's safer to do this on a separate, saved version.
A9: Queries
A11: If you have a query about completing your BFR return please contact the ESFA using the Customer Help Portal.
A15: Finance Questions | X15: Query No | Z15: Query | AB15: Test No | AC15: Formula | AD15: Text for test | AE15: Formula
A16: FQ1 | B16: Have you had any provisions during this period, excluding pension liability? | C16: Yes | E16: =IF(C16="No","","Link to the provisions section") -> Link to the provisions section
A17: FQ2 | B17: Have you had any loans during the period? | C17: Yes | E17: =IF(C17="No","","Link to the loans section") -> Link to the loans section
A18: FQ3 | B18: Have you had any investments during the period? | C18: Yes | E18: =IF(C18="No","","Link to the investments section") -> Link to the investments section
A19: FQ4 | B19: Have you had any overdrafts during the period? | C19: Yes | E19: =IF(C19="No","","Link to the overdrafts section") -> Link to the overdrafts section
B22: Pupil Numbers | I22: Actual 2022/23 | M22: Actual 2023/24 | Q22: Estimated 2024/25 | R22: Help Text Guidance
B23: Pupil numbers (actual and estimated - do not round this figure) | C23: 999 | D23: i | R23: Input the actual/estimated total number of students in your trust as at the October census date in the year of input (this shouldn't be rounded to the nearest '000). | S23: =IF(OR(I23-ROUND(I23,)<>0,M23-ROUND(M23,)<>0,Q23-ROUND(Q23,)<>0),"No decimal places allowed","") ->  | T23: =IF(OR(I23<V23,M23<V23,Q23<V23),"A value is below the minimum value allowed","") ->  | U23: =IF(OR(I23>W23,M23>W23,Q23>W23),"Input value is too high","") ->  | V23: =VLOOKUP($C23,'Min Max table'!$A$5:$C$208,2,FALSE) -> 0 | W23: =VLOOKUP($C23,'Min Max table'!$A$5:$C$205,3,FALSE) -> 999999 | X23: ="QU"&AB23 -> QU22 | Y23: =IF(Z23="","","Please refer to "&X23&" in the validations table") -> Please refer to QU22 in the validations table | Z23: =IF(AC23>0,AD23,"") -> Check that you've entered pupil numbers correctly (without rounding) or explain why you've inputted no pupil numbers. | AA23: =VLOOKUP(X23,'Trust validations table'!$A$15:$E$346,4,FALSE) -> Other items: Line 999 - Pupil numbers | AB23: 22 | AC23: =IF(OR(M23<=0,I23<=0,Q23<=0),AB23,0) -> 22 | AD23: Check that you've entered pupil numbers correctly (without rounding) or explain why you've inputted no pupil numbers. | AE23: IF(OR(M217<=0,I217<=0,Q217<=0),AB217,0)
E24: =IF(OR((I33/I23>=30),(M33/M23>=30),(Q33/Q23>=30)),"check - see columns S-Z for info","") ->  | S24: =IF(OR(I23-ROUND(I23,)<>0,M23-ROUND(M23,)<>0,Q23-ROUND(Q23,)<>0),"No decimal places allowed","") ->  | T24: =IF(OR(I23<V24,M23<V24,Q23<V24),"A value is below the minimum value allowed","") ->  | U24: =IF(OR(I23>W23,M23>W23,Q23>W23),"Input value is too high","") ->  | V24: =VLOOKUP($C23,'Min Max table'!$A$5:$C$208,2,FALSE) -> 0 | W24: 30 | X24: ="QU"&AB24 -> QU99 | Y24: =IF(Z24="","","Please refer to "&X24&" in the validations table") -> Please refer to QU99 in the validations table | Z24: =IF(ISERROR(AC24),"Please explain why your GAG per pupil is greater than £30k",IF(AC24>0,AD24,"")) -> Please explain why your GAG per pupil is greater than £30k | AA24: =VLOOKUP(X24,'Trust validations table'!$A$15:$E$346,4,FALSE) -> GAG line 102 divided by pupil numbers line 999 | AB24: 99 | AC24: =IF(OR((I33/I23>=30),(M33/M23>=30),(Q33/Q23>=30)),AB24,0) ->  | AD24: Please explain why your GAG per pupil is greater than £30k | AE24: IF(OR(M217<=0,I217<=0,Q217<=0),AB217,0)
B25: Pupil numbers must be completed before continuing with the form.
B28: REVENUE | G28: Prior Year | K28: Current Year | O28: Forecast Year
B29: 1 REVENUE INCOME | G29: Actuals | H29: Calculated | I29: TOTAL | K29: Actuals | L29: Calculated | M29: TOTAL | O29: Forecast | P29: Calculated | Q29: TOTAL | AA29: hidden from here
B30: DfE ESFA income | G30: Sep 22 - Mar 23 | H30: Apr 23 - Aug 23 | I30: 2022/23 | K30: Sep 23 - Mar 24 | L30: Apr 24 - Aug 24 | M30: 2023/24 | O30: Sep 24 - Mar 25 | P30: Apr 25 - Aug 25 | Q30: 2024/25
B31: Category - For help, refer to the guidance tab | C31: Line no. | D31: Help text | E31: Validation | G31: £'000 | H31: £'000 | I31: £'000 | K31: £'000 | L31: £'000 | M31: £'000 | O31: £'000 | P31: £'000 | Q31: £'000 | R31: Help Text Guidance | S31: Rounded £'000 test | T31: Minimum value test | U31: Maximum value test | V31: Minimum value £'000 | W31: Maximum value £'000 | X31: Query No | Z31: Query | AB31: Test No | AC31: Formula | AD31: Text for test | AE31: Formula
B32: Rates reclaim | C32: 101 | D32: i | E32: =IF(OR(S32<>"",T32<>"",U32<>"",Z32<>""),"Check- see columns S-Z for info","") ->  | H32: =+I32-G32 -> 0 | L32: =+M32-K32 -> 0 | P32: =+Q32-O32 -> 0 | R32: You should enter the total amount for the year you are claiming. | S32: =IF(OR(G32-ROUND(G32,)<>0,I32-ROUND(I32,)<>0,K32-ROUND(K32,)<>0,M32-ROUND(M32,)<>0,O32-ROUND(O32,)<>0,Q32-ROUND(Q32,)<>0),"No decimal places allowed allowed","") ->  | T32: =IF(OR(G32<V32,I32<V32,K32<V32,L32<V32,M32<V32,O32<V32,P32<V32,Q32<V32),"A value is below the minimum value allowed","") ->  | U32: =IF(OR(G32>W32,H32>W32,I32>W32,K32>W32,L32>W32,M32>W32,O32>W32,Q32>W32),"Input value is too high","") ->  | V32: =VLOOKUP($C32,'Min Max table'!$A$5:$C$208,2,FALSE) -> -100000 | W32: =VLOOKUP($C32,'Min Max table'!$A$5:$C$205,3,FALSE) -> 100000 | AJ32: List boxes
B33: General Academy Grant (GAG) (excluding Student Service Grant) | C33: 102 | D33: i | E33: =IF(OR(S33<>"",T33<>"",U33<>"",Z33<>""),"Check- see columns S-Z for info","") -> Check- see columns S-Z for info | H33: 0 | L33: 0 | P33: =+Q33-O33 -> 0 | R33: This is the gross GAG figure as shown on the trust's GAG funding statement and the post 16 allocation statement. Don't include any deductions for the RPA Scheme (insurance scheme), loan repayments or the Academy post 16-19 bursary funding. | S33: =IF(OR(G33-ROUND(G33,)<>0,I33-ROUND(I33,)<>0,K33-ROUND(K33,)<>0,M33-ROUND(M33,)<>0,O33-ROUND(O33,)<>0,Q33-ROUND(Q33,)<>0),"No decimal places allowed","") ->  | V33: =VLOOKUP($C33,'Min Max table'!$A$5:$C$208,2,FALSE) -> 0 | W33: =VLOOKUP($C33,'Min Max table'!$A$5:$C$205,3,FALSE) -> 800000 | X33: ="QU"&AB33 -> QU1 | Y33: =IF(Z33="","","Please refer to "&X33&" in the validations table") -> Please refer to QU1 in the validations table | Z33: =IF(ISERROR(AC33),"You have input something incorrectly",IF(AC33>0,AD33,"")) -> You have forecast zero for GAG income for next year (102). Briefly tell us why this value is zero? | AA33: =VLOOKUP(X33,'Trust validations table'!$A$15:$E$346,4,FALSE) -> Revenue Income: Line 102 - General Academy Grant (GAG) (excluding Student Service Grant) | AB33: 1 | AC33: =IF(Q33=0,AB33,0) -> 1 | AD33: You have forecast zero for GAG income for next year (102). Briefly tell us why this value is zero? | AE33: IF(Q35=0,AB35,0) | AJ33: Yes | AK33: SAT
B34: Student Services Grant (Academy Post 16 Bursary Funding) | C34: 103 | D34: i | E34: =IF(OR(S34<>"",T34<>"",U34<>"",Z34<>""),"Check- see columns S-Z for info","") ->  | H34: 0 | L34: 0 | P34: 0 | R34: Only include the Academy post 16-19 bursary fund. | V34: =VLOOKUP($C34,'Min Max table'!$A$5:$C$208,2,FALSE) -> 0 | W34: =VLOOKUP($C34,'Min Max table'!$A$5:$C$205,3,FALSE) -> 100000 | AJ34: No | AK34: MAT
B35: Start Up Grants | C35: 105 | D35: i | H35: 0 | L35: 0 | P35: 0 | R35: Include both elements of the post opening grant (start up grant and post opening grant) included in the GAG funding statement. | V35: =VLOOKUP($C35,'Min Max table'!$A$5:$C$208,2,FALSE) -> 0 | W35: =VLOOKUP($C35,'Min Max table'!$A$5:$C$205,3,FALSE) -> 100000
B36: Pupil Premium & Service Premium | C36: 108 | D36: i | H36: 0 | L36: 0 | P36: 0 | R36: Do not include any looked after children pupil premium allocations as this is funding provided by local authorities and should be included within line 200. | V36: =VLOOKUP($C36,'Min Max table'!$A$5:$C$208,2,FALSE) -> 0 | W36: =VLOOKUP($C36,'Min Max table'!$A$5:$C$205,3,FALSE) -> 100000
B37: Pupil Number Adjustment | C37: 132 | D37: i | H37: 0 | L37: 0 | P37: 0 | R37: Include any additional funding you have received due to the PNA. Applies to academies who receive their funding based on estimates of pupil numbers. It is necessary so that academies funded in this way receive grant income which more accurately reflects the actual pupil numbers present during the year. | V37: =VLOOKUP($C37,'Min Max table'!$A$5:$C$208,2,FALSE) -> -100000 | W37: =VLOOKUP($C37,'Min Max table'!$A$5:$C$205,3,FALSE) -> 100000 | X37: ="QU"&AB37 -> QU2 | Y37: =IF(Z37="","","Please refer to "&X37&" in the validations table") ->  | Z37: =IF(ISERROR(AC37),"You have input something incorrectly",IF(AC37>0,AD37,"")) ->  | AA37: =VLOOKUP(X37,'Trust validations table'!$A$15:$E$346,4,FALSE) -> Revenue Income: Line 132 - Pupil Number Adjustment | AB37: 2 | AC37: =IF(OR(I37<>0,M37<>0,Q37<>0),AB37,0) -> 0 | AD37: Provide further details on the value and estimation of the Pupil Number Adjustment (132) | AE37: IF(OR(I39<>0,M39<>0,Q39<>0),AB39,0)
B38: Other DfE/ESFA revenue grants | C38: 135 | D38: i | H38: 0 | L38: 0 | P38: 0 | R38: Include any remaining non-GAG grants receivable not included in lines 101 to 138. | V38: =VLOOKUP($C38,'Min Max table'!$A$5:$C$208,2,FALSE) -> 0 | W38: =VLOOKUP($C38,'Min Max table'!$A$5:$C$205,3,FALSE) -> 100000
B39: Universal Infant Free School Meals | C39: 136 | D39: i | H39: 0 | L39: 0 | P39: 0 | R39: Include any additional funding you receive from Universal infant free school meals (UIFSM). This provides funding for all government funded schools to offer free school meals to pupils in reception, year 1, and year 2. | V39: =VLOOKUP($C39,'Min Max table'!$A$5:$C$208,2,FALSE) -> 0 | W39: =VLOOKUP($C39,'Min Max table'!$A$5:$C$205,3,FALSE) -> 100000
B40: Insurance | C40: 137 | D40: i | H40: 0 | L40: 0 | P40: 0 | R40: This should only contain any insurance top-up grant received from the ESFA. It should not include the value of insurance claims. | V40: =VLOOKUP($C40,'Min Max table'!$A$5:$C$208,2,FALSE) -> 0 | W40: =VLOOKUP($C40,'Min Max table'!$A$5:$C$205,3,FALSE) -> 100000
B41: Sponsor Capacity Grant | C41: 138 | D41: i | H41: 0 | L41: 0 | P41: 0 | R41: Include any additional funding from the Sponsor Capacity Grant, as per the Grant determination. This grant is from the DfE to facilitate an increase in the number of academies within a trust and encourage trusts to take on struggling schools. School can bid for between £50-£100k. | V41: =VLOOKUP($C41,'Min Max table'!$A$5:$C$208,2,FALSE) -> 0 | W41: =VLOOKUP($C41,'Min Max table'!$A$5:$C$205,3,FALSE) -> 300000
B42: Other DfE/ESFA family revenue Grants | C42: 150 | D42: i | H42: 0 | L42: 0 | P42: 0 | R42: This should only be used for grants from the DfE family, including National College of Teaching and Leadership, Standards Testing Agency, Office of the Children's Commissioner, or Equality and Human Rights Commission. | V42: =VLOOKUP($C42,'Min Max table'!$A$5:$C$208,2,FALSE) -> -100000 | W42: =VLOOKUP($C42,'Min Max table'!$A$5:$C$205,3,FALSE) -> 300000
B43: Total DfE/ESFA revenue Income | C43: 199 | G43: =SUM(G32:G42) -> 0 | H43: =SUM(H32:H42) -> 0 | I43: =SUM(I32:I42) -> 0 | K43: =SUM(K32:K42) -> 0 | L43: =SUM(L32:L42) -> 0 | M43: =SUM(M32:M42) -> 0 | O43: =SUM(O32:O42) -> 0 | P43: =SUM(P32:P42) -> 0 | Q43: =SUM(Q32:Q42) -> 0 | V43: =VLOOKUP($C43,'Min Max table'!$A$5:$C$208,2,FALSE) -> 0 | W43: =VLOOKUP($C43,'Min Max table'!$A$5:$C$205,3,FALSE) -> 0
B44: Other Revenue | C44: Line no. | D44: Help text | E44: Validation
B45: Local authority revenue income | C45: 200 | D45: i | E45: =IF(OR(S45<>"",T45<>"",U45<>"",Z45<>""),"Check- see columns S-Z for info","") ->  | H45: =+I45-G45 -> 0 | L45: =+M45-K45 -> 0 | P45: =+Q45-O45 -> 0 | R45: Include all revenue income received or receivable from local authorities, but exclude revenue surplus transfers from predecessor local authority maintained schools on conversion. | S45: =IF(OR(G45-ROUND(G45,)<>0,I45-ROUND(I45,)<>0,K45-ROUND(K45,)<>0,M45-ROUND(M45,)<>0,O45-ROUND(O45,)<>0,Q45-ROUND(Q45,)<>0),"No decimal places allowed","") ->  | T45: =IF(OR(G45<V45,I45<V45,K45<V45,L45<V45,M45<V45,O45<V45,P45<V45,Q45<V45),"A value is below the minimum value allowed","") ->  | U45: =IF(OR(G45>W45,I45>W45,K45>W45,L45>W45,M45>W45,O45>W45,P45>W45,Q45>W45),"Input value is too high","") ->  | V45: =VLOOKUP($C45,'Min Max table'!$A$5:$C$208,2,FALSE) -> -400000 | W45: =VLOOKUP($C45,'Min Max table'!$A$5:$C$205,3,FALSE) -> 100000
B46: Other government grants | C46: 205 | D46: i | H46: =+I46-G46 -> 0 | L46: =+M46-K46 -> 0 | P46: =+Q46-O46 -> 0 | R46: Include all revenue grants receivable from other government sources (exclude DfE, other bodies within the DfE family, ESFA and local authority) that are not included in the lines above. Line 205 should include, but is not limited to, grants receivable from any government funding intended to promote access and opportunity for minority ethnic pupils in support of English as an additional language or as part of a wider focus on raising attainment. | S46: =IF(OR(G46-ROUND(G46,)<>0,I46-ROUND(I46,)<>0,K46-ROUND(K46,)<>0,M46-ROUND(M46,)<>0,O46-ROUND(O46,)<>0,Q46-ROUND(Q46,)<>0),"No decimal places allowed","") ->  | T46: =IF(OR(G46<V46,I46<V46,K46<V46,L46<V46,M46<V46,O46<V46,P46<V46,Q46<V46),"A value is below the minimum value allowed","") ->  | U46: =IF(OR(G46>W46,I46>W46,K46>W46,L46>W46,M46>W46,O46>W46,P46>W46,Q46>W46),"Input value is too high","") ->  | V46: =VLOOKUP($C46,'Min Max table'!$A$5:$C$208,2,FALSE) -> -400000 | W46: =VLOOKUP($C46,'Min Max table'!$A$5:$C$205,3,FALSE) -> 100000
B47: Non government grants | C47: 210 | D47: i | H47: =+I47-G47 -> 0 | L47: =+M47-K47 -> 0 | P47: =+Q47-O47 -> 0 | R47: Include all revenue grants received from non-government sources. | S47: =IF(OR(G47-ROUND(G47,)<>0,I47-ROUND(I47,)<>0,K47-ROUND(K47,)<>0,M47-ROUND(M47,)<>0,O47-ROUND(O47,)<>0,Q47-ROUND(Q47,)<>0),"No decimal places allowed","") ->  | V47: =VLOOKUP($C47,'Min Max table'!$A$5:$C$208,2,FALSE) -> -400000 | W47: =VLOOKUP($C47,'Min Max table'!$A$5:$C$205,3,FALSE) -> 100000
B48: Income from trading activities | C48: 211 | D48: i | H48: =+I48-G48 -> 0 | L48: =+M48-K48 -> 0 | P48: =+Q48-O48 -> 0 | R48: Include all revenue received from trading activities such as hall hire, catering, rental income, breakfast and after school clubs, parental contributions, staff secondments outside of the trust and insurance claims. | S48: =IF(OR(G48-ROUND(G48,)<>0,I48-ROUND(I48,)<>0,K48-ROUND(K48,)<>0,M48-ROUND(M48,)<>0,O48-ROUND(O48,)<>0,Q48-ROUND(Q48,)<>0),"No decimal places allowed","") ->  | V48: =VLOOKUP($C48,'Min Max table'!$A$5:$C$208,2,FALSE) -> -400000 | W48: =VLOOKUP($C48,'Min Max table'!$A$5:$C$205,3,FALSE) -> 100000
B49: Other income, including endowment revaluations and investment income | C49: 220 | D49: i | H49: =+I49-G49 -> 0 | L49: =+M49-K49 -> 0 | P49: =+Q49-O49 -> 0 | R49: Include any other revenue income not covered by the above categories e.g. RAAC, donations, business sponsorship, investment income, plus gains or losses on endowments. | S49: =IF(OR(G49-ROUND(G49,)<>0,I49-ROUND(I49,)<>0,K49-ROUND(K49,)<>0,M49-ROUND(M49,)<>0,O49-ROUND(O49,)<>0,Q49-ROUND(Q49,)<>0),"No decimal places allowed","") ->  | V49: =VLOOKUP($C49,'Min Max table'!$A$5:$C$208,2,FALSE) -> -500000 | W49: =VLOOKUP($C49,'Min Max table'!$A$5:$C$205,3,FALSE) -> 100000
B50: Surplus transfers on conversion | C50: Line no. | D50: Help text | E50: Validation
B51: Revenue surplus transfer of an existing academy in / (out) of the trust | C51: 212 | D51: i | E51: =IF(OR(S51<>"",T51<>"",U51<>"",Z51<>""),"Check- see columns S-Z for info","") ->  | H51: =+I51-G51 -> 0 | L51: =+M51-K51 -> 0 | O51: 0 | P51: =+Q51-O51 -> 0 | Q51: 0 | R51: Include all revenue surplus received following the transfer of an existing academy, excluding pensions and fixed assets. Where there is a transfer of a surplus into the trust, enter this figure as a positive figure, increasing your income. Where there is a transfer of a surplus out of the trust, enter this as a negative figure, decreasing your income. | S51: =IF(OR(G51-ROUND(G51,)<>0,I51-ROUND(I51,)<>0,K51-ROUND(K51,)<>0,M51-ROUND(M51,)<>0,O51-ROUND(O51,)<>0,Q51-ROUND(Q51,)<>0),"No decimal places allowed","") ->  | T51: =IF(OR(G51<V51,I51<V51,K51<V51,L51<V51,M51<V51,O51<V51,P51<V51,Q51<V51),"A value is below the minimum value allowed","") ->  | U51: =IF(OR(G51>W51,I51>W51,K51>W51,L51>W51,M51>W51,O51>W51,P51>W51,Q51>W51),"Input value is too high","") ->  | V51: =VLOOKUP($C51,'Min Max table'!$A$5:$C$208,2,FALSE) -> -400000 | W51: =VLOOKUP($C51,'Min Max table'!$A$5:$C$205,3,FALSE) -> 400000
B52: Revenue surplus transfer to academy on conversion | C52: 215 | D52: i | H52: =+I52-G52 -> 0 | L52: =+M52-K52 -> 0 | O52: 0 | P52: =+Q52-O52 -> 0 | R52: Include revenue surplus received or receivable on conversion from local authorities. For example, surpluses received from local authorities on conversion excluding pensions and fixed assets. Enter this as a positive figure. | S52: =IF(OR(G52-ROUND(G52,)<>0,I52-ROUND(I52,)<>0,K52-ROUND(K52,)<>0,M52-ROUND(M52,)<>0,O52-ROUND(O52,)<>0,Q52-ROUND(Q52,)<>0),"No decimal places allowed","") ->  | T52: =IF(OR(G52<V52,I52<V52,K52<V52,L52<V52,M52<V52,O52<V52,P52<V52,Q52<V52),"A value is below the minimum value allowed","") ->  | U52: =IF(OR(G52>W52,I52>W52,K52>W52,L52>W52,M52>W52,O52>W52,P52>W52,Q52>W52),"Input value is too high","") ->  | V52: =VLOOKUP($C52,'Min Max table'!$A$5:$C$208,2,FALSE) -> -400000 | W52: =VLOOKUP($C52,'Min Max table'!$A$5:$C$205,3,FALSE) -> 400000
B53: Subtotal transfers surplus | C53: 218 | G53: =G51+G52 -> 0 | H53: =H51+H52 -> 0 | I53: =I51+I52 -> 0 | K53: =K51+K52 -> 0 | L53: =L51+L52 -> 0 | M53: =M51+M52 -> 0 | O53: =O51+O52 -> 0 | P53: =P51+P52 -> 0 | Q53: =Q51+Q52 -> 0 | V53: =VLOOKUP($C53,'Min Max table'!$A$5:$C$208,2,FALSE) -> 0 | W53: =VLOOKUP($C53,'Min Max table'!$A$5:$C$205,3,FALSE) -> 0
B55: Total Other revenue Income | C55: 250 | E55: =IF(OR(S55<>"",T55<>"",U55<>"",Z55<>""),"Check- see columns S-Z for info","") ->  | G55: =SUM(G45:G49) -> 0 | H55: =SUM(H45:H49) -> 0 | I55: =SUM(I45:I49) -> 0 | K55: =SUM(K45:K49) -> 0 | L55: =SUM(L45:L49) -> 0 | M55: =SUM(M45:M49) -> 0 | O55: =SUM(O45:O49) -> 0 | P55: =SUM(P45:P49) -> 0 | Q55: =SUM(Q45:Q49) -> 0 | R55: Fixed assets donated on conversion or pension donated on conversion should be excluded from other income. | V55: =VLOOKUP($C55,'Min Max table'!$A$5:$C$208,2,FALSE) -> 0 | W55: =VLOOKUP($C55,'Min Max table'!$A$5:$C$205,3,FALSE) -> 0
B57: Transfers between Revenue and Capital (line 585) | C57: 255 | D57: i | E57: =IF(OR(S57<>"",T57<>"",U57<>"",Z57<>""),"Check- see columns S-Z for info","") ->  | H57: =+I57-G57 -> 0 | L57: =+M57-K57 -> 0 | P57: =+Q57-O57 -> 0 | R57: Net transfer between revenue and capital. This should be the planned transfer from revenue reserves or income to the capital budget to spend on capital items. This should normally be a negative figure. However, occasionally a capital grant is spent as per the grant conditions, but the expense has been classified as revenue (for example, roof repairs). In this case you may need to make a transfer from capital to revenue, creating a positive transfer to revenue from capital (i.e. negative balancing line 585). | S57: =IF(OR(G57-ROUND(G57,)<>0,I57-ROUND(I57,)<>0,K57-ROUND(K57,)<>0,M57-ROUND(M57,)<>0,O57-ROUND(O57,)<>0,Q57-ROUND(Q57,)<>0),"No decimal places allowed","") ->  | T57: =IF(OR(G57<V57,I57<V57,K57<V57,L57<V57,M57<V57,O57<V57,P57<V57,Q57<V57),"Transfers values appear too high","") ->  | U57: =IF(OR(G57>W57,I57>W57,K57>W57,L57>W57,M57>W57,O57>W57,P57>W57,Q57>W57),"Transfers to capital is too high","") ->  | V57: =VLOOKUP($C57,'Min Max table'!$A$5:$C$208,2,FALSE) -> -400000 | W57: =VLOOKUP($C57,'Min Max table'!$A$5:$C$205,3,FALSE) -> 400000
B59: Total Revenue Income | C59: 298 | E59: =IF(OR(S59<>"",T59<>"",U59<>"",Z59<>""),"Check- see columns S-Z for info","") ->  | G59: =+G57+G55+G43+G53 -> 0 | H59: =+I59-G59 -> 0 | I59: =+I57+I55+I43+I53 -> 0 | K59: =+K57+K55+K43+K53 -> 0 | L59: =+M59-K59 -> 0 | M59: =+M57+M55+M43+M53 -> 0 | O59: =+O57+O55+O43+O53 -> 0 | P59: =+Q59-O59 -> 0 | Q59: =+Q57+Q55+Q43+Q53 -> 0 | V59: =VLOOKUP($C59,'Min Max table'!$A$5:$C$208,2,FALSE) -> 0 | W59: =VLOOKUP($C59,'Min Max table'!$A$5:$C$205,3,FALSE) -> 0
E60: =IF(OR(S60<>"",T60<>"",U60<>"",Z60<>""),"Check- see columns S-Z for info","") -> 
G63: Prior Year | K63: Current Year | O63: Forecast Year
B64: 2 REVENUE EXPENDITURE | G64: Actuals | H64: Calculated | I64: TOTAL | K64: Actuals | L64: Calculated | M64: TOTAL | O64: Forecast | P64: Calculated | Q64: TOTAL
G65: Sep 22 - Mar 23 | H65: Apr 23 - Aug 23 | I65: 2022/23 | K65: Sep 23 - Mar 24 | L65: Apr 24- Aug 24 | M65: 2023/24 | O65: Sep 24 - Mar 25 | P65: Apr 25- Aug 25 | Q65: 2024/25
B66: Staff costs (excluding pension movements) | C66: Line no. | D66: Help text | E66: Validation | G66: £'000 | H66: £'000 | I66: £'000 | K66: £'000 | L66: £'000 | M66: £'000 | O66: £'000 | P66: £'000 | Q66: £'000 | R66: Help Text Guidance
B67: Wages and Salaries | C67: 310 | D67: i | E67: =IF(OR(S67<>"",T67<>"",U67<>"",Z67<>""),"Check- see columns S-Z for info","") ->  | H67: =+I67-G67 -> 0 | L67: =+M67-K67 -> 0 | P67: =+Q67-O67 -> 0 | R67: Include the full costs of employment for all staff employed directly/indirectly by the trust including gross pay, bonuses, overtime, allowances, maternity and sick pay. Include any redundancy costs for staff costs in here also. Exclude third-party IT support and instead please include this cost in line 342 - ICT costs: IT support, which is listed further below in the revenue expenditure section. | S67: =IF(OR(G67-ROUND(G67,)<>0,I67-ROUND(I67,)<>0,K67-ROUND(K67,)<>0,M67-ROUND(M67,)<>0,O67-ROUND(O67,)<>0,Q67-ROUND(Q67,)<>0),"No decimal places allowed","") ->  | T67: =IF(OR(G67<V67,I67<V67,K67<V67,L67<V67,M67<V67,O67<V67,P67<V67,Q67<V67),"A value is below the minimum value allowed","") ->  | U67: =IF(OR(G67>W67,I67>W67,K67>W67,L67>W67,M67>W67,O67>W67,P67>W67,Q67>W67),"Input value is too high","") ->  | V67: =VLOOKUP($C67,'Min Max table'!$A$5:$C$208,2,FALSE) -> 0 | W67: =VLOOKUP($C67,'Min Max table'!$A$5:$C$205,3,FALSE) -> 800000
B68: Social Security Costs | C68: 311 | D68: i | H68: 0 | L68: =+M68-K68 -> 0 | P68: =+Q68-O68 -> 0 | R68: Include the employer’s national insurance and any costs of the apprenticeship levy. | S68: =IF(OR(G68-ROUND(G68,)<>0,I68-ROUND(I68,)<>0,K68-ROUND(K68,)<>0,M68-ROUND(M68,)<>0,O68-ROUND(O68,)<>0,Q68-ROUND(Q68,)<>0),"No decimal places allowed","") ->  | T68: =IF(OR(G68<V68,I68<V68,K68<V68,L68<V68,M68<V68,O68<V68,P68<V68,Q68<V68),"A value is below the minimum value allowed","") ->  | U68: =IF(OR(G68>W68,I68>W68,K68>W68,L68>W68,M68>W68,O68>W68,P68>W68,Q68>W68),"Input value is too high","") ->  | V68: =VLOOKUP($C68,'Min Max table'!$A$5:$C$208,2,FALSE) -> 0 | W68: =VLOOKUP($C68,'Min Max table'!$A$5:$C$205,3,FALSE) -> 200000
B69: Pension Cost: Teaching staff | C69: 320 | D69: i | H69: 0 | L69: =+M69-K69 -> 0 | P69: =+Q69-O69 -> 0 | R69: Include the superannuation contributions relating to teaching staff, i.e. staff members in the teachers' pension scheme including those on the leadership pay scale. It should include actual pension contribution. | S69: =IF(OR(G69-ROUND(G69,)<>0,I69-ROUND(I69,)<>0,K69-ROUND(K69,)<>0,M69-ROUND(M69,)<>0,O69-ROUND(O69,)<>0,Q69-ROUND(Q69,)<>0),"No decimal places allowed","") ->  | V69: =VLOOKUP($C69,'Min Max table'!$A$5:$C$208,2,FALSE) -> 0 | W69: =VLOOKUP($C69,'Min Max table'!$A$5:$C$205,3,FALSE) -> 200000
B70: Pension Cost: Non-teaching staff | C70: 325 | D70: i | H70: 0 | L70: =+M70-K70 -> 0 | P70: =+Q70-O70 -> 0 | R70: Include actual pension contributions and any payments to address the deficit on the LGPS fund, but not include any change in the value of the deficit calculated under FRS102. | S70: =IF(OR(G70-ROUND(G70,)<>0,I70-ROUND(I70,)<>0,K70-ROUND(K70,)<>0,M70-ROUND(M70,)<>0,O70-ROUND(O70,)<>0,Q70-ROUND(Q70,)<>0),"No decimal places allowed","") ->  | V70: =VLOOKUP($C70,'Min Max table'!$A$5:$C$208,2,FALSE) -> 0 | W70: =VLOOKUP($C70,'Min Max table'!$A$5:$C$205,3,FALSE) -> 200000
B71: Total staff costs | C71: 335 | G71: =SUM(G67:G70) -> 0 | H71: =SUM(H67:H70) -> 0 | I71: 0 | K71: =SUM(K67:K70) -> 0 | L71: =SUM(L67:L70) -> 0 | M71: =SUM(M67:M70) -> 0 | O71: =SUM(O67:O70) -> 0 | P71: =SUM(P67:P70) -> 0 | Q71: =SUM(Q67:Q70) -> 0 | V71: =VLOOKUP($C71,'Min Max table'!$A$5:$C$208,2,FALSE) -> 0 | W71: =VLOOKUP($C71,'Min Max table'!$A$5:$C$205,3,FALSE) -> 0
B73: Non - staff costs | C73: Line no. | D73: Help text | E73: Validation
B74: ICT costs - connectivity | C74: 336 | D74: i | E74: =IF(OR(S74<>"",T74<>"",U74<>"",Z74<>""),"Check- see columns S-Z for info","") ->  | F74: No data input 2022/23 | L74: =+M74-K74 -> 0 | P74: =+Q74-O74 -> 0 | R74: In here, you can include main and backup broadband lines, wireless networks, network switches, network cables, telephony, ISDN, ASDL or other dedicated phone lines, leasing costs associated with connectivity and telephony, safety and security features, such as cyber security and filtering and monitoring, if bundled with connectivity services. Please exclude, connectivity expenditure where costs are capitalised such as installation costs or where phones are not leased. Mobile phones, including hardware and contracts. | S74: =IF(OR(G74-ROUND(G74,)<>0,I74-ROUND(I74,)<>0,K74-ROUND(K74,)<>0,M74-ROUND(M74,)<>0,O74-ROUND(O74,)<>0,Q74-ROUND(Q74,)<>0),"No decimal places allowed","") ->  | T74: =IF(OR(G74<V74,I74<V74,K74<V74,L74<V74,M74<V74,O74<V74,P74<V74,Q74<V74),"A value is below the minimum value allowed","") ->  | U74: =IF(OR(G74>W74,I74>W74,K74>W74,L74>W74,M74>W74,O74>W74,P74>W74,Q74>W74),"Input value is too high","") ->  | V74: =VLOOKUP($C74,'Min Max table'!$A$5:$C$208,2,FALSE) -> 0 | W74: =VLOOKUP($C74,'Min Max table'!$A$5:$C$205,3,FALSE) -> 100000
B75: ICT costs - Onsite servers | C75: 337 | D75: i | E75: =IF(OR(S75<>"",T75<>"",U75<>"",Z75<>""),"Check- see columns S-Z for info","") ->  | F75: No data input 2022/23 | L75: 0 | P75: 0 | R75: In here, you can include purchased or leased onsite physical servers present in the school or Trust where they are not capitalised, onsite servers that support cloud-based storage across a Trust. Please exclude any cloud based storage where the school or trust does not have a physical onsite server, energy costs associated with onsite servers, expenditure on onsite servers where costs are capitalised, repair and maintenance costs. | S75: =IF(OR(G75-ROUND(G75,)<>0,I75-ROUND(I75,)<>0,K75-ROUND(K75,)<>0,M75-ROUND(M75,)<>0,O75-ROUND(O75,)<>0,Q75-ROUND(Q75,)<>0),"No decimal places allowed","") ->  | T75: =IF(OR(G75<V75,I75<V75,K75<V75,L75<V75,M75<V75,O75<V75,P75<V75,Q75<V75),"A value is below the minimum value allowed","") ->  | U75: =IF(OR(G75>W75,I75>W75,K75>W75,L75>W75,M75>W75,O75>W75,P75>W75,Q75>W75),"Input value is too high","") ->  | V75: =VLOOKUP($C75,'Min Max table'!$A$5:$C$208,2,FALSE) -> 0 | W75: =VLOOKUP($C75,'Min Max table'!$A$5:$C$205,3,FALSE) -> 100000
B76: ICT costs - IT learning resources | C76: 338 | D76: i | F76: No data input 2022/23 | L76: 0 | P76: 0 | R76: In here, please include curriculum software to support teaching and learning such as apps and lesson planning tools, subscriptions and licenses associated with educational software and websites, digital learning platforms, e-books. Please exclude resources that are used specifically for administration purposes such as management information systems, safeguarding systems, data storage, laptop, desktops and tablets, including associated licenses, other hardware such as audio-visual screens, printers and keyboards. | V76: =VLOOKUP($C76,'Min Max table'!$A$5:$C$208,2,FALSE) -> 0 | W76: =VLOOKUP($C76,'Min Max table'!$A$5:$C$205,3,FALSE) -> 100000
B77: ICT costs - Administration software and systems | C77: 339 | D77: i | F77: No data input 2022/23 | L77: 0 | P77: 0 | R77: In here, please include administration and management software such as management information systems (MIS), safeguarding, finance, cashless catering, building management and payment portals, operating systems and device licences, unless bundled into the cost of laptops, desktops and tablets. IT hosting, including cloud and data storage, cybersecurity, filtering and monitoring if not part of any connectivity services. Please exclude connectivity such as broadband and telephony, IT learning resources, hardware, inhouse or third party IT support. | V77: =VLOOKUP($C77,'Min Max table'!$A$5:$C$208,2,FALSE) -> 0 | W77: =VLOOKUP($C77,'Min Max table'!$A$5:$C$205,3,FALSE) -> 100000
B78: ICT costs - Laptops, desktops and tablets | C78: 340 | D78: i | F78: No data input 2022/23 | L78: 0 | P78: 0 | R78: In here, please include laptops, desktops and tablets purchased or leased by the school that are used for teaching, learning and administration. Peripherals such as keyboards, mouses and display screens if bundled into the cost of the devices, operating systems and licences if bundled into the cost of devices, and device management tools. Please exclude bring your own device (BYOD) schemes where pupils and or staff are required to bring their own devices such as laptops or tablets. Exclude peripherals that are not bundled into the cost of the devices, any other hardware, expenditure where device costs are capitalised, and IT support unless bundled into the purchase or hire of the devices. | V78: =VLOOKUP($C78,'Min Max table'!$A$5:$C$208,2,FALSE) -> 0 | W78: =VLOOKUP($C78,'Min Max table'!$A$5:$C$205,3,FALSE) -> 100000
B79: ICT costs - Other hardware | C79: 341 | D79: i | F79: No data input 2022/23 | L79: 0 | P79: 0 | R79: In here, please include hardware such as printers and consumables, audio-visual display screens, projectors and CCTV, peripherals such as keyboards and mouses where they are not bundled into laptop, desktop and tablet costs. Include purchase or hire of any hardware where not capitalised. Please exclude laptops, desktops and tablets, onsite servers, software unless bundled as part of the cost of the hardware, expenditure where costs are capitalised. | V79: =VLOOKUP($C79,'Min Max table'!$A$5:$C$208,2,FALSE) -> 0 | W79: =VLOOKUP($C79,'Min Max table'!$A$5:$C$205,3,FALSE) -> 100000
B80: ICT costs - IT support | C80: 342 | D80: i | F80: No data input 2022/23 | L80: 0 | P80: 0 | R80: In here, please include third-party IT support contracts, maintenance and repair of technology, IT related consultancy when not bundled into any other services. Also include the estimated costs of IT support if these are bundled into other services. Please exclude inhouse IT support such as a network or IT manager. This will be included in staff costs. | V80: =VLOOKUP($C80,'Min Max table'!$A$5:$C$208,2,FALSE) -> 0 | W80: =VLOOKUP($C80,'Min Max table'!$A$5:$C$205,3,FALSE) -> 100000
B81: Other Staff Support Costs | C81: 330 | D81: i | E81: =IF(OR(S81<>"",T81<>"",U81<>"",Z81<>""),"Check- see columns S-Z for info","") ->  | H81: =+I81-G81 -> 0 | L81: 0 | P81: 0 | R81: Include any indirect staffing costs such as training and development, staff travel, childcare vouchers and DBS checks. | S81: =IF(OR(G81-ROUND(G81,)<>0,I81-ROUND(I81,)<>0,K81-ROUND(K81,)<>0,M81-ROUND(M81,)<>0,O81-ROUND(O81,)<>0,Q81-ROUND(Q81,)<>0),"No decimal places allowed","") ->  | T81: =IF(OR(G81<V81,I81<V81,K81<V81,L81<V81,M81<V81,O81<V81,P81<V81,Q81<V81),"A value is below the minimum value allowed","") ->  | U81: =IF(OR(G81>W81,I81>W81,K81>W81,L81>W81,M81>W81,O81>W81,P81>W81,Q81>W81),"Input value is too high","") ->  | V81: =VLOOKUP($C81,'Min Max table'!$A$5:$C$208,2,FALSE) -> 0 | W81: =VLOOKUP($C81,'Min Max table'!$A$5:$C$205,3,FALSE) -> 200000
B82: Other non staff support costs (cash) | C82: 378 | D82: i | H82: =+I82-G82 -> 0 | L82: 0 | P82: 0 | R82: Include any other revenue expenditure not covered by the above categories e.g. costs of all educational and non-educational supplies and services (including bought in supply cover and HR/Payroll services from the Local Authority), RPA contributions, building repairs and maintenance costs, (including any service level of agreements that relate to the upkeep and maintenance of the school estate) legal and governance costs, land and buildings valuations, bank charges and interest. Don't include revenue deficits on conversion/ transfer or any non cash costs such as unwinding of the discount, impairment, depreciation. Don't include costs relating to ICT in here. Include any ICT costs within lines 336 - 342 above. If your trust has any RAAC related expenditure that hasn’t been capitalised, please include this in here. | T82: =IF(OR(G82<V82,I82<V82,K82<V82,L82<V82,M82<V82,O82<V82,P82<V82,Q82<V82),"A value is below the minimum value allowed","") ->  | U82: =IF(OR(G82>W82,I82>W82,K82>W82,L82>W82,M82>W82,O82>W82,P82>W82,Q82>W82),"Input value is too high","") ->  | V82: =VLOOKUP($C82,'Min Max table'!$A$5:$C$208,2,FALSE) -> 0 | W82: =VLOOKUP($C82,'Min Max table'!$A$5:$C$205,3,FALSE) -> 800000
B83: Subtotal support costs | C83: 349 | G83: =SUM(G81:G82) -> 0 | H83: =SUM(H81:H82) -> 0 | I83: =SUM(I81:I82) -> 0 | K83: =SUM(K74:K82) -> 0 | L83: =SUM(L74:L82) -> 0 | M83: =SUM(M74:M82) -> 0 | O83: =SUM(O74:O82) -> 0 | P83: =SUM(P74:P82) -> 0 | Q83: =SUM(Q74:Q82) -> 0 | V83: =VLOOKUP($C83,'Min Max table'!$A$5:$C$208,2,FALSE) -> 0 | W83: =VLOOKUP($C83,'Min Max table'!$A$5:$C$205,3,FALSE) -> 0
B85: Disclosure purposes only | C85: Line no. | D85: Help text | E85: Validation
B86: Building repair & maintenance / Building improvements | C86: 379 | D86: i | E86: =IF(OR(S86<>"",T86<>"",U86<>"",Z86<>""),"Check- see columns S-Z for info","") ->  | H86: =+I86-G86 -> 0 | L86: =+M86-K86 -> 0 | P86: =+Q86-O86 -> 0 | R86: For disclosure only: Include any expenditure that relates to building repair & maintenance / building improvements that have not been capitalised. For example, this could include: roof repairs, heating / boiler replacements, general maintenance and repairs to the building. Only include costs in here that have not been added to the trusts balance sheet as a fixed asset. You do not need to alter line 378, as this line (379) is a disclosure only and any repair and maintenance costs within 378 will not be double counted. | S86: =IF(OR(G86-ROUND(G86,)<>0,I86-ROUND(I86,)<>0,K86-ROUND(K86,)<>0,M86-ROUND(M86,)<>0,O86-ROUND(O86,)<>0,Q86-ROUND(Q86,)<>0),"No decimal places allowed","") ->  | T86: =IF(OR(G86<V86,I86<V86,K86<V86,L86<V86,M86<V86,O86<V86,P86<V86,Q86<V86),"A value is below the minimum value allowed","") ->  | U86: =IF(OR(G86>W86,I86>W86,K86>W86,L86>W86,M86>W86,O86>W86,P86>W86,Q86>W86),"Input value is too high","") ->  | V86: =VLOOKUP($C86,'Min Max table'!$A$5:$C$208,2,FALSE) -> 0 | W86: =VLOOKUP($C86,'Min Max table'!$A$5:$C$205,3,FALSE) -> 200000 | X86: ="QU"&AB86 -> QU379 | Y86: =IF(Z86="","","Please refer to "&X86&" in the validations table") ->  | Z86: =IF(ISERROR(AC86),"You have input something incorrectly",IF(AC86>0,AD86,"")) ->  | AB86: 379 | AC86: =IF(OR($G$86>0,$H$86>0,$I$86>0,$K$86>0,$L$86>0,$M$86>0,$O$86>0,$P$86>0,$Q$86>0),AB86,0) -> 0 | AD86: Typically what percentage (%) of the amount entered in line 379 has been funded through capital routes: Enter the estimated percentage of building repair & maintenance / building improvement costs that have been funded through capital routes. This can include: devolved formula capital (DFC) grants from the ESFA, condition improvement funding (CIF), school condition allocation (SCA) funding, other DfE capital grants that have been spent on general repairs and maintenance of the trust. Please enter this figure as an actual figure. For example, 98% would be entered as 98. If all of your repairs and maintenance costs in line 379 have been funded through revenue, please enter 0 (zero) in here. | AE86: IF(OR($G$93>0,$H$93>0,$I$93>0,$K$93>0,$L$93>0,$M$93>0,$O$93>0,$P$93>0,$Q$93>0),AB93,0)
B88: Deficit transfers on conversion | C88: Line no. | D88: Help text | E88: Validation
B89: Revenue deficit transfer of an existing academy in / (out) of the trust | C89: 350 | D89: i | E89: =IF(OR(S89<>"",T89<>"",U89<>"",Z89<>""),"Check- see columns S-Z for info","") ->  | H89: =+I89-G89 -> 0 | L89: =+M89-K89 -> 0 | P89: =+Q89-O89 -> 0 | R89: Include all revenue deficit payable following the transfer of an existing academy, excluding pensions and fixed assets. Where there is a transfer of a deficit into the trust, enter this figure as a positive figure, increasing your expenditure. Where there is a transfer of a deficit out of the trust, enter this as a negative figure, decreasing your expenditure. | S89: =IF(OR(G89-ROUND(G89,)<>0,I89-ROUND(I89,)<>0,K89-ROUND(K89,)<>0,M89-ROUND(M89,)<>0,O89-ROUND(O89,)<>0,Q89-ROUND(Q89,)<>0),"No decimal places allowed","") ->  | T89: =IF(OR(G89<V89,I89<V89,K89<V89,L89<V89,M89<V89,O89<V89,P89<V89,Q89<V89),"A value is below the minimum value allowed","") ->  | U89: =IF(OR(G89>W89,I89>W89,K89>W89,L89>W89,M89>W89,O89>W89,P89>W89,Q89>W89),"Input value is too high","") ->  | V89: =VLOOKUP($C89,'Min Max table'!$A$5:$C$208,2,FALSE) -> -200000 | W89: =VLOOKUP($C89,'Min Max table'!$A$5:$C$205,3,FALSE) -> 200000
B90: Revenue deficit transfer to academy on conversion | C90: 351 | D90: i | H90: 0 | L90: =+M90-K90 -> 0 | P90: =+Q90-O90 -> 0 | R90: Include revenue deficit payable on conversion from local authorities, e.g. deficits received from local authorities on conversion excluding pensions and fixed assets. Enter this as a positive figure. | S90: =IF(OR(G90-ROUND(G90,)<>0,I90-ROUND(I90,)<>0,K90-ROUND(K90,)<>0,M90-ROUND(M90,)<>0,O90-ROUND(O90,)<>0,Q90-ROUND(Q90,)<>0),"No decimal places allowed","") ->  | T90: =IF(OR(G90<V90,I90<V90,K90<V90,L90<V90,M90<V90,O90<V90,P90<V90,Q90<V90),"A value is below the minimum value allowed","") ->  | U90: =IF(OR(G90>W90,I90>W90,K90>W90,L90>W90,M90>W90,O90>W90,P90>W90,Q90>W90),"Input value is too high","") ->  | V90: =VLOOKUP($C90,'Min Max table'!$A$5:$C$208,2,FALSE) -> 0 | W90: =VLOOKUP($C90,'Min Max table'!$A$5:$C$205,3,FALSE) -> 200000
B91: Subtotal transfer deficit | C91: 352 | G91: =SUM(G89:G90) -> 0 | H91: =SUM(H89:H90) -> 0 | I91: 0 | K91: =SUM(K89:K90) -> 0 | L91: =SUM(L89:L90) -> 0 | M91: =SUM(M89:M90) -> 0 | O91: =SUM(O89:O90) -> 0 | P91: =SUM(P89:P90) -> 0 | Q91: =SUM(Q89:Q90) -> 0 | V91: =VLOOKUP($C91,'Min Max table'!$A$5:$C$208,2,FALSE) -> 0 | W91: =VLOOKUP($C91,'Min Max table'!$A$5:$C$205,3,FALSE) -> 0
B93: Other Non cash costs | C93: 395 | D93: i | E93: =IF(OR(S93<>"",T93<>"",U93<>"",Z93<>""),"Check- see columns S-Z for info","") ->  | H93: =+I93-G93 -> 0 | L93: =+M93-K93 -> 0 | P93: =+Q93-O93 -> 0 | R93: Only include any non cash costs that flow into revenue reserves. If non cash costs feed the pensions reserve or the capital fund then please exclude. An example is where depreciation flows into the capital fund- in this case this should not be included here. Instead it should be disclosed in the other items section below. If you include impairment charges in revenue reserves then please provide an explanation following the validation query. Please include other non cash items such as provisions ( but not pension liabilities) or unwinding of the discount. | S93: =IF(OR(G93-ROUND(G93,)<>0,H93-ROUND(H93,)<>0,I93-ROUND(I93,)<>0,K93-ROUND(K93,)<>0,L93-ROUND(L93,)<>0,M93-ROUND(M93,)<>0,O93-ROUND(O93,)<>0,P93-ROUND(P93,)<>0,Q93-ROUND(Q93,)<>0),"No decimal places allowed","") ->  | T93: =IF(OR(G93<V93,H93<V93,I93<V93,K93<V93,L93<V93,M93<V93,O93<V93,P93<V93,Q93<V93),"A value is below the minimum value allowed","") ->  | U93: =IF(OR(G93>W93,H93>W93,I93>W93,K93>W93,L93>W93,M93>W93,O93>W93,P93>W93,Q93>W93),"Input value is too high","") ->  | V93: =VLOOKUP($C93,'Min Max table'!$A$5:$C$208,2,FALSE) -> 0 | W93: =VLOOKUP($C93,'Min Max table'!$A$5:$C$205,3,FALSE) -> 200000 | X93: ="QU"&AB93 -> QU23 | Y93: =IF(Z93="","","Please refer to "&X93&" in the validations table") ->  | Z93: =IF(AC93>0,AD93,"") ->  | AA93: =VLOOKUP(X93,'Trust validations table'!$A$15:$E$346,4,FALSE) -> Revenue expenditure: Line 395 - Other Non cash costs | AB93: 23 | AC93: =IF(OR($G$93>0,$H$93>0,$I$93>0,$K$93>0,$L$93>0,$M$93>0,$O$93>0,$P$93>0,$Q$93>0),AB93,0) -> 0 | AD93: Provide further details of your non-cash costs. | AE93: IF(OR($G$86>0,$H$86>0,$I$86,$K$86>0,$L$86>0,$M$86>0,$O$86>0,$P$86>0,$Q$86>0),AB86,0)
B95: Total revenue expenditure | C95: 380 | E95: =IF(OR(S95<>"",T95<>"",U95<>"",Z95<>""),"Check- see columns S-Z for info","") ->  | G95: =SUM(G71, G83, G91,G93) -> 0 | H95: =SUM(H71, H83, H91,H93) -> 0 | I95: =SUM(I71, I83, I91,I93) -> 0 | K95: =SUM(K71,K83,K91,K93) -> 0 | L95: =SUM(L71,L83,L91,L93) -> 0 | M95: 0 | O95: 0 | P95: 0 | Q95: 0 | V95: =VLOOKUP($C95,'Min Max table'!$A$5:$C$208,2,FALSE) -> 0 | W95: =VLOOKUP($C95,'Min Max table'!$A$5:$C$205,3,FALSE) -> 0 | X95: ="QU"&AB95 -> QU5 | Y95: =IF(Z95="","","Please refer to "&X95&" in the validations table") ->  | Z95: =IF(ISERROR(AC95),"Your income or expense totals are NIL for Yr1- is this correct?",IF(AC95>0,AD95,"")) ->  | AA95: =VLOOKUP(X95,'Trust validations table'!$A$15:$E$346,4,FALSE) -> Revenue expenditure: Line 380 - Total revenue expenditure | AB95: 5 | AC95: =IF($Q$95=0,0,IF(($Q$67+$Q$68+$Q$69+$Q$70)/$Q$95>0.85,$AB95,0)) -> 0 | AD95: Your forecast year staff costs (lines 310, 311, 320 and 325) are forecast to be more than 85% of your total revenue expenditure. Please provide further information on your staff costs and the high proportion it represents of total costs | AE95: IF($Q$83=0,0,IF(($Q$65+$Q$66+$Q$67+$Q$68)/$Q$83>0.85,$AB83,0))
G98: Prior Year | K98: Current Year | O98: Forecast Year
B99: 3 REVENUE TOTALS | E99: =IF(OR(S99<>"",T99<>"",U99<>"",Z99<>""),"Check- see columns S-Z for info","") -> Check- see columns S-Z for info | G99: Actuals | H99: Calculated | I99: TOTAL | K99: Calculated | L99: Calculated | M99: TOTAL | O99: Calculated | P99: Calculated | Q99: TOTAL | X99: ="QU"&AB99 -> QU3 | Y99: =IF(Z99="","","Please refer to "&X99&" in the validations table") -> Please refer to QU3 in the validations table | Z99: =IF(ISERROR(AC99),"Income totals are zero in any year - is this correct?",IF(AC99>0,AD99,"")) -> Income totals are zero in any year - is this correct? | AA99: =VLOOKUP(X99,'Trust validations table'!$A$15:$E$346,4,FALSE) -> Revenue totals | AB99: 3 | AC99: =IF(AND($Q$59/$M$59<0.9,$Q$95/$M$95>0.9),AB99,0) ->  | AD99: Tell us why your forecast year income is forecast to decline by more than 10% compared to the current year, without a corresponding decrease in expenditure. | AE99: IF(AND($Q$61/$M$61<0.9,$Q$88/$M$88>0.9),AB92,0)
E100: Check- see columns S-Z for info | G100: Sep 22 - Mar 23 | H100: Apr 23 - Aug 23 | I100: 2022/23 | K100: Sep 23 - Mar 24 | L100: Apr 24- Aug 24 | M100: 2023/24 | O100: Sep 24 - Mar 25 | P100: Apr 25- Aug 25 | Q100: 2024/25 | X100: ="QU"&AB100 -> QU4 | Y100: =IF(Z100="","","Please refer to "&X100&" in the validations table") -> Please refer to QU4 in the validations table | Z100: =IF(ISERROR(AC100),"Expenditure totals are zero for any year - is this correct?",IF(AC100>0,AD100,"")) -> Expenditure totals are zero for any year - is this correct? | AA100: =VLOOKUP(X100,'Trust validations table'!$A$15:$E$346,4,FALSE) -> Revenue totals | AB100: 4 | AC100: =IF(AND($Q$59/$M$59<1.1,$Q$95/$M$95>1.1),AB100,0) ->  | AD100: Tell us why forecast year expenditure is forecast to increase by more than 10% compared to the current year, without a corresponding increase in income. | AE100: IF(AND($Q$61/$M$61<1.1,$Q$88/$M$88>1.1),AB93,0)
G101: £'000 | H101: £'000 | I101: £'000 | K101: £'000 | L101: £'000 | M101: £'000 | O101: £'000 | P101: £'000 | Q101: £'000
B102: Net revenue income/(expenditure) for the period | C102: 400 | E102: =IF(OR(S102<>"",T102<>"",U102<>"",Z102<>""),"Check- see columns S-Z for info","") ->  | G102: =+G59-G95 -> 0 | H102: =+H59-H95 -> 0 | I102: =+I59-I95 -> 0 | K102: =+K59-K95 -> 0 | L102: =+L59-L95 -> 0 | M102: =+M59-M95 -> 0 | O102: =+O59-O95 -> 0 | P102: =+P59-P95 -> 0 | Q102: =+Q59-Q95 -> 0 | V102: =VLOOKUP($C102,'Min Max table'!$A$5:$C$208,2,FALSE) -> 0 | W102: =VLOOKUP($C102,'Min Max table'!$A$5:$C$205,3,FALSE) -> 0 | X102: ="QU"&AB102 -> QU6 | Y102: =IF(Z102="","","Please refer to "&X102&" in the validations table") ->  | Z102: =IF(AC102>0,AD102,"") ->  | AA102: =VLOOKUP(X102,'Trust validations table'!$A$15:$E$346,4,FALSE) -> Revenue totals: Line 400 - Net revenue income/(expenditure) for the period | AB102: 6 | AC102: =IF(OR($I$102<0,$M$102<0,$Q$102<0),AB102,0) -> 0 | AD102: The budget shows a deficit on revenue funds in the prior year, current year or forecast year. Tell us: - why revenue income/(expenditure) balance has fallen into a deficit position - what action you're taking to restore the revenue income/(expenditure) balance to a surplus - when you're likely to achieve a balanced budget, as required by the Academy Trust Handbook - whether you have an agreed recovery plan with the ESFA | AE102: IF(OR($I$90<0,$M$90<0,$Q$90),AB90,0)
E103: =IF(OR(S103<>"",T103<>"",U103<>"",Z103<>""),"Check- see columns S-Z for info","") ->  | G103: Actuals | H103: Calculated | K103: Actuals | L103: Calculated | O103: Calculated | P103: Calculated
G104: Balance b/f 1 Sep 22 | H104: Balance b/f 1 Apr 23 | K104: Balance b/f 1 Sep 23 | L104: Balance b/f 1 Apr 24 | O104: Balance b/f 1 Sep 24 | P104: Balance b/f 1 Apr 25
G105: £'000 | H105: £'000 | K105: £'000 | L105: £'000 | O105: £'000 | P105: £'000 | R105: Help Text Guidance
B106: Balance b/f from previous period | C106: 410 | D106: i | E106: =IF(OR(S106<>"",T106<>"",U106<>"",Z106<>""),"Check- see columns S-Z for info","") -> Check- see columns S-Z for info | H106: =G111 -> 0 | K106: =H111 -> 0 | L106: =K111 -> 0 | O106: =L111 -> 0 | P106: =O111 -> 0 | R106: Input the closing balance of revenue funds from the previous financial year. The figures for this can be found in your statutory accounts (please refer to the AAD for guidance). Assuming no structural changes, the amount should agree to the sum of ‘Endowment Fund’, ‘Restricted Income Fund’ and ‘Unrestricted Fund’ in the Balance Sheet Summary of the prior year accounts return. Don’t include capital funds or pension reserves. Do include any gains / losses on endowments. We have pre-populated your balance b/f for 1 Sep 22 with the figures from your prior year accounts return. A worked example is within the guidance. | S106: =IF(OR(G106-ROUND(G106,)<>0),"No decimal places allowed","") ->  | T106: =IF(OR(G106<V106),"Input value is too low","") ->  | U106: =IF(OR(G106>W106),"Input value is too high","") ->  | V106: =VLOOKUP($C106,'Min Max table'!$A$5:$C$208,2,FALSE) -> -400000 | W106: =VLOOKUP($C106,'Min Max table'!$A$5:$C$205,3,FALSE) -> 400000 | X106: ="QU"&AB106 -> QU7 | Y106: =IF(Z106="","","Please refer to "&X106&" in the validations table") -> Please refer to QU7 in the validations table | Z106: =IF(AC106>0,AD106,"") -> Explain where the opening balance (410) is derived from. This should be from the prior year's Accounts Return. | AA106: =VLOOKUP(X106,'Trust validations table'!$A$15:$E$346,4,FALSE) -> Revenue totals: Line 410 - Balance b/f from previous period | AB106: 7 | AC106: 9 | AD106: Explain where the opening balance (410) is derived from. This should be from the prior year's Accounts Return. | AE106: IF(OR(G94="",G94=0,G94<>0),AB94,0)
E107: =IF(OR(S107<>"",T107<>"",U107<>"",Z107<>""),"Check- see columns S-Z for info","") -> Check- see columns S-Z for info | X107: ="QU"&AB107 -> QU8 | Y107: =IF(Z107="","","Please refer to "&X107&" in the validations table") -> Please refer to QU8 in the validations table | Z107: =IF(AC107>0,AD107,"") -> Please explain why the balance brought forward from previous period (410) is £0 | AA107: =VLOOKUP(X107,'Trust validations table'!$A$15:$E$346,4,FALSE) -> Revenue totals | AB107: 8 | AC107: =IF(OR(G106="",$G$106=0),AB107,0) -> 8 | AD107: Please explain why the balance brought forward from previous period (410) is £0 | AE107: IF(OR(G94="",$G$94=0),AB95,0)
G108: Calculated | H108: Calculated | K108: Calculated | L108: Calculated | O108: Calculated | P108: Calculated
G109: Balance c/f 31 Mar 23 | H109: Balance c/f 31 Aug 23 | K109: Balance c/f 31 Mar 24 | L109: Balance c/f 31 Aug 25 | O109: Balance c/f 31 Mar 25 | P109: Balance c/f 31 Aug 25
E110: =IF(OR(S110<>"",T110<>"",U110<>"",Z110<>""),"Check- see columns S-Z for info","") ->  | G110: £'000 | H110: £'000 | K110: £'000 | L110: £'000 | O110: £'000 | P110: £'000 | X110: ="QU"&AB110 -> QU9 | Y110: =IF(Z110="","","Please refer to "&X110&" in the validations table") ->  | Z110: =IF(AC110>0,AD110,"") ->  | AA110: =VLOOKUP(X110,'Trust validations table'!$A$15:$E$346,4,FALSE) -> Revenue totals | AB110: 9 | AC110: =IF(AND($Q$102<0,$P$111>0,$Q$102*-1>$P$111),AB110,0) -> 0 | AD110: For the forecast year, you've forecast a positive closing balance but a high in-year deficit. This can lead to reserves being depleted in future years and the academy being in a deficit position. Tell us what actions you're taking to ensure a balanced/surplus budget will be maintained." | AE110: IF(AND($Q$90<0,$P$99>0,$Q$90*-1>$P$99),AB98,0)
B111: Balance c/f to next period | C111: 430 | D111: i | E111: =IF(OR(S111<>"",T111<>"",U111<>"",Z111<>""),"Check- see columns S-Z for info","") ->  | G111: =+G102+G106 -> 0 | H111: =+H102+H106 -> 0 | K111: =+K102+K106 -> 0 | L111: =+L102+L106 -> 0 | O111: =+O102+O106 -> 0 | P111: =+P102+P106 -> 0 | R111: This is an automatic sum of lines 400 and 410. Please provide an explanation where there are any deficits. | V111: =VLOOKUP($C111,'Min Max table'!$A$5:$C$208,2,FALSE) -> 0 | W111: =VLOOKUP($C111,'Min Max table'!$A$5:$C$205,3,FALSE) -> 0 | X111: ="QU"&AB111 -> QU10 | Y111: =IF(Z111="","","Please refer to "&X111&" in the validations table") ->  | Z111: =IF(AC111>0,AD111,"") ->  | AA111: =VLOOKUP(X111,'Trust validations table'!$A$15:$E$346,4,FALSE) -> Revenue totals: Line 430 - Balance c/f to next period | AB111: 10 | AC111: =IF(OR(L111<0,H111<0,P111<0),AB111,0) -> 0 | AD111: Your closing reserves for either the prior year, current year or forecast year are currently in deficit. What are your plans to return to a balanced/surplus position? | AE111: IF(OR(L99<0,H99<0,P99<0),AB99,0)
E114: =IF((L111/M59>=0.2),"Check- see column Z for info","") ->  | X114: ="QU"&AB114 -> QU430 | Y114: =IF(Z114="","","Please refer to "&X114&" in the validations table") ->  | Z114: =IF(AC114>0,AD114,"") ->  | AA114: 430 divided by 298 equal to or greater than 20% | AB114: 430 | AC114: =IF(OR(L111/M59>=0.2),AB114,0) ->  | AD114: The figures you have entered show that your trust has a reserve balance of more than 20% of your income for April 2022 to August 2023. If applicable, what capital projects (specific building or estates projects; non-building capital works etc..) are planned, how much will they cost and when are they expected to complete? Or if not for capital works, what are you holding reserves for (staff retention & development; strategic development/growth; future uncertainty; other)? | AE114: IFERROR(IF(OR(P104/Q61>=0.2),AB107,0),"")
G126: Prior Year | K126: Current Year | O126: Forecast Year
B127: CAPITAL | G127: Actuals | H127: Calculated | I127: TOTAL | K127: Actuals | L127: Calculated | M127: TOTAL | O127: Forecast | P127: Calculated | Q127: TOTAL
B128: 4 CAPITAL INCOME | G128: Sep 22 - Mar 23 | H128: Apr 23 - Aug 23 | I128: 2022/23 | K128: Sep 23 - Mar 24 | L128: Apr 24- Aug 24 | M128: 2023/24 | O128: Sep 24 - Mar 25 | P128: Apr 25- Aug 25 | Q128: 2024/25
B129: DfE/ESFA income- Capital | C129: Line no. | D129: Help text | E129: Validation | G129: £'000 | H129: £'000 | I129: £'000 | K129: £'000 | L129: £'000 | M129: £'000 | O129: £'000 | P129: £'000 | Q129: £'000 | R129: Help Text Guidance
B130: Devolved formula capital | C130: 510 | D130: i | E130: =IF(OR(S130<>"",T130<>"",U130<>"",Z130<>""),"Check- see columns S-Z for info","") ->  | H130: =+I130-G130 -> 0 | L130: =+M130-K130 -> 0 | P130: =+Q130-O130 -> 0 | R130: Input total amount of capital funding grant receivable from ESFA. | S130: =IF(OR(G130-ROUND(G130,)<>0,I130-ROUND(I130,)<>0,K130-ROUND(K130,)<>0,M130-ROUND(M130,)<>0,O130-ROUND(O130,)<>0,Q130-ROUND(Q130,)<>0),"No decimal places allowed","") ->  | T130: =IF(OR(G130<V130,I130<V130,K130<V130,L130<V130,M130<V130,O130<V130,P130<V130,Q130<V130),"A value is below the minimum value allowed","") ->  | U130: =IF(OR(G130>W130,I130>W130,K130>W130,L130>W130,M130>W130,O130>W130,P130>W130,Q130>W130),"Input value is too high","") ->  | V130: =VLOOKUP($C130,'Min Max table'!$A$5:$C$208,2,FALSE) -> -400000 | W130: =VLOOKUP($C130,'Min Max table'!$A$5:$C$205,3,FALSE) -> 400000
B131: Value of any capital donation of an asset from the ESFA for PSBP/Free Schools programme | C131: 520 | D131: i | H131: =+I131-G131 -> 0 | L131: =+M131-K131 -> 0 | P131: =+Q131-O131 -> 0 | R131: Include the value of any asset that has been transferred, or due to be transferred from the ESFA to the trust where the ESFA has procured the capital works centrally under the Priority Schools Building Programme (PSBP) or Free Schools Programme. This should equal row 605. | S131: =IF(OR(G131-ROUND(G131,)<>0,I131-ROUND(I131,)<>0,K131-ROUND(K131,)<>0,M131-ROUND(M131,)<>0,O131-ROUND(O131,)<>0,Q131-ROUND(Q131,)<>0),"No decimal places allowed","") ->  | T131: =IF(OR(G131<V131,I131<V131,K131<V131,L131<V131,M131<V131,O131<V131,P131<V131,Q131<V131),"A value is below the minimum value allowed","") ->  | U131: =IF(OR(G131>W131,I131>W131,K131>W131,L131>W131,M131>W131,O131>W131,P131>W131,Q131>W131),"Input value is too high","") ->  | V131: =VLOOKUP($C131,'Min Max table'!$A$5:$C$208,2,FALSE) -> -400000 | W131: =VLOOKUP($C131,'Min Max table'!$A$5:$C$205,3,FALSE) -> 400000
B132: Other DfE income - Capital | C132: 530 | D132: i | H132: =+I132-G132 -> 0 | L132: =+M132-K132 -> 0 | P132: 0 | R132: Include the amount of any capital grants received from the ESFA that is not included in lines 510 or 520, for example CIF/SCA funding. | S132: =IF(OR(G132-ROUND(G132,)<>0,I132-ROUND(I132,)<>0,K132-ROUND(K132,)<>0,M132-ROUND(M132,)<>0,O132-ROUND(O132,)<>0,Q132-ROUND(Q132,)<>0),"No decimal places allowed","") ->  | V132: =VLOOKUP($C132,'Min Max table'!$A$5:$C$208,2,FALSE) -> -400000 | W132: =VLOOKUP($C132,'Min Max table'!$A$5:$C$205,3,FALSE) -> 400000
B133: Other DfE family Capital Grants | C133: 540 | D133: i | H133: =+I133-G133 -> 0 | L133: =+M133-K133 -> 0 | P133: 0 | R133: Enter the value of any capital grants from DfE family bodies, such as the national college, ESFA, equalities and human rights commission, office of the children's commissioner or the standards and testing agency. | S133: =IF(OR(G133-ROUND(G133,)<>0,I133-ROUND(I133,)<>0,K133-ROUND(K133,)<>0,M133-ROUND(M133,)<>0,O133-ROUND(O133,)<>0,Q133-ROUND(Q133,)<>0),"No decimal places allowed","") ->  | V133: =VLOOKUP($C133,'Min Max table'!$A$5:$C$208,2,FALSE) -> -400000 | W133: =VLOOKUP($C133,'Min Max table'!$A$5:$C$205,3,FALSE) -> 400000
B134: Total DfE Capital Income | C134: 550 | G134: =SUM(G130:G133) -> 0 | H134: =+I134-G134 -> 0 | I134: =SUM(I130:I133) -> 0 | K134: =SUM(K130:K133) -> 0 | L134: =+M134-K134 -> 0 | M134: =SUM(M130:M133) -> 0 | O134: =SUM(O130:O133) -> 0 | P134: 0 | Q134: =SUM(Q130:Q133) -> 0 | V134: =VLOOKUP($C134,'Min Max table'!$A$5:$C$208,2,FALSE) -> 0 | W134: =VLOOKUP($C134,'Min Max table'!$A$5:$C$205,3,FALSE) -> 0
B136: Other income - Capital | C136: Line no. | D136: Help text | E136: Validation
B137: Local authority capital income (cash) | C137: 560 | D137: i | E137: =IF(OR(S137<>"",T137<>"",U137<>"",Z137<>""),"Check- see columns S-Z for info","") ->  | H137: =+I137-G137 -> 0 | L137: =+M137-K137 -> 0 | P137: 0 | R137: Include any local authority capital funding receivable. This should be cash payments only. Include unspent grants (cash) including any capital balances on conversion. This is the cash reserves balances on conversion only. | S137: =IF(OR(G137-ROUND(G137,)<>0,I137-ROUND(I137,)<>0,K137-ROUND(K137,)<>0,M137-ROUND(M137,)<>0,O137-ROUND(O137,)<>0,Q137-ROUND(Q137,)<>0),"No decimal places allowed","") ->  | T137: =IF(OR(G137<V137,I137<V137,K137<V137,L137<V137,M137<V137,O137<V137,P137<V137,Q137<V137),"A value is below the minimum value allowed","") ->  | U137: =IF(OR(G137>W137,I137>W137,K137>W137,L137>W137,M137>W137,O137>W137,P137>W137,Q137>W137),"Input value is too high","") ->  | V137: =VLOOKUP($C137,'Min Max table'!$A$5:$C$208,2,FALSE) -> -400000 | W137: =VLOOKUP($C137,'Min Max table'!$A$5:$C$205,3,FALSE) -> 400000 | X137: ="QU"&AB137 -> QU13 | Y137: =IF(Z137="","","Please refer to "&X137&" in the validations table") ->  | Z137: =IF(AC137>0,AD137,"") ->  | AA137: =VLOOKUP(X137,'Trust validations table'!$A$15:$E$346,4,FALSE) -> Capital income: Line 560 - Local authority capital income (cash) | AB137: 13 | AC137: =IF(OR($G$137>0,$H$137>0,$I$137>0,$K$137>0,$L$137>0,$M$137>0,$O$137>0,$P$137>0,$Q$137>0),AB137,0) -> 0 | AD137: Confirm that this relates to cash receivables only and doesn't include donated assets or conversions. | AE137: IF(OR($G$113>0,$H$113>0,$I$113>0,$K$113>0,$L$113>0,$M$113>0,$O$113>0,$P$113>0,$Q$113>0),AB113,0)
B138: Non Government capital income | C138: 570 | D138: i | H138: =+I138-G138 -> 0 | L138: =+M138-K138 -> 0 | P138: 0 | R138: Please include voluntary, private capital, donations for use as capital or any other non government capital income. Please specify in the comments section. | S138: =IF(OR(G138-ROUND(G138,)<>0,I138-ROUND(I138,)<>0,K138-ROUND(K138,)<>0,M138-ROUND(M138,)<>0,O138-ROUND(O138,)<>0,Q138-ROUND(Q138,)<>0),"No decimal places allowed","") ->  | T138: =IF(OR(G138<V138,I138<V138,K138<V138,L138<V138,M138<V138,O138<V138,P138<V138,Q138<V138),"A value is below the minimum value allowed","") ->  | U138: =IF(OR(G138>W138,I138>W138,K138>W138,L138>W138,M138>W138,O138>W138,P138>W138,Q138>W138),"Input value is too high","") ->  | V138: =VLOOKUP($C138,'Min Max table'!$A$5:$C$208,2,FALSE) -> -400000 | W138: =VLOOKUP($C138,'Min Max table'!$A$5:$C$205,3,FALSE) -> 400000 | X138: ="QU"&AB138 -> QU11 | Y138: =IF(Z138="","","Please refer to "&X138&" in the validations table") ->  | Z138: =IF(AC138>0,AD138,"") ->  | AA138: =VLOOKUP(X138,'Trust validations table'!$A$15:$E$346,4,FALSE) -> Capital income: Line 570 - Non Government capital income | AB138: 11 | AC138: =IF(OR($G$138>0,$H$138>0,$I$138>0,$K$138>0,$L$138>0,$M$138>0,$O$138>0,$P$138>0,$Q$138>0),AB138,0) -> 0 | AD138: Provide further details of your non government capital income | AE138: IF(OR($G$114>0,$H$114>0,$I$114>0,$K$114>0,$L$114>0,$M$114>0,$O$114>0,$P$114>0,$Q$114>0),AB114,0)
B139: Other Government Grant capital income | C139: 571 | D139: i | H139: =+I139-G139 -> 0 | L139: =+M139-K139 -> 0 | P139: 0 | R139: Include any other government capital grants received, which are not included in the above lines. Please specify which government body the grants are from in the comments column. | S139: =IF(OR(G139-ROUND(G139,)<>0,I139-ROUND(I139,)<>0,K139-ROUND(K139,)<>0,M139-ROUND(M139,)<>0,O139-ROUND(O139,)<>0,Q139-ROUND(Q139,)<>0),"No decimal places allowed","") ->  | V139: =VLOOKUP($C139,'Min Max table'!$A$5:$C$208,2,FALSE) -> -400000 | W139: =VLOOKUP($C139,'Min Max table'!$A$5:$C$205,3,FALSE) -> 400000 | X139: ="QU"&AB139 -> QU12 | Y139: =IF(Z139="","","Please refer to "&X139&" in the validations table") ->  | Z139: =IF(AC139>0,AD139,"") ->  | AA139: =VLOOKUP(X139,'Trust validations table'!$A$15:$E$346,4,FALSE) -> Capital income: Line 571 - Other Government Grant capital income | AB139: 12 | AC139: =IF(OR($G$139>0,$H$139>0,$I$139>0,$K$139>0,$L$139>0,$M$139>0,$O$139>0,$P$139>0,$Q$139>0),AB139,0) -> 0 | AD139: Provide further details of your other government capital income. | AE139: IF(OR($G$115>0,$H$115>0,$I$115>0,$K$115>0,$L$115>0,$M$115>0,$O$115>0,$P$115>0,$Q$115>0),AB115,0)
B140: Endowment releases to fund capital expenditure | C140: 574 | D140: i | H140: =+I140-G140 -> 0 | L140: =+M140-K140 -> 0 | P140: 0 | R140: Include where there have been any releases from endowments reserves to fund capital expenditure. | S140: =IF(OR(G140-ROUND(G140,)<>0,I140-ROUND(I140,)<>0,K140-ROUND(K140,)<>0,M140-ROUND(M140,)<>0,O140-ROUND(O140,)<>0,Q140-ROUND(Q140,)<>0),"No decimal places allowed","") ->  | V140: =VLOOKUP($C140,'Min Max table'!$A$5:$C$208,2,FALSE) -> 0 | W140: =VLOOKUP($C140,'Min Max table'!$A$5:$C$205,3,FALSE) -> 400000
B141: Local authority donated assets | C141: 575 | D141: i | H141: 0 | L141: =+M141-K141 -> 0 | P141: 0 | R141: Include any donated assets from local authorities. This will equal line 606 (local authority donated assets expense). | S141: =IF(OR(G141-ROUND(G141,)<>0,I141-ROUND(I141,)<>0,K141-ROUND(K141,)<>0,M141-ROUND(M141,)<>0,O141-ROUND(O141,)<>0,Q141-ROUND(Q141,)<>0),"No decimal places allowed","") ->  | V141: =VLOOKUP($C141,'Min Max table'!$A$5:$C$208,2,FALSE) -> 0 | W141: =VLOOKUP($C141,'Min Max table'!$A$5:$C$205,3,FALSE) -> 400000
B142: Total Other Capital Income | C142: 580 | G142: =SUM(G137:G141) -> 0 | H142: =SUM(H137:H141) -> 0 | I142: =SUM(I137:I141) -> 0 | K142: =SUM(K137:K141) -> 0 | L142: =SUM(L137:L141) -> 0 | M142: =SUM(M137:M141) -> 0 | O142: =SUM(O137:O141) -> 0 | P142: =SUM(P137:P141) -> 0 | Q142: =SUM(Q137:Q141) -> 0 | V142: =VLOOKUP($C142,'Min Max table'!$A$5:$C$208,2,FALSE) -> 0 | W142: =VLOOKUP($C142,'Min Max table'!$A$5:$C$205,3,FALSE) -> 0
B145: Disposals | C145: Line no. | D145: Help text | E145: Validation
B146: Land & buildings disposals | C146: 581 | D146: i | E146: =IF(OR(S146<>"",T146<>"",U146<>"",Z146<>""),"Check- see columns S-Z for info","") ->  | H146: =+I146-G146 -> 0 | L146: =+M146-K146 -> 0 | P146: =+Q146-O146 -> 0 | R146: Disposal proceeds only – include the NBV on disposal of assets for land and buildings. | S146: =IF(OR(G146-ROUND(G146,)<>0,I146-ROUND(I146,)<>0,K146-ROUND(K146,)<>0,M146-ROUND(M146,)<>0,O146-ROUND(O146,)<>0,Q146-ROUND(Q146,)<>0),"No decimal places allowed","") ->  | T146: =IF(OR(G146<V146,I146<V146,K146<V146,L146<V146,M146<V146,O146<V146,P146<V146,Q146<V146),"A value is below the minimum value allowed","") ->  | U146: =IF(OR(G146>W146,I146>W146,K146>W146,L146>W146,M146>W146,O146>W146,P146>W146,Q146>W146),"Input value is too high","") ->  | V146: =VLOOKUP($C146,'Min Max table'!$A$5:$C$208,2,FALSE) -> 0 | W146: =VLOOKUP($C146,'Min Max table'!$A$5:$C$205,3,FALSE) -> 400000
B147: Other fixed assets disposals | C147: 582 | D147: i | H147: =+I147-G147 -> 0 | L147: =+M147-K147 -> 0 | P147: =+Q147-O147 -> 0 | R147: Disposal proceeds only – include the NBV from the disposal of assets for other fixed assets. | S147: =IF(OR(G147-ROUND(G147,)<>0,I147-ROUND(I147,)<>0,K147-ROUND(K147,)<>0,M147-ROUND(M147,)<>0,O147-ROUND(O147,)<>0,Q147-ROUND(Q147,)<>0),"No decimal places allowed","") ->  | T147: =IF(OR(G147<V147,I147<V147,K147<V147,L147<V147,M147<V147,O147<V147,P147<V147,Q147<V147),"A value is below the minimum value allowed","") ->  | U147: =IF(OR(G147>W147,I147>W147,K147>W147,L147>W147,M147>W147,O147>W147,P147>W147,Q147>W147),"Input value is too high","") ->  | V147: =VLOOKUP($C147,'Min Max table'!$A$5:$C$208,2,FALSE) -> 0 | W147: =VLOOKUP($C147,'Min Max table'!$A$5:$C$205,3,FALSE) -> 200000
B148: Total Disposal proceeds | C148: 584 | G148: =SUM(G146:G147) -> 0 | H148: =SUM(H146:H147) -> 0 | I148: =SUM(I146:I147) -> 0 | K148: =SUM(K146:K147) -> 0 | L148: =SUM(L146:L147) -> 0 | M148: =SUM(M146:M147) -> 0 | O148: =SUM(O146:O147) -> 0 | P148: =SUM(P146:P147) -> 0 | Q148: =SUM(Q146:Q147) -> 0 | V148: =VLOOKUP($C148,'Min Max table'!$A$5:$C$208,2,FALSE) -> 0 | W148: =VLOOKUP($C148,'Min Max table'!$A$5:$C$205,3,FALSE) -> 0
B149: Capital Income totals | C149: Line no. | D149: Help text | E149: Validation
B150: Transfers between Revenue and Capital (contra line 255) | C150: 585 | D150: i | E150: =IF(OR(S150<>"",T150<>"",U150<>"",Z150<>""),"Check- see columns S-Z for info","") ->  | G150: =-G57 -> 0 | H150: =-H57 -> 0 | I150: =-I57 -> 0 | K150: =-K57 -> 0 | L150: =-L57 -> 0 | M150: =-M57 -> 0 | O150: =-O57 -> 0 | P150: =-P57 -> 0 | Q150: =-Q57 -> 0 | R150: This should be the contra to line 255- normally there are revenue transfers to capital and this line should be a +ve figure. Transfers from capital funding to revenue reserves is normally disallowed. However on occasion for the reasons described in line 255, a reverse transfer may be necessary, in which case funds will flow from capital to revenue and the balance in this line would become -ve. However as this is unusual an explanation is required. | V150: =VLOOKUP($C150,'Min Max table'!$A$5:$C$208,2,FALSE) -> 0 | W150: =VLOOKUP($C150,'Min Max table'!$A$5:$C$205,3,FALSE) -> 0 | X150: ="QU"&AB150 -> QU21 | Y150: =IF(Z150="","","Please refer to "&X150&" in the validations table") ->  | Z150: =IF(AC150>0,AD150,"") ->  | AA150: =VLOOKUP(X150,'Trust validations table'!$A$15:$E$346,4,FALSE) -> Capital income: Line 585 - Transfers between Revenue and Capital (contra line 255) | AB150: 21 | AC150: =IF(OR($G$150<0,$H$150<0,$I$150<0,$K$150<0,$L$150<0,$M$150<0,$O$150<0,$P$150<0,$Q$150<0),AB150,0) -> 0 | AD150: Tell us why you're transferring capital income into revenue reserves. | AE150: IF(OR($G$126<0,$H$126<0,$I$126<0,$K$126<0,$L$126<0,$M$126<0,$O$126<0,$P$126<0,$Q$126<0),AB126,0)
B152: Total Capital Income | C152: 599 | G152: =G134+G142+G148+G150 -> 0 | H152: =H134+H142+H148+H150 -> 0 | I152: =I134+I142+I148+I150 -> 0 | K152: =K134+K142+K148+K150 -> 0 | L152: =L134+L142+L148+L150 -> 0 | M152: =M134+M142+M148+M150 -> 0 | O152: =O134+O142+O148+O150 -> 0 | P152: =P134+P142+P148+P150 -> 0 | Q152: =Q134+Q142+Q148+Q150 -> 0 | V152: =VLOOKUP($C152,'Min Max table'!$A$5:$C$208,2,FALSE) -> 0 | W152: =VLOOKUP($C152,'Min Max table'!$A$5:$C$205,3,FALSE) -> 0
G155: Prior Year | K155: Current Year | O155: Forecast Year
B156: 5 CAPITAL EXPENDITURE | C156: Line no. | D156: Help text | E156: Validation | G156: Actuals | H156: Calculated | I156: TOTAL | K156: Actuals | L156: Calculated | M156: TOTAL | O156: Forecast | P156: Calculated | Q156: TOTAL
B157: Include: 1. cost of land acquisition including fees and charges related to the acquisition 2. cost of acquiring existing buildings, including fees and charges related to the acquisition 3. cost of new construction, including fees 4. cost of conversions and renovations and cost of extension to existing premises. This needs to be broken down into the following categories: | G157: Sep 22 - Mar 23 | H157: Apr 23 - Aug 23 | I157: 2022/23 | K157: Sep 23 - Mar 24 | L157: Apr 24- Aug 24 | M157: 2023/24 | O157: Sep 24 - Mar 25 | P157: Apr 25- Aug 25 | Q157: 2024/25
G158: £'000 | H158: £'000 | I158: £'000 | K158: £'000 | L158: £'000 | M158: £'000 | O158: £'000 | P158: £'000 | Q158: £'000 | R158: Help Text Guidance
B159: Land & buildings additions funded by ESFA grants | C159: 601 | D159: i | E159: =IF(OR(S159<>"",T159<>"",U159<>"",Z159<>""),"Check- see columns S-Z for info","") ->  | H159: =+I159-G159 -> 0 | L159: =+M159-K159 -> 0 | P159: =+Q159-O159 -> 0 | R159: Include any expenditure of grant received from the ESFA for freehold and leasehold land and buildings additions. In here, also include any RAAC related expenditure that has been capitalised. If your trust has had any major maintenance work completed that has been capitalised, please include this in here. Any unspent grant income would be carried forward into the next financial year, usually in the capital funds balance. | S159: =IF(OR(G159-ROUND(G159,)<>0,I159-ROUND(I159,)<>0,K159-ROUND(K159,)<>0,M159-ROUND(M159,)<>0,O159-ROUND(O159,)<>0,Q159-ROUND(Q159,)<>0),"No decimal places allowed","") ->  | T159: =IF(OR(G159<V159,I159<V159,K159<V159,L159<V159,M159<V159,O159<V159,P159<V159,Q159<V159),"A value is below the minimum value allowed","") ->  | U159: =IF(OR(G159>W159,I160>W159,K159>W159,L159>W159,M159>W159,O159>W159,P159>W159,Q159>W159),"Input value is too high","") ->  | V159: =VLOOKUP($C159,'Min Max table'!$A$5:$C$208,2,FALSE) -> 0 | W159: =VLOOKUP($C159,'Min Max table'!$A$5:$C$205,3,FALSE) -> 400000
B160: Land & buildings donated to the trust by the ESFA (PSPB/Free Schools Programme) | C160: 605 | D160: i | H160: =+I160-G160 -> 0 | L160: =+M160-K160 -> 0 | P160: =+Q160-O160 -> 0 | R160: This should be the contra of row 520 and should be equal to that. | S160: =IF(OR(G160-ROUND(G160,)<>0,I160-ROUND(I160,)<>0,K160-ROUND(K160,)<>0,M160-ROUND(M160,)<>0,O160-ROUND(O160,)<>0,Q160-ROUND(Q160,)<>0),"No decimal places allowed","") ->  | T160: =IF(OR(G160<V160,I160<V160,K160<V160,L160<V160,M160<V160,O160<V160,P160<V160,Q160<V160),"A value is below the minimum value allowed","") ->  | U160: =IF(OR(G160>W160,I161>W160,K160>W160,L160>W160,M160>W160,O160>W160,P160>W160,Q160>W160),"Input value is too high","") ->  | V160: =VLOOKUP($C160,'Min Max table'!$A$5:$C$208,2,FALSE) -> 0 | W160: =VLOOKUP($C160,'Min Max table'!$A$5:$C$205,3,FALSE) -> 400000
B161: Land & buildings additions funded by other capital grants | C161: 615 | D161: i | H161: 0 | L161: 0 | P161: =+Q161-O161 -> 0 | R161: Include any expenditure that is funded by other capital grants (not the DfE/ESFA family) include lottery funding, sports England, Local Authorities, FA. | V161: =VLOOKUP($C161,'Min Max table'!$A$5:$C$208,2,FALSE) -> 0 | W161: =VLOOKUP($C161,'Min Max table'!$A$5:$C$205,3,FALSE) -> 400000
B162: Land & buildings additions funded by reserves | C162: 620 | D162: i | H162: 0 | L162: 0 | P162: 0 | R162: Funded by reserves – including other revenue sources as well as endowment releases. | U162: =IF(OR(G162>W162,I168>W162,K162>W162,L162>W162,M162>W162,O162>W162,P162>W162,Q162>W162),"Input value is too high","") ->  | V162: =VLOOKUP($C162,'Min Max table'!$A$5:$C$208,2,FALSE) -> 0 | W162: =VLOOKUP($C162,'Min Max table'!$A$5:$C$205,3,FALSE) -> 400000
B163: ICT costs - connectivity | C163: 621 | D163: i | F163: No data input 2022/23 | L163: =+M163-K163 -> 0 | P163: 0 | R163: In here, please include broadband, wireless networks, network switches, network cables where they are capitalised, telephony, ISDN, ASDL or other dedicated phone lines where they are not leased, and installation costs. Please exclude leasing and maintenance costs (shown in the revenue section), IT support, repair and maintenance costs. | S163: =IF(OR(G163-ROUND(G163,)<>0,I163-ROUND(I163,)<>0,K163-ROUND(K163,)<>0,M163-ROUND(M163,)<>0,O163-ROUND(O163,)<>0,Q163-ROUND(Q163,)<>0),"No decimal places allowed","") ->  | T163: =IF(OR(G163<V163,I163<V163,K163<V163,L163<V163,M163<V163,O163<V163,P163<V163,Q163<V163),"A value is below the minimum value allowed","") ->  | V163: =VLOOKUP($C163,'Min Max table'!$A$5:$C$208,2,FALSE) -> 0 | W163: =VLOOKUP($C163,'Min Max table'!$A$5:$C$205,3,FALSE) -> 100000
B164: ICT costs - onsite servers | C164: 622 | D164: i | F164: No data input 2022/23 | L164: =+M164-K164 -> 0 | P164: 0 | R164: In here, please include physical onsite servers where costs are capitalised. Please exclude leasing and maintenance costs (see revenue section) cloud storage costs, IT support, repair and maintenance costs. | V164: =VLOOKUP($C164,'Min Max table'!$A$5:$C$208,2,FALSE) -> 0 | W164: =VLOOKUP($C164,'Min Max table'!$A$5:$C$205,3,FALSE) -> 100000
B165: ICT costs - administration software and systems | C165: 623 | D165: i | F165: No data input 2022/23 | L165: =+M165-K165 -> 0 | P165: 0 | R165: In here, please include administration and management software such as management information systems (MIS), safeguarding, finance, cashless catering, building management and payment portals, operating systems and device licences, unless bundled into the cost of laptops, desktops and tablets. Also include, cloud data and storage, cybersecurity and filtering and monitoring if not part of any connectivity services. Please exclude connectivity such as broadband and telephony, (see line 621), IT learning resources, hardware, IT support, repair and maintenance costs. Where a resource is used for curriculum and non-curriculum (administration) purposes, and where costs are material, costs or estimates of the split should be coded separately at the time of purchase. | V165: =VLOOKUP($C165,'Min Max table'!$A$5:$C$208,2,FALSE) -> 0 | W165: =VLOOKUP($C165,'Min Max table'!$A$5:$C$205,3,FALSE) -> 100000
B166: ICT costs - laptops, desktops and tablets | C166: 624 | D166: i | F166: No data input 2022/23 | L166: =+M166-K166 -> 0 | P166: 0 | R166: In here, please include laptops, desktops and tablets purchased by the school that are used for teaching, learning and administration, operating systems and licences if bundled into the cost of device, and device management tools. Please exclude, bring your own device (BYOD) schemes where pupils and or staff are required to bring their own devices such as laptops or tablets. Also exclude any other hardware (see line 625), IT support, and repair and maintenance costs. Where a resource is used for curriculum and non-curriculum (i.e. administration) purposes, and where costs are material, costs or estimates of the split should be coded separately at the time of purchase. | V166: =VLOOKUP($C166,'Min Max table'!$A$5:$C$208,2,FALSE) -> 0 | W166: =VLOOKUP($C166,'Min Max table'!$A$5:$C$205,3,FALSE) -> 100000
B167: ICT costs - other hardware | C167: 625 | D167: i | F167: No data input 2022/23 | L167: =+M167-K167 -> 0 | P167: 0 | R167: In here, please include, hardware such as printers and consumables, audio-visual display screens, projectors and CCTV, peripherals such as keyboards and mouses where they are not bundled into laptop, desktop and tablet costs (see line 624). Please exclude laptops, desktops and tablets (see line 624), onsite servers (see line 622), and IT support, repair and maintenance costs. | V167: =VLOOKUP($C167,'Min Max table'!$A$5:$C$208,2,FALSE) -> 0 | W167: =VLOOKUP($C167,'Min Max table'!$A$5:$C$205,3,FALSE) -> 100000
B168: Other fixed assets additions funded by ESFA grants | C168: 636 | D168: i | H168: =+I168-G168 -> 0 | L168: 0 | P168: 0 | R168: Include any expenditure of ESFA grant received in a previous period. The unspent grant income should be carried forward from a prior year. In here, also include any RAAC related expenditure that has been capitalised in this line. If your trust has had any major maintenance work completed that has been capitalised, please include this in here. | V168: =VLOOKUP($C168,'Min Max table'!$A$5:$C$208,2,FALSE) -> 0 | W168: =VLOOKUP($C168,'Min Max table'!$A$5:$C$205,3,FALSE) -> 400000
B169: Other fixed assets additions funded by other capital grants | C169: 637 | D169: i | H169: 0 | L169: 0 | P169: 0 | R169: Include any expenditure that is funded by other capital grants (not the DfE/ESFA family) include lottery funding, sports England, Local Authorities, FA. If your trust has had any major maintenance work completed that has been capitalised, please include this in here. | V169: =VLOOKUP($C169,'Min Max table'!$A$5:$C$208,2,FALSE) -> 0 | W169: =VLOOKUP($C169,'Min Max table'!$A$5:$C$205,3,FALSE) -> 400000
B170: Other fixed assets additions funded by reserves | C170: 638 | D170: i | H170: 0 | L170: 0 | P170: 0 | R170: Include any expenditure that is funded by reserves – including other revenue sources as well as endowment releases. | V170: =VLOOKUP($C170,'Min Max table'!$A$5:$C$208,2,FALSE) -> 0 | W170: =VLOOKUP($C170,'Min Max table'!$A$5:$C$205,3,FALSE) -> 400000
B171: Local authority donated assets expense | C171: 606 | D171: i | H171: 0 | L171: 0 | P171: 0 | R171: This should be the contra of row 575 recognising the asset expense following receipt of the donated asset (as income). | V171: =VLOOKUP($C171,'Min Max table'!$A$5:$C$208,2,FALSE) -> 0 | W171: =VLOOKUP($C171,'Min Max table'!$A$5:$C$205,3,FALSE) -> 400000
B172: Total Capital Expenditure | C172: 650 | G172: =SUM(G159:G162)+SUM(G168:G171) -> 0 | H172: =SUM(H159:H162)+SUM(H168:H171) -> 0 | I172: =SUM(I159:I162)+SUM(I168:I171) -> 0 | K172: =SUM(K159:K171) -> 0 | L172: =SUM(L159:L171) -> 0 | M172: =SUM(M159:M171) -> 0 | O172: =SUM(O159:O171) -> 0 | P172: =SUM(P159:P171) -> 0 | Q172: =SUM(Q159:Q171) -> 0 | V172: =VLOOKUP($C172,'Min Max table'!$A$5:$C$208,2,FALSE) -> 0 | W172: =VLOOKUP($C172,'Min Max table'!$A$5:$C$205,3,FALSE) -> 0
B174: Capital totals | C174: Line no. | D174: Help text | E174: Validation
B175: Net Capital income/(expenditure) for the period | C175: 660 | E175: =IF(OR(S175<>"",T175<>"",U175<>"",Z175<>""),"Check- see columns S-Z for info","") ->  | G175: =G152-G172 -> 0 | H175: =H152-H172 -> 0 | I175: =I152-I172 -> 0 | K175: =K152-K172 -> 0 | L175: =L152-L172 -> 0 | M175: =M152-M172 -> 0 | O175: =O152-O172 -> 0 | P175: =P152-P172 -> 0 | Q175: =Q152-Q172 -> 0 | V175: =VLOOKUP($C175,'Min Max table'!$A$5:$C$208,2,FALSE) -> 0 | W175: =VLOOKUP($C175,'Min Max table'!$A$5:$C$205,3,FALSE) -> 0 | X175: ="QU"&AB175 -> QU14 | Y175: =IF(Z175="","","Please refer to "&X175&" in the validations table") ->  | Z175: =IF(AC175>0,AD175,"") ->  | AA175: =VLOOKUP(X175,'Trust validations table'!$A$15:$E$346,4,FALSE) -> Capital totals: Line 660 - Net Capital income/(expenditure) for the period | AB175: 14 | AC175: =IF(OR($I$175<0,$M$175<0,$Q$175<0),AB175,0) -> 0 | AD175: Your capital expenditure exceeds capital income during either the prior year, current year or forecast year. Tell us: - how you've managed capital income and expenditure during the year - whether you plan to carry forward surplus capital funds from prior years, and how much | AE175: IF(OR($I$146<0,$M$146<0,$Q$146<0)),AB146,0)
G178: Actuals | H178: Calculated | K178: Calculated | L178: Calculated | O178: Calculated | P178: Calculated
G179: Balance b/f from 1 Sep 22 | H179: Balance b/f from 1 Apr 23 | K179: Balance b/f from 1 Sep 23 | L179: Balance b/f from 1 Apr 24 | O179: Balance b/f from 1 Sep 24 | P179: Balance b/f from 1 Apr 25
G180: £'000 | H180: £'000 | K180: £'000 | L180: £'000 | O180: £'000 | P180: £'000 | R180: Help Text Guidance
B181: Balance B/Fwd from previous period | C181: 670 | D181: i | E181: =IF(OR(S181<>"",T181<>"",U181<>"",Z181<>""),"Check- see columns S-Z for info","") ->  | H181: =G186 -> 0 | K181: =H186 -> 0 | L181: =K186 -> 0 | O181: =L186 -> 0 | P181: =O186 -> 0 | R181: Input the closing balance of capital funds from previous financial year. Assuming there are no structural changes to the trust, then the amount entered in this cell should agree to the 'Fixed Asset Fund' less 'Tangible assets' and 'Intangible assets' in the Balance Sheet summary of the prior year Accounts Return. | S181: =IF(OR(G181-ROUND(G181,)<>0),"No decimal places allowed","") ->  | T181: =IF(OR(G181<V181),"A value is below the minimum value allowed","") ->  | U181: =IF(OR(G181>W181),"Input value is too high","") ->  | V181: =VLOOKUP($C181,'Min Max table'!$A$5:$C$208,2,FALSE) -> -400000 | W181: =VLOOKUP($C181,'Min Max table'!$A$5:$C$205,3,FALSE) -> 400000
G183: Calculated | H183: Calculated | K183: Calculated | L183: Calculated | O183: Calculated | P183: Calculated
G184: Balance c/f at 31 Mar 23 | H184: Balance c/f at 31 Aug 23 | K184: Balance c/f at 31 Mar 24 | L184: Balance c/f at 31 Aug 24 | O184: Balance c/f at 31 Mar 25 | P184: Balance c/f at 31 Aug 25
G185: £'000 | H185: £'000 | K185: £'000 | L185: £'000 | O185: £'000 | P185: £'000
B186: Balance C/Fwd to next period | C186: 680 | G186: =G175+G181 -> 0 | H186: =H175+H181 -> 0 | K186: =K175+K181 -> 0 | L186: =L175+L181 -> 0 | O186: =O175+O181 -> 0 | P186: =P175+P181 -> 0 | V186: =VLOOKUP($C186,'Min Max table'!$A$5:$C$208,2,FALSE) -> 0 | W186: =VLOOKUP($C186,'Min Max table'!$A$5:$C$205,3,FALSE) -> 0
G189: Prior Year | K189: Current Year | O189: Forecast Year
G190: Actuals | H190: Calculated | I190: TOTAL | K190: Actuals | L190: Calculated | M190: TOTAL | O190: Forecast | P190: Calculated | Q190: TOTAL
G191: Sep 22 - Mar 23 | H191: Apr 23 - Aug 23 | I191: 2022/23 | K191: Sep 23 - Mar 24 | L191: Apr 24- Aug 24 | M191: 2023/24 | O191: Sep 24 - Mar 25 | P191: Apr 25- Aug 25 | Q191: 2024/25
B192: Capital transfers and conversions (disclosure only) | C192: Line no. | D192: Help text | E192: Validation | G192: £'000 | H192: £'000 | I192: £'000 | K192: £'000 | L192: £'000 | M192: £'000 | O192: £'000 | P192: £'000 | Q192: £'000 | R192: Help Text Guidance
B193: Capital assets transferred to academy on conversion | C193: 572 | D193: i | E193: =IF(OR(S193<>"",T193<>"",U193<>"",Z193<>""),"Check- see columns S-Z for info","") ->  | H193: =+I193-G193 -> 0 | L193: =+M193-K193 -> 0 | P193: =+Q193-O193 -> 0 | R193: Include the value of capital assets and liabilities received or receivable on conversion from local authorities on conversion. These balances will have a contra adjustment. For example when you record a conversion from a local authority the entry is conversion income recorded below and the opposite adjustment which is expenditure. The former recognises the transfer income and the latter the expenditure to recognise the asset. The budgeting impact is neutral. | S193: =IF(OR(G193-ROUND(G193,)<>0,I193-ROUND(I193,)<>0,K193-ROUND(K193,)<>0,M193-ROUND(M193,)<>0,O193-ROUND(O193,)<>0,Q193-ROUND(Q193,)<>0),"No decimal places allowed","") ->  | T193: =IF(OR(G193<V193,I193<V193,K193<V193,L193<V193,M193<V193,O193<V193,P193<V193,Q193<V193),"Transfers in is below the minimum value allowed","") ->  | U193: =IF(OR(G193>W193,I193>W193,K193>W193,L193>W193,M193>W193,O193>W193,P193>W193,Q193>W193),"Transfer value is too high","") ->  | V193: =VLOOKUP($C193,'Min Max table'!$A$5:$C$208,2,FALSE) -> 0 | W193: =VLOOKUP($C193,'Min Max table'!$A$5:$C$205,3,FALSE) -> 400000
B194: Capital assets transferred of an existing academy into the trust | C194: 573 | D194: i | E194: =IF(OR(S194<>"",T194<>"",U194<>"",Z194<>""),"Check- see columns S-Z for info","") ->  | H194: =+I194-G194 -> 0 | L194: =+M194-K194 -> 0 | P194: =+Q194-O194 -> 0 | R194: Include the value of capital assets and liabilities received or receivable following the transfer of an existing academy from another academy trust | S194: =IF(OR(G194-ROUND(G194,)<>0,I194-ROUND(I194,)<>0,K194-ROUND(K194,)<>0,M194-ROUND(M194,)<>0,O194-ROUND(O194,)<>0,Q194-ROUND(Q194,)<>0),"No decimal places allowed","") ->  | T194: =IF(OR(G194<V194,I194<V194,K194<V194,L194<V194,M194<V194,O194<V194,P194<V194,Q194<V194),"Transfers in is below the minimum value allowed","") ->  | U194: =IF(OR(G194>W194,I194>W194,K194>W194,L194>W194,M194>W194,O194>W194,P194>W194,Q194>W194),"Transfer value is too high","") ->  | V194: =VLOOKUP($C194,'Min Max table'!$A$5:$C$208,2,FALSE) -> 0 | W194: =VLOOKUP($C194,'Min Max table'!$A$5:$C$205,3,FALSE) -> 400000
B195: Capital assets transferred of an existing academy out of the trust | C195: 639 | D195: i | E195: =IF(OR(S195<>"",T195<>"",U195<>"",Z195<>""),"Check- see columns S-Z for info","") ->  | H195: =+I195-G195 -> 0 | L195: =+M195-K195 -> 0 | P195: =+Q195-O195 -> 0 | R195: Include the value of capital assets and liabilities paid or payable following the transfer of an existing academy to another academy trust. The value of any amount paid or payable should be entered as a negative value. | S195: =IF(OR(G195-ROUND(G195,)<>0,I195-ROUND(I195,)<>0,K195-ROUND(K195,)<>0,M195-ROUND(M195,)<>0,O195-ROUND(O195,)<>0,Q195-ROUND(Q195,)<>0),"No decimal places allowed","") ->  | T195: =IF(OR(G195<V195,I195<V195,K195<V195,L195<V195,M195<V195,O195<V195,P195<V195,Q195<V195),"Transfers in is below the minimum value allowed","") ->  | U195: =IF(OR(G195>W195,I195>W195,K195>W195,L195>W195,M195>W195,O195>W195,P195>W195,Q195>W195),"Transfer value is too high","") ->  | V195: =VLOOKUP($C195,'Min Max table'!$A$5:$C$208,2,FALSE) -> -400000 | W195: =VLOOKUP($C195,'Min Max table'!$A$5:$C$205,3,FALSE) -> 0
B198: 6 OTHER ITEMS
B199: Cash | C199: Line no. | D199: Help text | E199: Validation | G199: Balance at 31 Aug 22 | H199: Balance at 31 Mar 23 | K199: Balance at 31 Aug 23 | L199: Balance at 31 Mar 24 | M199: Balance at 31 Aug 24 | O199: Balance at 31 Mar 25 | P199: Balance at 31 Aug 25
G200: £'000 | H200: £'000 | K200: £'000 | L200: £'000 | M200: £'000 | O200: £'000 | P200: £'000 | R200: Help Text Guidance
B201: Cash at bank and in hand | C201: 700 | D201: i | E201: =IF(OR(S201<>"",T201<>"",U201<>"",Z201<>""),"Check- see columns S-Z for info","") -> Check- see columns S-Z for info | R201: Include all bank balances and cash balances, please specify the liquid cash balance. August balances should be as per your audited financial statements. | S201: =IF(OR(G201-ROUND(G201,)<>0,H201-ROUND(H201,)<>0,K201-ROUND(K201,)<>0,L201-ROUND(L201,)<>0,M201-ROUND(M201,)<>0,P201-ROUND(P201,)<>0),"No decimal places allowed","") ->  | T201: =IF(OR(G201<V201,H201<V201,K201<V201,L201<V201,M201<V201,O201<V201,P201<V201),"Your cash balance is too low","") ->  | U201: =IF(OR(G201>W201,H201>W201,K201>W201,L201>W201,M201>W201,O201>W201,P201>W201),"Your cash balance is too high","") ->  | V201: =VLOOKUP($C201,'Min Max table'!$A$5:$C$208,2,FALSE) -> 0 | W201: =VLOOKUP($C201,'Min Max table'!$A$5:$C$205,3,FALSE) -> 400000 | X201: ="QU"&AB201 -> QU15 | Y201: =IF(Z201="","","Please refer to "&X201&" in the validations table") -> Please refer to QU15 in the validations table | Z201: =IF(AC201>0,AD201,"") -> Check that the figures you've entered for Cash at bank and in hand (700) are correct. If so, explain why your bank balances are all NIL. | AA201: =VLOOKUP(X201,'Trust validations table'!$A$15:$E$346,4,FALSE) -> Other items: Line 700 - Cash at bank and in hand | AB201: 15 | AC201: =IF(SUM(G201:H201,K201:M201,O201:P201)=0,AB201,0) -> 15 | AD201: Check that the figures you've entered for Cash at bank and in hand (700) are correct. If so, explain why your bank balances are all NIL. | AE201: IF(SUM(G172:H172,K172:M172,O172:P172)=0,AB172,0)
B202: Overdrafts | C202: 701 | D202: i | E202: Check- see columns S-Z for info | R202: Include any bank or other overdrafts still in use at period end date. | S202: =IF(OR(G202-ROUND(G202,)<>0,H202-ROUND(H202,)<>0,K202-ROUND(K202,)<>0,L202-ROUND(L202,)<>0,M202-ROUND(M202,)<>0,P202-ROUND(P202,)<>0),"No decimal places allowed","") ->  | T202: =IF(OR(G202<V202,H202<V202,K202<V202,L202<V202,M202<V202,O202<V202,P202<V202),"Your overdraft is too low","") ->  | U202: =IF(OR(G202>W202,H202>W202,K202>W202,L202>W202,M202>W202,O202>W202,P202>W202),"Your overdraft is too high","") ->  | V202: =VLOOKUP($C202,'Min Max table'!$A$5:$C$208,2,FALSE) -> -200000 | W202: =VLOOKUP($C202,'Min Max table'!$A$5:$C$205,3,FALSE) -> 0 | X202: ="QU"&AB202 -> QU16 | Y202: =IF(Z202="","","Please refer to "&X202&" in the validations table") -> Please refer to QU16 in the validations table | Z202: =IF(AC202>0,AD202,"") -> Enter your overdraft balances, if not applicable, please state this. If your overdraft was cleared before the balance dates then provide a brief explanation. | AA202: =VLOOKUP(X202,'Trust validations table'!$A$15:$E$346,4,FALSE) -> Other items: Line 701 - Overdrafts | AB202: 16 | AC202: =IF(SUM(G202:H202,K202:M202,O202:P202)=0,AB202,0) -> 16 | AD202: Enter your overdraft balances, if not applicable, please state this. If your overdraft was cleared before the balance dates then provide a brief explanation. | AE202: IF(SUM(G173:H173,K173:M173,O181:P181)=0,AB173,0)
G204: Prior Year | K204: Current Year | O204: Forecast Year
G205: Actuals | H205: Calculated | I205: TOTAL | K205: Actuals | L205: Calculated | M205: TOTAL | O205: Forecast | P205: Calculated | Q205: TOTAL
B206: Impairment/gains and losses | C206: Line no. | D206: Help text | E206: Validation | G206: Sep 22 - Mar 23 | H206: Apr 23 - Aug 23 | I206: 2022/23 | K206: Sep 23 - Mar 24 | L206: Apr 24- Aug 24 | M206: 2023/24 | O206: Sep 24 - Mar 25 | P206: Apr 25- Aug 25 | Q206: 2024/25
G207: £'000 | H207: £'000 | I207: £'000 | K207: £'000 | L207: £'000 | M207: £'000 | O207: £'000 | P207: £'000 | Q207: £'000 | R207: Help Text Guidance
B208: Gain/loss on disposal of fixed assets | C208: 710 | D208: i | E208: =IF(OR(S208<>"",T208<>"",U208<>"",Z208<>""),"Check- see columns S-Z for info","") ->  | H208: =+I208-G208 -> 0 | L208: =+M208-K208 -> 0 | P208: =+Q208-O208 -> 0 | R208: Deduct the carrying amount of the asset and related selling expenses from the proceeds of the disposal. Losses are entered as a credit and gains as a debit. | S208: =IF(OR(G208-ROUND(G208,)<>0,I208-ROUND(I208,)<>0,K208-ROUND(K208,)<>0,M208-ROUND(M208,)<>0,O208-ROUND(O208,)<>0,Q208-ROUND(Q208,)<>0),"No decimal places allowed","") ->  | T208: =IF(OR(G208<V208,I208<V208,K208<V208,L208<V208,M208<V208,O208<V208,P208<V208,Q208<V208),"Loss on disposal is too high","") ->  | U208: =IF(OR(G208>W208,I208>W208,K208>W208,L208>W208,M208>W208,O208>W208,P208>W208,Q208>W208),"Gain appears too high","") ->  | V208: =VLOOKUP($C208,'Min Max table'!$A$5:$C$208,2,FALSE) -> -100000 | W208: =VLOOKUP($C208,'Min Max table'!$A$5:$C$205,3,FALSE) -> 100000
B209: Impairment charges | C209: 712 | D209: i | H209: =+I209-G209 -> 0 | L209: =+M209-K209 -> 0 | P209: =+Q209-O209 -> 0 | R209: Impairment charge would be the reduction in carrying value of an asset. | S209: =IF(OR(G209-ROUND(G209,)<>0,I209-ROUND(I209,)<>0,K209-ROUND(K209,)<>0,M209-ROUND(M209,)<>0,O209-ROUND(O209,)<>0,Q209-ROUND(Q209,)<>0),"No decimal places allowed","") ->  | T209: =IF(OR(G209<V209,I209<V209,K209<V209,L209<V209,M209<V209,O209<V209,P209<V209,Q209<V209),"Loss on disposal is too high","") ->  | U209: =IF(OR(G209>W209,I209>W209,K209>W209,L209>W209,M209>W209,O209>W209,P209>W209,Q209>W209),"Gain appears too high","") ->  | V209: =VLOOKUP($C209,'Min Max table'!$A$5:$C$208,2,FALSE) -> -100000 | W209: =VLOOKUP($C209,'Min Max table'!$A$5:$C$205,3,FALSE) -> 400000 | X209: ="QU"&AB209 -> QU20 | Y209: =IF(Z209="","","Please refer to "&X209&" in the validations table") ->  | Z209: =IF(AC209>0,AD209,"") ->  | AA209: =VLOOKUP(X209,'Trust validations table'!$A$15:$E$346,4,FALSE) -> Other items: Line 712 - Impairment charges | AB209: 20 | AC209: =IF(OR(G209<>0,H209<>0,I209<>0,K209<>0,L209<>0,M209<>0,O209<>0,P209<>0,Q209<>0),AB209,0) -> 0 | AD209: Provide details of your impairments. | AE209: IF(OR(G180<>0,H180<>0,I180<>0,K180<>0,L180<>0,M180<>0,O180<>0,P180<>0,Q180<>0),AB180,0)
B211: Investments | C211: Line no. | D211: Help text | E211: Validation | G211: Balance at 31 Aug 22 | H211: Balance at 31 Mar 23 | K211: Balance at 31 Aug 23 | L211: Balance at 31 Mar 24 | M211: Balance at 31 Aug 24 | O211: Balance at 31 Mar 25 | P211: Balance at 31 Aug 25
G212: £'000 | H212: £'000 | K212: £'000 | L212: £'000 | M212: £'000 | O212: £'000 | P212: £'000 | R212: Help Text Guidance
B213: Investments | C213: 725 | D213: i | E213: =IF(OR(S213<>"",T213<>"",U213<>"",Z213<>""),"Check- see columns S-Z for info","") ->  | R213: Include movements in investments, such as the purchase of new fixed income or equity investments. | S213: =IF(OR(G213-ROUND(G213,)<>0,H213-ROUND(H213,)<>0,K213-ROUND(K213,)<>0,L213-ROUND(L213,)<>0,M213-ROUND(M213,)<>0,O213-ROUND(O213,)<>0,P213-ROUND(P213,)<>0),"No decimal places allowed","") ->  | T213: =IF(OR(G213<I213,H213<V213,K213<V213,L213<V213,M213<V213,O213<V213,P213<V213,Q213<V213),"A value is below the minimum value allowed","") ->  | U213: =IF(OR(G213>W213,H213>W213,K213>W213,L213>W213,M213>W213,O213>W213,P213>W213,Q213>W213),"Input value is too high","") ->  | V213: =VLOOKUP($C213,'Min Max table'!$A$5:$C$208,2,FALSE) -> 0 | W213: =VLOOKUP($C213,'Min Max table'!$A$5:$C$205,3,FALSE) -> 400000 | X213: ="QU"&AB213 -> QU17 | Y213: =IF(Z213="","","Please refer to "&X213&" in the validations table") ->  | Z213: =IF(AC213>0,AD213,"") ->  | AA213: =VLOOKUP(X213,'Trust validations table'!$A$15:$E$346,4,FALSE) -> Other items: Line 725 - Investments | AB213: 17 | AC213: =IF(OR(G213<>0,H213<>0,I213<>0,K213<>0,L213<>0,M213<>0,O213<>0,P213<>0,Q213<>0),AB213,0) -> 0 | AD213: Provide details of your investments. If your investments were sold/paid back before the balance dates then provide a brief explanation. | AE213: IF(OR(G184<>0,H184<>0,I184<>0,K184<>0,L184<>0,M184<>0,O184<>0,P184<>0),AB184,0)
G214: Movements Sep 22 - Mar 23 | H214: Movements Apr 23 - Aug 23 | K214: Movements Sep 23 - Mar 24 | L214: Movements Apr 24 - Aug 24 | O214: Movements Sep 24 - Mar 25 | P214: Movements Apr 25 - Aug 25
G215: £'000 | H215: £'000 | K215: £'000 | L215: £'000 | O215: £'000 | P215: £'001 | R215: Help Text Guidance
B216: Investment liquidations | C216: 730 | D216: i | E216: =IF(OR(S216<>"",T216<>"",U216<>"",Z216<>""),"Check- see columns S-Z for info","") ->  | R216: Please include cash or cash equivalents received as a result of investment liquidations. | S216: =IF(OR(G216-ROUND(G216,)<>0,H216-ROUND(H216,)<>0,K216-ROUND(K216,)<>0,L216-ROUND(L216,)<>0,O216-ROUND(O216,)<>0,P216-ROUND(P216,)<>0),"No decimal places allowed","") ->  | T216: =IF(OR(G216<V216,H216<V216,K216<V216,L216<V216,M216<V216,O216<V216,P216<V216,Q216<V216),"A value is below the minimum value allowed","") ->  | U216: =IF(OR(G216>W216,H216>W216,K216>W216,L216>W216,M216>W216,O216>W216,P216>W216,Q216>W216),"Input value is too high","") ->  | V216: =VLOOKUP($C216,'Min Max table'!$A$5:$C$208,2,FALSE) -> 0 | W216: =VLOOKUP($C216,'Min Max table'!$A$5:$C$205,3,FALSE) -> 100000
G218: Actuals | H218: Actuals | K218: Actuals | L218: Actuals | M218: TOTAL | O218: Forecast
B219: Loans | C219: Line no. | D219: Help text | E219: Validation | G219: Balance at 31 Aug 22 | H219: Balance at 31 Mar 23 | K219: Balance at 31 Aug 23 | L219: Balance at 31 Mar 24 | M219: Balance at 31 Aug 24 | O219: Balance at 31 Mar 25
G220: £'000 | H220: £'000 | K220: £'000 | L220: £'000 | M220: £'000 | O220: £'000 | R220: Help Text Guidance
B221: Opening outstanding loans | C221: 780 | D221: i | E221: =IF(OR(S221<>"",T221<>"",U221<>"",Z221<>""),"Check- see columns S-Z for info","") ->  | H221: =G227 -> 0 | K221: =H227 -> 0 | L221: =K227 -> 0 | M221: =L227 -> 0 | O221: =M227 -> 0 | R221: Please include any closing loans outstanding from the previous financial year. Please specify in the comments section to whom the loans relate, the amounts specific to each, whether transferred on conversion, reason for loan and loan duration. This includes Salix loans. | S221: =IF(OR(G221-ROUND(G221,)<>0,I221-ROUND(I221,)<>0,K221-ROUND(K221,)<>0,M221-ROUND(M221,)<>0,O221-ROUND(O221,)<>0,Q221-ROUND(Q221,)<>0),"No decimal places allowed","") ->  | T221: =IF(OR(G221<V221,I221<V221,K221<V221,L221<V221,M221<V221,O221<V221,P221<V221,Q221<V221),"Error- balances is below the minimum value allowed","") ->  | U221: =IF(OR(G221>W221,I221>W221,K221>W221,L221>W221,M221>W221,O221>W221,P221>W221,Q221>W221),"Input value is too high","") ->  | V221: =VLOOKUP($C221,'Min Max table'!$A$5:$C$208,2,FALSE) -> 0 | W221: =VLOOKUP($C221,'Min Max table'!$A$5:$C$205,3,FALSE) -> 100000
G222: Movement to 31 Mar 23 | H222: Movement to 31 Aug 23 | K222: Movement to 31 Mar 24 | L222: Movement to 31 Aug 24 | M222: Movement to 31 Mar 25 | O222: Movement to 31 Aug 25
G223: £'000 | H223: £'000 | K223: £'000 | L223: £'000 | M223: £'000 | O223: £'000 | R223: Help Text Guidance
B224: Increase/(Decrease) in outstanding loans | C224: 785 | D224: i | E224: =IF(OR(S224<>"",T224<>"",U224<>"",Z224<>""),"Check- see columns S-Z for info","") ->  | R224: Please include the value of any increase or decrease in outstanding loans. Please specify in the comments section to whom the loans relate, the amounts specific to each, whether transferred on conversion, reason for loan and loan duration. This includes Salix loans. | S224: =IF(OR(G224-ROUND(G224,)<>0,H224-ROUND(H224,)<>0,K224-ROUND(K224,)<>0,L224-ROUND(L224,)<>0,M224-ROUND(M224,)<>0,O224-ROUND(O224,)<>0,Q224-ROUND(Q224,)<>0),"No decimal places allowed","") ->  | T224: =IF(OR(G224<V224,H224<V224,K224<V224,L224<V224,M224<V224,O224<V224),"Decrease is too high","") ->  | U224: =IF(OR(G224>W224,H224>W224,K224>W224,L224>W224,M224>W224,O224>W224),"Increase is too high","") ->  | V224: =VLOOKUP($C224,'Min Max table'!$A$5:$C$208,2,FALSE) -> -100000 | W224: =VLOOKUP($C224,'Min Max table'!$A$5:$C$205,3,FALSE) -> 100000 | X224: ="QU"&AB224 -> QU18 | Y224: =IF(Z224="","","Please refer to "&X224&" in the validations table") ->  | Z224: =IF(AC224>0,AD224,"") ->  | AA224: =VLOOKUP(X224,'Trust validations table'!$A$15:$E$346,4,FALSE) -> Other items: Line 785 - Increase/(Decrease) in outstanding loans | AB224: 18 | AC224: =IF(OR(G224<>0,H224<>0,K224<>0,L224<>0,M224<>0,O224<>0),AB224,0) -> 0 | AD224: Tell us about any loan movements. | AE224: IF(OR(G195<>0,H195<>0,K195<>0,L195<>0,M195<>0,O195<>0),AB195,0)
G225: Balance c/f 31 Mar 23 | H225: Balance c/f 31 Aug 23 | K225: Balance c/f 31 Mar 24 | L225: Balance c/f 31 Aug 24 | M225: Balance c/f 31 Mar 25 | O225: Balance c/f 31 Aug 25
G226: £'000 | H226: £'000 | K226: £'000 | L226: £'000 | M226: £'000 | O226: £'000
B227: Closing outstanding loans | C227: 789 | E227: =IF(OR(S227<>"",T227<>"",U227<>"",Z227<>""),"Check- see columns S-Z for info","") ->  | G227: =+G224+G221 -> 0 | H227: =+H224+H221 -> 0 | K227: =+K224+K221 -> 0 | L227: =+L224+L221 -> 0 | M227: =+M224+M221 -> 0 | O227: =+O224+O221 -> 0 | V227: =VLOOKUP($C227,'Min Max table'!$A$5:$C$208,2,FALSE) -> 0 | W227: =VLOOKUP($C227,'Min Max table'!$A$5:$C$205,3,FALSE) -> 0 | X227: ="QU"&AB227 -> QU19 | Y227: =IF(Z227="","","Please refer to "&X227&" in the validations table") ->  | Z227: =IF(AC227>0,AD227,"") ->  | AA227: =VLOOKUP(X227,'Trust validations table'!$A$15:$E$346,4,FALSE) -> Other items: Line 789 -Closing outstanding loans | AB227: 19 | AC227: =IF(OR(G227<0,H227<0,K227<0,L227<0,M227<0,O227<0,P227<0),AB227,IF(AND(E17="No",SUM(G227:P227)<>0),AB227,IF(AND(E17="Yes",AND(G227=0,H227=0,K227=0,L227=0,M227=0,O227=0,P227=0)),AB227,0))) -> 0 | AD227: Confirm your loan balances are correct. Balances shouldn't be negative. | AE227: IF(OR(G227<0,H227<0,K227<0,L227<0,M227<0,O227<0,P227<0),AB227,IF(AND(E17="No",SUM(G227:P227)<>0),AB227,IF(AND(E17="Yes",AND(G227=0,H227=0,K227=0,L227=0,M227=0,O227=0,P227=0)),AB227,0)))
G229: Prior Year | K229: Current Year | O229: Forecast Year
G230: Actuals | H230: Calculated | I230: TOTAL | K230: Actuals | L230: Calculated | M230: TOTAL | O230: Forecast | P230: Calculated | Q230: TOTAL
G231: Sep 22 - Mar 23 | H231: Apr 23 - Aug 23 | I231: 2022/23 | K231: Sep 23 - Mar 24 | L231: Apr 24- Aug 24 | M231: 2023/24 | O231: Sep 24 - Mar 25 | P231: Apr 25- Aug 25 | Q231: 2024/25
B232: Provisions (excluding pensions liabilities) | C232: Line no. | D232: Help text | E232: Validation | G232: £'000 | H232: £'000 | I232: £'000 | K232: £'000 | L232: £'000 | M232: £'000 | O232: £'000 | P232: £'000 | Q232: £'000 | R232: Help Text Guidance
B233: Provision increase | C233: 736 | D233: i | E233: =IF(OR(S233<>"",T233<>"",U233<>"",Z233<>""),"Check- see columns S-Z for info","") ->  | H233: =+I233-G233 -> 0 | L233: =+M233-K233 -> 0 | P233: =+Q233-O233 -> 0 | R233: Include any new provisions that have been created or increased in the year as a positive figure. | S233: =IF(OR(G233-ROUND(G233,)<>0,I233-ROUND(I233,)<>0,K233-ROUND(K233,)<>0,M233-ROUND(M233,)<>0,O233-ROUND(O233,)<>0,Q233-ROUND(Q233,)<>0),"No decimal places allowed","") ->  | T233: =IF(OR(G233<V233,I233<V233,K233<V233,L233<V233,M233<V233,O233<V233,P233<V233,Q233<V233),"A value is below the minimum value allowed","") ->  | U233: =IF(OR(G233>W233,I233>W233,K233>W233,L233>W233,M233>W233,O233>W233,P233>W233,Q233>W233),"Input value is too high","") ->  | V233: =VLOOKUP($C233,'Min Max table'!$A$5:$C$208,2,FALSE) -> 0 | W233: =VLOOKUP($C233,'Min Max table'!$A$5:$C$205,3,FALSE) -> 100000
B234: Provisions release (enter as a negative value) | C234: 737 | D234: i | H234: =+I234-G234 -> 0 | L234: =+M234-K234 -> 0 | P234: =+Q234-O234 -> 0 | R234: Include any reductions to the value of the provisions in the year. This must be a negative value. | S234: =IF(OR(G234-ROUND(G234,)<>0,I234-ROUND(I234,)<>0,K234-ROUND(K234,)<>0,M234-ROUND(M234,)<>0,O234-ROUND(O234,)<>0,Q234-ROUND(Q234,)<>0),"No decimal places allowed","") ->  | T234: =IF(OR(G234<V234,I234<V234,K234<V234,L234<V234,M234<V234,O234<V234,P234<V234,Q234<V234),"A value is below the minimum value allowed","") ->  | U234: =IF(OR(G234>W234,I234>W234,K234>W234,L234>W234,M234>W234,O234>W234,P234>W234,Q234>W234),"Input value is too high","") ->  | V234: =VLOOKUP($C234,'Min Max table'!$A$5:$C$208,2,FALSE) -> -100000 | W234: =VLOOKUP($C234,'Min Max table'!$A$5:$C$205,3,FALSE) -> 0
B235: Provision utilisation | C235: 738 | D235: i | H235: =+I235-G235 -> 0 | L235: =+M235-K235 -> 0 | P235: =+Q235-O235 -> 0 | R235: Include any payments made out against the provisions in the year. This must be a negative value. This is not a cost but is a cash payment | S235: =IF(OR(G235-ROUND(G235,)<>0,I235-ROUND(I235,)<>0,K235-ROUND(K235,)<>0,M235-ROUND(M235,)<>0,O235-ROUND(O235,)<>0,Q235-ROUND(Q235,)<>0),"No decimal places allowed","") ->  | U235: =IF(OR(G235>W235,I235>W235,K235>W235,L235>W235,M235>W235,O235>W235,P235>W235,Q235>W235),"Input value is too high","") ->  | V235: =VLOOKUP($C235,'Min Max table'!$A$5:$C$208,2,FALSE) -> -100000 | W235: =VLOOKUP($C235,'Min Max table'!$A$5:$C$205,3,FALSE) -> 0
G237: Actuals | H237: Calculated | I237: TOTAL | K237: Actuals | L237: Calculated | M237: TOTAL | O237: Forecast | P237: Calculated | Q237: TOTAL
G238: Sep 22 - Mar 23 | H238: Apr 23 - Aug 23 | I238: 2022/23 | K238: Sep 23 - Mar 24 | L238: Apr 24- Aug 24 | M238: 2023/24 | O238: Sep 24 - Mar 25 | P238: Apr 25- Aug 25 | Q238: 2024/25
B239: Depreciation / amortisation charge for the period | C239: Line no. | D239: Help text | E239: Validation | G239: £'000 | H239: £'000 | I239: £'000 | K239: £'000 | L239: £'000 | M239: £'000 | O239: £'000 | P239: £'000 | Q239: £'000 | R239: Help Text Guidance
B240: Buildings depreciation | C240: 715 | D240: i | E240: =IF(OR(S240<>"",T240<>"",U240<>"",Z240<>""),"Check- see columns S-Z for info","") ->  | H240: =+I240-G240 -> 0 | L240: =+M240-K240 -> 0 | P240: =+Q240-O240 -> 0 | R240: Include depreciation charges for buildings only, excluding depreciation relating to donated or other buildings during the year. | S240: =IF(OR(G240-ROUND(G240,)<>0,I240-ROUND(I240,)<>0,K240-ROUND(K240,)<>0,M240-ROUND(M240,)<>0,O240-ROUND(O240,)<>0,Q240-ROUND(Q240,)<>0),"No decimal places allowed","") ->  | T240: =IF(OR(G240<V240,I240<V240,K240<V240,L240<V240,M240<V240,O240<V240,P240<V240,Q240<V240),"A value is below the minimum value allowed","") ->  | U240: =IF(OR(G240>W240,I240>W240,K240>W240,L240>W240,M240>W240,O240>W240,P240>W240,Q240>W240),"Input value is too high","") ->  | V240: =VLOOKUP($C240,'Min Max table'!$A$5:$C$208,2,FALSE) -> 0 | W240: =VLOOKUP($C240,'Min Max table'!$A$5:$C$205,3,FALSE) -> 200000
B241: Other assets donated depreciation | C241: 716 | D241: i | H241: 0 | L241: =+M241-K241 -> 0 | P241: =+Q241-O241 -> 0 | R241: Include depreciation charges for donated assets. | S241: =IF(OR(G241-ROUND(G241,)<>0,I241-ROUND(I241,)<>0,K241-ROUND(K241,)<>0,M241-ROUND(M241,)<>0,O241-ROUND(O241,)<>0,Q241-ROUND(Q241,)<>0),"No decimal places allowed","") ->  | T241: =IF(OR(G241<V241,I241<V241,K241<V241,L241<V241,M241<V241,O241<V241,P241<V241,Q241<V241),"A value is below the minimum value allowed","") ->  | U241: =IF(OR(G241>W241,I241>W241,K241>W241,L241>W241,M241>W241,O241>W241,P241>W241,Q241>W241),"Input value is too high","") ->  | V241: =VLOOKUP($C241,'Min Max table'!$A$5:$C$208,2,FALSE) -> 0 | W241: =VLOOKUP($C241,'Min Max table'!$A$5:$C$205,3,FALSE) -> 200000
B242: Other assets owned depreciation | C242: 717 | D242: i | H242: 0 | L242: =+M242-K242 -> 0 | P242: =+Q242-O242 -> 0 | R242: Include depreciation charges for other assets, excluding buildings or donated assets. | S242: =IF(OR(G242-ROUND(G242,)<>0,I242-ROUND(I242,)<>0,K242-ROUND(K242,)<>0,M242-ROUND(M242,)<>0,O242-ROUND(O242,)<>0,Q242-ROUND(Q242,)<>0),"No decimal places allowed","") ->  | V242: =VLOOKUP($C242,'Min Max table'!$A$5:$C$208,2,FALSE) -> 0 | W242: =VLOOKUP($C242,'Min Max table'!$A$5:$C$205,3,FALSE) -> 200000
B243: Total Depreciation | C243: 720 | G243: =SUM(G240:G242) -> 0 | H243: 0 | I243: =SUM(I240:I242) -> 0 | K243: =SUM(K240:K242) -> 0 | L243: =+M243-K243 -> 0 | M243: =SUM(M240:M242) -> 0 | O243: =SUM(O240:O242) -> 0 | P243: =+Q243-O243 -> 0 | Q243: =SUM(Q240:Q242) -> 0 | V243: =VLOOKUP($C243,'Min Max table'!$A$5:$C$208,2,FALSE) -> 0 | W243: =VLOOKUP($C243,'Min Max table'!$A$5:$C$205,3,FALSE) -> 0
B245: 7 TRUST RESERVES
B246: The number of academies in the return should match the number of academy reserves. The balances should be the balance for each academy. Deficits are entered as a negative value.
G247: Balance at 31 Aug 22 | H247: Balance at 31 Mar 23 | K247: Balance at 31 Aug 23 | L247: Balance at 31 Mar 24 | M247: Balance at 31 Aug 24 | O247: Balance at 31 Mar 25 | P247: Balance at 31 Aug 25
B248: Trust total | C248: Line no. | D248: Help text | E248: Validation | G248: £'000 | H248: £'000 | K248: £'000 | L248: £'000 | M248: £'000 | O248: £'000 | P248: £'000 | R248: Help Text Guidance
B249: Total Trust Reserves | C249: 1001 | D249: i | E249: =IF(OR(S249<>"",T249<>"",U249<>"",Z249<>""),"Check- see columns S-Z for info","") ->  | G249: =SUM(G261:G350,G256,)+G253 -> 0 | H249: =SUM(H261:H350,H256,)+H253 -> 0 | K249: =IF($C$257="Yes",(SUM(K253,K256)),(SUM(K261:K350,K256,)+K253)) -> 0 | L249: =IF($C$257="Yes",(SUM(L253,L256)),(SUM(L261:L350,L256,)+L253)) -> 0 | M249: =IF($C$257="Yes",(SUM(M253,M256)),(SUM(M261:M350,M256,)+M253)) -> 0 | O249: =IF($C$257="Yes",(SUM(O253,O256)),(SUM(O261:O350,O256,)+O253)) -> 0 | P249: =IF($C$257="Yes",(SUM(P253,P256)),(SUM(P261:P350,P256,)+P253)) -> 0 | R249: This is a calculated field from lines 1000, 1002 and 800. This should equal line 430, however it may not match due to any changes in the structure of your trust. For this line to populate, enter your figures into line 1000, 1002, or lines 800 depending on whether your reserves are held centrally or at academy level. | V249: =VLOOKUP($C249,'Min Max table'!$A$5:$C$208,2,FALSE) -> 0 | W249: =VLOOKUP($C249,'Min Max table'!$A$5:$C$205,3,FALSE) -> 0 | X249: ="QU"&AB249 -> QU500 | Y249: =IF(Z249="","","Please refer to "&X249&" in the validations table") ->  | Z249: =IF(AC249>0,AD249,"") ->  | AA249: =VLOOKUP(X249,'Trust validations table'!$A$15:$E$346,4,FALSE) -> Trust reserves: Line 1001 - Total Trust Reserves | AB249: 500 | AC249: =IF($P$249-$P$111<>0,$AB249,0) -> 0 | AD249: The closing balance of all reserves for the trust isn't equal to the revenue reserves balance c/f at 31 August for the forecast year on line 430. Give us a brief explanation. | AE249: IF($P$224-$P$99<>0,$AB224,0)
B253: Adjustments to reserve balances | C253: 1002 | D253: i | E253: =IF(OR(S253<>"",T253<>"",U253<>"",Z253<>""),"Check- see columns S-Z for info","") ->  | R253: Please use this line if you need to adjust the reserve balances. An example may be if you have new academies that are not included on the form and you have included financial data for these academies. | S253: =IF(OR(G253-ROUND(G253,)<>0,H253-ROUND(H253,)<>0,K253-ROUND(K253,)<>0,L253-ROUND(L253,)<>0,M253-ROUND(M253,)<>0,O253-ROUND(O253,)<>0,P253-ROUND(P253,)<>0),"No decimal places allowed","") ->  | T253: =IF(OR(G253<V253,H253<V253,K253<V253,L253<V253,M253<V253,O253<V253,P253<V253,P253<V253),"Deficit is too high in at least one period","") ->  | U253: =IF(OR(G253>W253,H253>W253,K253>W253,L253>W253,M253>W253,O253>W253,P253>W253),"Reserves balance is too high during at least one period","") ->  | V253: =VLOOKUP($C253,'Min Max table'!$A$5:$C$208,2,FALSE) -> -999999 | W253: =VLOOKUP($C253,'Min Max table'!$A$5:$C$205,3,FALSE) -> 999999 | X253: ="QU"&AB253 -> QU503 | Y253: =IF(Z253="","","Please refer to "&X253&" in the validations table") ->  | Z253: =IF(AC253>0,AD253,"") ->  | AA253: =VLOOKUP(X253,'Trust validations table'!$A$15:$E$346,4,FALSE) -> Trust reserves: Line 1002 - Adjustments to reserve balances | AB253: 503 | AC253: =IF(OR(G253<>0,H253<>0,M253<>0,K253<>0,L253<>0,O253<>0,P253<>0),AB253,0) -> 0 | AD253: Tell us why you've adjusted the reserves balances, for example, are you including additional academies that haven't been recorded on the list below? | AE253: IF(OR(G228<>0,H228<>0,M228<>0,K228<>0,L228<>0,O228<>0,P228<>0),AB228,0)
B256: Centrally held reserves | C256: 1000 | D256: i | E256: =IF(OR(S256<>"",T256<>"",U256<>"",Z256<>""),"Check- see columns S-Z for info","") ->  | R256: Pooled Funding: Input the value of reserves held centrally. When GAG funding is fully pooled, this will be the trusts total reserves. Non-Pooled Funding: MAT's only. If your GAG funding is not fully pooled, and you hold reserves centrally and at academy level, please enter the centrally held reserves in line 1000, and then the reserve balances for each academy within the 800 lines. If you only hold reserve balances centrally, and not at academy level, please input these into line 1000. Once lines 1000 or 800 are populated, then line 1001 will populate automatically. | S256: =IF(OR(G256-ROUND(G256,)<>0,H256-ROUND(H256,)<>0,K256-ROUND(K256,)<>0,L256-ROUND(L256,)<>0,M256-ROUND(M256,)<>0,O256-ROUND(O256,)<>0,P256-ROUND(P256,)<>0),"No decimal places allowed","") ->  | T256: =IF(OR(G256<V256,H256<V256,K256<V256,L256<V256,M256<V256,O256<V256,P256<V256,P256<V256),"Deficit is too high in at least one period","") ->  | U256: =IF(OR(G256>W256,H256>W256,K256>W256,L256>W256,M256>W256,O256>W256,P256>W256),"Reserves balance is too high during at least one period","") ->  | V256: =VLOOKUP($C256,'Min Max table'!$A$5:$C$208,2,FALSE) -> -999999 | W256: =VLOOKUP($C256,'Min Max table'!$A$5:$C$205,3,FALSE) -> 999999 | X256: ="QU"&AB256 -> QU502 | Y256: =IF(Z256="","","Please refer to "&X256&" in the validations table") ->  | Z256: =IF(AC256>0,AD256,"") ->  | AA256: =VLOOKUP(X256,'Trust validations table'!$A$15:$E$346,4,FALSE) -> Trust reserves: Line 1000 - Centrally held reserves | AB256: 502 | AC256: =IF(OR(K256<0,M256<0,P256<0),AB256,0) -> 0 | AD256: There's a deficit on your closing reserves either at the end of the prior year, current year or forecast year. Tell us about the circumstances and the steps planned/taken to eliminate the deficit. | AE256: IF(OR(K224<0,M224<0,P224<0),AB231,0)
B257: Do you pool all of your GAG funding and are all Reserves are held centrally? | C257: No | D257: i
B259: Use the below 800 lines if you answered "No" to the above question and hold reserves at academy level. If you answered "Yes" and do not hold reserves at academy level - Skip to line 1990 - DfE Grant income in the Three year forecast section.
A260: UPIN | B260: Academy Name | C260: Line no. | D260: Help text | E260: Validation | R260: Help Text Guidance
A261: =IF('Organisation user'!B29="","",'Organisation user'!B29) ->  | B261: =IF('Organisation user'!C29="","",'Organisation user'!C29) ->  | C261: 800 | D261: i | E261: =IF($C$257="Yes","",IF(AND(AA261=0,OR(S261<>"",T261<>"",U261<>"",Z261<>"")),"Check- see columns S-Z for info","")) ->  | R261: The number of academies in the return should match the number of academy reserves. The balances should be the balance for each academy (unless you pool GAG funding). Deficits are entered as a negative value. Figures enetered in here will automatically add into line 1001 - Total trust reserves. | S261: =IF(OR(G261-ROUND(G261,)<>0,H261-ROUND(H261,)<>0,K261-ROUND(K261,)<>0,L261-ROUND(L261,)<>0,M261-ROUND(M261,)<>0,O261-ROUND(O261,)<>0,P261-ROUND(P261,)<>0),"No decimal places allowed","") ->  | T261: =IF(OR(G261<V261,H261<V261,K261<V261,L261<V261,M261<V261,O261<V261,P261<V261),"A value S241is below the minimum value allowed","") ->  | U261: =IF(OR(G261>W261,H261>W261,K261>W261,L261>W261,M261>W261,O261>W261,P261>W261),"Input value is too high","") ->  | V261: =VLOOKUP($C261,'Min Max table'!$A$5:$C$208,2,FALSE) -> -200000 | W261: =VLOOKUP($C261,'Min Max table'!$A$5:$C$205,3,FALSE) -> 200000 | X261: ="QU"&AB261 -> QU310 | Y261: =IF(Z261="","","Please refer to "&X261&" in the validations table") ->  | Z261: =IF(AC261>0,AD261,"") ->  | AA261: =VLOOKUP(X261,'Trust validations table'!$A$15:$E$346,4,FALSE) -> Trust reserves: Line 800 - Academy reserves | AB261: 310 | AC261: =IF(OR(K261<0,M261<0,P261<0),AB261,0) -> 0 | AD261: There is a deficit on your closing reserves either at the end of Yr1, Yr2 or Yr3. Could you explain the circumstances and what steps are planned/ you took to eliminate the deficit. | AE261: IF(OR(K235<0,M235<0,P235<0),AB235,0)
A262: =IF('Organisation user'!B30="","",'Organisation user'!B30) ->  | B262: =IF('Organisation user'!C30="","",'Organisation user'!C30) ->  | C262: 801 | S262: =IF(OR(G262-ROUND(G262,)<>0,H262-ROUND(H262,)<>0,K262-ROUND(K262,)<>0,L262-ROUND(L262,)<>0,M262-ROUND(M262,)<>0,O262-ROUND(O262,)<>0,P262-ROUND(P262,)<>0),"No decimal places allowed","") ->  | T262: =IF(OR(G262<V262,H262<V262,K262<V262,L262<V262,M262<V262,O262<V262,P262<V262),"A value S241is below the minimum value allowed","") ->  | U262: =IF(OR(G262>W262,H262>W262,K262>W262,L262>W262,M262>W262,O262>W262,P262>W262),"Input value is too high","") ->  | V262: =VLOOKUP($C262,'Min Max table'!$A$5:$C$208,2,FALSE) -> -200000 | W262: =VLOOKUP($C262,'Min Max table'!$A$5:$C$205,3,FALSE) -> 200000 | X262: QU311 | AA262: =VLOOKUP(X262,'Trust validations table'!$A$15:$E$346,4,FALSE) -> Trust reserves: Line 800 - Academy reserves | AB262: =1+AB261 -> 311 | AC262: =IF(OR(K262<0,M262<0,P262<0),AB262,0) -> 0 | AD262: There is a deficit on your closing reserves either at the end of Yr1, Yr2 or Yr3. Could you explain the circumstances and what steps are planned/ you took to eliminate the deficit. | AE262: IF(OR(K236<0,M236<0,P236<0),AB236,0)
A263: =IF('Organisation user'!B31="","",'Organisation user'!B31) ->  | B263: =IF('Organisation user'!C31="","",'Organisation user'!C31) ->  | C263: 802 | V263: =VLOOKUP($C263,'Min Max table'!$A$5:$C$208,2,FALSE) -> -200000 | W263: =VLOOKUP($C263,'Min Max table'!$A$5:$C$205,3,FALSE) -> 200000 | X263: QU312 | AA263: =VLOOKUP(X263,'Trust validations table'!$A$15:$E$346,4,FALSE) -> Trust reserves: Line 800 - Academy reserves | AB263: =1+AB262 -> 312 | AC263: 0 | AD263: There is a deficit on your closing reserves either at the end of Yr1, Yr2 or Yr3. Could you explain the circumstances and what steps are planned/ you took to eliminate the deficit. | AE263: IF(OR(K237<0,M237<0,P237<0),AB237,0)
... 118 more rows

Sheet Summary declaration
A1: Summary Declaration
B3: To ensure that figures input into the form have been rounded to the nearest £000, please review and confirm that the information in the table below is a true picture of your trust.
B4: Tick the box to confirm that the reported as figures are a true reflection of your trusts figures and show the unrounded position (in the orange cells).
B5: If these figures are incorrect, please go to the relevant section to amend data input.
B6: As with the online form, enter all monetary balances in round £000s, not pounds and pence. For example, for £10,471.23 enter 10, but for £10,891.25 enter 11. Enter a six-figure amount like £453,678 as 454.
F8: Actuals | G8: Actuals | H8: TOTAL | J8: Actuals | K8: Forecast | L8: TOTAL | N8: Forecast | O8: Forecast | P8: TOTAL
B9: Section of workbook | D9: line no. | F9: Sep 22 - Mar 23 | G9: Apr 23 - Aug 23 | H9: 2022/2023 | J9: Sep 23- Mar 24 | K9: Apr 24 - Aug 24 | L9: 2023/24 | N9: Sep 24 - Mar 25 | O9: Apr 25- Aug 25 | P9: 2024/25
B11: Revenue totals | C11: Net revenue income/(expenditure) for the period | D11: 400 | E11: calculated from input as (£000) | F11: ='BFR 2024'!G102 -> 0 | G11: ='BFR 2024'!H102 -> 0 | H11: ='BFR 2024'!I102 -> 0 | J11: ='BFR 2024'!K102 -> 0 | K11: ='BFR 2024'!L102 -> 0 | L11: ='BFR 2024'!M102 -> 0 | N11: ='BFR 2024'!O102 -> 0 | O11: ='BFR 2024'!P102 -> 0 | P11: ='BFR 2024'!Q102 -> 0
E12: reported as (£) | F12: =F11*1000 -> 0 | G12: =G11*1000 -> 0 | H12: =H11*1000 -> 0 | J12: =J11*1000 -> 0 | K12: =K11*1000 -> 0 | L12: =L11*1000 -> 0 | N12: =N11*1000 -> 0 | O12: =O11*1000 -> 0 | P12: =P11*1000 -> 0
B14: Capital totals | C14: Net capital income/(expenditure) for the period | D14: 660 | E14: calculated from input as (£000) | F14: ='BFR 2024'!G175 -> 0 | G14: ='BFR 2024'!H175 -> 0 | H14: ='BFR 2024'!I175 -> 0 | J14: ='BFR 2024'!K175 -> 0 | K14: ='BFR 2024'!L175 -> 0 | L14: ='BFR 2024'!M175 -> 0 | N14: ='BFR 2024'!O175 -> 0 | O14: ='BFR 2024'!P175 -> 0 | P14: ='BFR 2024'!Q175 -> 0
E15: reported as (£) | F15: =F14*1000 -> 0 | G15: =G14*1000 -> 0 | H15: =H14*1000 -> 0 | J15: =J14*1000 -> 0 | K15: =K14*1000 -> 0 | L15: =L14*1000 -> 0 | N15: =N14*1000 -> 0 | O15: =O14*1000 -> 0 | P15: =P14*1000 -> 0
F17: Balance at 31 Aug 22 | G17: Balance at 31 Mar 23 | J17: Balance at 31 Aug 23 | K17: Balance at 31 Mar 24 | L17: Balance at 31 Aug 24 | N17: Balance at 31 Mar 25 | O17: Balance at 31 Aug 25
B19: Reserves total | C19: Total trust reserves | D19: 1001 | E19: calculated from input as (£000) | F19: ='BFR 2024'!G249 -> 0 | G19: ='BFR 2024'!H249 -> 0 | J19: ='BFR 2024'!K249 -> 0 | K19: ='BFR 2024'!L249 -> 0 | L19: ='BFR 2024'!M249 -> 0 | N19: ='BFR 2024'!O249 -> 0 | O19: ='BFR 2024'!P249 -> 0
E20: reported as (£) | F20: =F19*1000 -> 0 | G20: =G19*1000 -> 0 | J20: =J19*1000 -> 0 | K20: =K19*1000 -> 0 | L20: =L19*1000 -> 0 | N20: =N19*1000 -> 0 | O20: =O19*1000 -> 0
B25: Three year forecast
F26: 2024/25 | G26: 2025/26 | H26: 2026/27
B27: Section of form | D27: line no.
B29: Revenue Net | D29: 4000 | E29: calculated from input as (£000) | F29: ='BFR 2024'!H374 -> 0 | G29: ='BFR 2024'!I374 -> 0 | H29: ='BFR 2024'!J374 -> 0
E30: reported as (£) | F30: =F29*1000 -> 0 | G30: =G29*1000 -> 0 | H30: =H29*1000 -> 0
B31: Capital Net | D31: 6600 | E31: calculated from input as (£000) | F31: ='BFR 2024'!H382 -> 0 | G31: ='BFR 2024'!I382 -> 0 | H31: ='BFR 2024'!J382 -> 0
E32: reported as (£) | F32: =F31*1000 -> 0 | G32: =G31*1000 -> 0 | H32: 0
B33: Trust Reserves | D33: 8000 | E33: calculated from input as (£000) | F33: ='BFR 2024'!H395 -> 0 | G33: ='BFR 2024'!I395 -> 0 | H33: ='BFR 2024'!J395 -> 0
E34: reported as (£) | F34: =F33*1000 -> 0 | G34: =G33*1000 -> 0 | H34: =H33*1000 -> 0
D37: Please confirm that these are your correct balances.
D39: No | F39: =IF(D39="Yes","","You must select yes") -> You must select yes

Sheet Preparer declaration
C2: Preparer Declaration
C4: Contact details of person completing the form
C6: Please enter these details, so DFE/ESFA can contact you if there are any questions.
C8: Contact name:
C12: Contact email address:
C16: Contact phone number:
C21: Are there any other comments you wish to add in relation to this submission?
C27: Date:
C29: I confirm that I have selected and completed all relevant sections, input the required information accurately and resolved all validation flags. I confirm that the information entered is accurate, complete and relates to the correct periods on a consistent basis using the guidance provided by the Education Skills Funding Agency
C34: No | F34: =IF(C34="Yes","","You must select yes") -> You must select yes
C37: No of validations outstanding | G37: =SUM('Trust validations table'!C5:C6) -> 13
D42: Yes
D43: No

Sheet Approver declaration
C2: Academy Trust Declaration (approver)
C4: Contact details of person completing the form
C5: Please enter these details, so DFE/ESFA can contact you if there are any questions.
C7: Contact name:
C11: Contact email address:
C15: Contact phone number:
C19: Are you the Accounting Officer? | G19: No
E21: Name of Accounting Officer (if different to name above):
E25: E-mail address:
C30: Approve or reject submission? | G30: Reject
C32: Are there any other comments you wish to add in relation to this submission?
C38: Date:
C41: "I confirm that I have been authorised by the trust's accounting officer to submit this return. In doing so I confirm, on behalf of the trust's accounting officer, that the entries in the budget forecast return have been prepared on a consistent basis and presented in accordance with the guidance notes issued by the Education Skills Funding Agency" | L41: OR | M41: "I confirm that the entries in the budget forecast return have been prepared on a consistent basis and presented in accordance with the guidance notes issued by the Education Skills Funding Agency"
S42: No | U42: =IF(S42="Yes","","You must select yes") -> You must select yes
C45: "I confirm that the trustees have reviewed and approved the content of this form and that I am ready to submit" | M45: No | O45: =IF(M45="Yes","","You must select yes") -> You must select yes
C49: No of validations outstanding | G49: =SUM('Trust validations table'!C5:C6) -> 13
D54: Yes
D55: No

Sheet Min Max table
A1: Table of min and max values
A2: This table is for info only. The values are used in the 'BFR 2024' tab for the min/max tests.
A4: Line no. | B4: Minimum value | C4: Maximum value | D4: Description
A5: 101 | B5: =-100000 -> -100000 | C5: =100000 -> 100000 | D5: Rates reclaim
A6: 102 | B6: 0 | C6: =800000 -> 800000 | D6: General Academy Grant (GAG) (excluding Student Service Grant)
A7: 103 | B7: 0 | C7: =100000 -> 100000 | D7: Student Services Grant (Academy Post 16 Bursary Funding)
A8: 105 | B8: 0 | C8: 100000 | D8: Start Up Grants
A9: 108 | B9: 0 | C9: 100000 | D9: Pupil Premium & Service Premium
A10: 132 | B10: =-100000 -> -100000 | C10: 100000 | D10: Pupil Number Adjustment
A11: 135 | B11: 0 | C11: 100000 | D11: Other DfE/ESFA revenue grants
A12: 136 | B12: 0 | C12: 100000 | D12: Universal Infant Free School Meals
A13: 137 | B13: 0 | C13: 100000 | D13: Insurance
A14: 138 | B14: 0 | C14: =300000 -> 300000 | D14: Sponsor Capacity Grant
A15: 150 | B15: =-100000 -> -100000 | C15: =300000 -> 300000 | D15: Other DfE/ESFA family revenue Grants
A16: 199 | D16: Total DfE/ESFA revenue Income
A17: 200 | B17: -400000 | C17: =100000 -> 100000 | D17: Local authority revenue income
A18: 205 | B18: -400000 | C18: =100000 -> 100000 | D18: Other government grants
A19: 210 | B19: -400000 | C19: =100000 -> 100000 | D19: Income from trading activities
A20: 211 | B20: -400000 | C20: =100000 -> 100000 | D20: Income from trading activities
A21: 212 | B21: -400000 | C21: =400000 -> 400000 | D21: ='BFR 2024'!B51 -> Revenue surplus transfer of an existing academy in / (out) of the trust
A22: 215 | B22: -400000 | C22: =400000 -> 400000 | D22: Revenue surplus transfer to academy on conversion
A23: 218
A24: 220 | B24: -500000 | C24: =100000 -> 100000 | D24: Other income, including investment income
A25: 250 | D25: Total Other revenue Income
A26: 255 | B26: =-400000 -> -400000 | C26: =400000 -> 400000 | D26: Transfers between Revenue and Capital (line 585)
A27: 298 | D27: Total Revenue Income
A28: 310 | B28: 0 | C28: =800000 -> 800000 | D28: Wages and Salaries
A29: 311 | B29: 0 | C29: =200000 -> 200000 | D29: Social Security Costs
A30: 320 | B30: 0 | C30: =200000 -> 200000 | D30: Pension Cost: Teaching staff
A31: 325 | B31: 0 | C31: =200000 -> 200000 | D31: Pension Cost: Non-teaching staff
A32: 335 | D32: Total staff costs
A33: 336 | B33: 0 | C33: 100000 | D33: ICT costs - connectivity
A34: 337 | B34: 0 | C34: 100000 | D34: ICT costs - Onsite servers
A35: 338 | B35: 0 | C35: 100000 | D35: ICT costs - IT learning resources
A36: 339 | B36: 0 | C36: 100000 | D36: ICT costs - Administration software and systems
A37: 340 | B37: 0 | C37: 100000 | D37: ICT costs - Laptops, desktops and tablets
A38: 341 | B38: 0 | C38: 100000 | D38: ICT costs - Other hardware
A39: 342 | B39: 0 | C39: 100000 | D39: ICT costs - IT support
A40: 330 | B40: 0 | C40: =200000 -> 200000 | D40: Other Staff Support Costs
A41: 349 | D41: Subtotal Support costs
A42: 350 | B42: -200000 | C42: =200000 -> 200000 | D42: ='BFR 2024'!B89 -> Revenue deficit transfer of an existing academy in / (out) of the trust
A43: 351 | B43: 0 | C43: =200000 -> 200000 | D43: Revenue deficit transfer to academy on conversion
A44: 352 | D44: Subtotal Transfers deficit
A45: 378 | B45: 0 | C45: 800000 | D45: Non staff costs (cash)
A46: 379 | B46: 0 | C46: =200000 -> 200000 | D46: Building repair & maintenance / Building improvements
A47: 380 | D47: Total revenue expenditure
A48: 395 | B48: 0 | C48: =200000 -> 200000 | D48: Other non cash costs
A49: 400 | D49: Net revenue income/(expenditure) for the period
A50: 410 | B50: =-400000 -> -400000 | C50: =400000 -> 400000 | D50: Balance b/f from previous period
A51: 430 | D51: Balance c/f to next period
A52: 510 | B52: =-400000 -> -400000 | C52: =400000 -> 400000 | D52: Devolved formula capital
A53: 520 | B53: =-400000 -> -400000 | C53: =400000 -> 400000 | D53: Value of any capital donation of an asset from the ESFA for PSBP/Free Schools programme
A54: 530 | B54: =-400000 -> -400000 | C54: =400000 -> 400000 | D54: Other DfE income - Capital
A55: 540 | B55: =-400000 -> -400000 | C55: =400000 -> 400000 | D55: Other DfE family Capital Grants
A56: 550 | D56: Total DfE Capital Income
A57: 560 | B57: =-400000 -> -400000 | C57: =400000 -> 400000 | D57: Local authority capital income (cash)
A58: 570 | B58: =-400000 -> -400000 | C58: 400000 | D58: Non Government capital income
A59: 571 | B59: =-400000 -> -400000 | C59: 400000 | D59: Other Government Grant capital income
A60: 572 | B60: 0 | C60: 400000 | D60: Capital assets transferred to academy on conversion
A61: 573 | B61: 0 | C61: 400000 | D61: Capital assets transferred of an existing academy into the trust
A62: 574 | B62: 0 | C62: 400000 | D62: Endowment realeases to fund capital expenditure
A63: 575 | B63: 0 | C63: 400000 | D63: Local authority donated assets
A64: 580 | D64: Total Other Capital Income
A65: 581 | B65: 0 | C65: 400000 | D65: Land & buildings disposals
A66: 582 | B66: 0 | C66: =200000 -> 200000 | D66: Other fixed assets disposals
A67: 584 | D67: Total Disposal proceeds
A68: 585 | D68: Transfers between Revenue and Capital (contra line 255)
A69: 599 | D69: Total Capital Income
A70: 601 | B70: 0 | C70: =400000 -> 400000 | D70: Land & buildings additions funded by ESFA grants
A71: 605 | B71: 0 | C71: 400000 | D71: Land & buildings donated to the trust by the ESFA (PSPB/Free Schools Programme)
A72: 606 | B72: 0 | C72: 400000 | D72: Local authority donated assets expense
A73: 615 | B73: 0 | C73: 400000 | D73: Land & buildings additions funded by other capital grants
A74: 620 | B74: 0 | C74: 400000 | D74: Land & buildings additions funded by reserves
A75: 621 | B75: 0 | C75: 100000 | D75: ICT costs - connectivity
A76: 622 | B76: 0 | C76: 100000 | D76: ICT costs - onsite servers
A77: 623 | B77: 0 | C77: 100000 | D77: ICT costs - administration software and systems
A78: 624 | B78: 0 | C78: 100000 | D78: ICT costs - laptops, desktops and tablets
A79: 625 | B79: 0 | C79: 100000 | D79: ICT costs - other hardware
A80: 636 | B80: 0 | C80: 400000 | D80: Other fixed assets additions funded by ESFA grants
A81: 637 | B81: 0 | C81: 400000 | D81: Other fixed assets additions funded by other capital grants
A82: 638 | B82: 0 | C82: 400000 | D82: Other fixed assets additions funded by reserves
A83: 639 | B83: =-400000 -> -400000 | C83: 0 | D83: Capital assets transferred of an existing academy out of the trust
A84: 650 | D84: Total Capital Expenditure
A85: 660 | D85: Net Capital income/(expenditure) for the period
A86: 670 | B86: -400000 | C86: 400000 | D86: Capital Totals Bal Bfwd from previous
A87: 680 | D87: Capital Balance Cfwd to next period
A88: 700 | B88: 0 | C88: =400000 -> 400000 | D88: Cash at bank and in hand
A89: 701 | B89: =-200000 -> -200000 | C89: 0 | D89: Overdrafts
A90: 710 | B90: =-100000 -> -100000 | C90: =100000 -> 100000 | D90: Gain/loss on disposal of fixed assets
A91: 712 | B91: =-100000 -> -100000 | C91: =400000 -> 400000 | D91: Impairment charges
A92: 715 | B92: 0 | C92: =200000 -> 200000 | D92: Buildings depreciation
A93: 716 | B93: 0 | C93: =200000 -> 200000 | D93: Other assets donated depreciation
A94: 717 | B94: 0 | C94: =200000 -> 200000 | D94: Other assets owned depreciation
A95: 720 | D95: Total Depreciation
A96: 725 | B96: 0 | C96: =400000 -> 400000 | D96: Investments
A97: 730 | B97: 0 | C97: =100000 -> 100000 | D97: Investment liquidations
A98: 736 | B98: 0 | C98: =100000 -> 100000 | D98: Provision increase
A99: 737 | B99: =-100000 -> -100000 | C99: 0 | D99: Provisions release (enter as a negative value)
A100: 738 | B100: =-100000 -> -100000 | C100: 0 | D100: Provision utilisation
A101: 780 | B101: 0 | C101: =100000 -> 100000 | D101: Opening outstanding loans
A102: 785 | B102: =-100000 -> -100000 | C102: =100000 -> 100000 | D102: Increase/(Decrease) in outstanding loans
A103: 789 | D103: Closing outstanding loans
A104: 800 | B104: =-200000 -> -200000 | C104: =200000 -> 200000 | D104: UPIN
A105: 801 | B105: -200000 | C105: 200000 | D105: UPIN
A106: 802 | B106: -200000 | C106: 200000 | D106: UPIN
A107: 803 | B107: -200000 | C107: 200000 | D107: UPIN
A108: 804 | B108: -200000 | C108: 200000 | D108: UPIN
A109: 805 | B109: -200000 | C109: 200000 | D109: UPIN
A110: 806 | B110: -200000 | C110: 200000 | D110: UPIN
A111: 807 | B111: -200000 | C111: 200000 | D111: UPIN
A112: 808 | B112: -200000 | C112: 200000 | D112: UPIN
A113: 809 | B113: -200000 | C113: 200000 | D113: UPIN
A114: 810 | B114: -200000 | C114: 200000 | D114: UPIN
A115: 811 | B115: -200000 | C115: 200000 | D115: UPIN
A116: 812 | B116: -200000 | C116: 200000 | D116: UPIN
A117: 813 | B117: -200000 | C117: 200000 | D117: UPIN
A118: 814 | B118: -200000 | C118: 200000 | D118: UPIN
A119: 815 | B119: -200000 | C119: 200000 | D119: UPIN
A120: 816 | B120: -200000 | C120: 200000 | D120: UPIN
A121: 817 | B121: -200000 | C121: 200000 | D121: UPIN
A122: 818 | B122: -200000 | C122: 200000 | D122: UPIN
A123: 819 | B123: -200000 | C123: 200000 | D123: UPIN
A124: 820 | B124: -200000 | C124: 200000 | D124: UPIN
A125: 821 | B125: -200000 | C125: 200000 | D125: UPIN
A126: 822 | B126: -200000 | C126: 200000 | D126: UPIN
A127: 823 | B127: -200000 | C127: 200000 | D127: UPIN
A128: 824 | B128: -200000 | C128: 200000 | D128: UPIN
A129: 825 | B129: -200000 | C129: 200000 | D129: UPIN
A130: 826 | B130: -200000 | C130: 200000 | D130: UPIN
A131: 827 | B131: -200000 | C131: 200000 | D131: UPIN
A132: 828 | B132: -200000 | C132: 200000 | D132: UPIN
A133: 829 | B133: -200000 | C133: 200000 | D133: UPIN
A134: 830 | B134: -200000 | C134: 200000 | D134: UPIN
A135: 831 | B135: -200000 | C135: 200000 | D135: UPIN
A136: 832 | B136: -200000 | C136: 200000 | D136: UPIN
A137: 833 | B137: -200000 | C137: 200000 | D137: UPIN
A138: 834 | B138: -200000 | C138: 200000 | D138: UPIN
A139: 835 | B139: -200000 | C139: 200000 | D139: UPIN
A140: 836 | B140: -200000 | C140: 200000 | D140: UPIN
A141: 837 | B141: -200000 | C141: 200000 | D141: UPIN
A142: 838 | B142: -200000 | C142: 200000 | D142: UPIN
A143: 839 | B143: -200000 | C143: 200000 | D143: UPIN
A144: 840 | B144: -200000 | C144: 200000 | D144: UPIN
A145: 841 | B145: -200000 | C145: 200000 | D145: UPIN
A146: 842 | B146: -200000 | C146: 200000 | D146: UPIN
A147: 843 | B147: -200000 | C147: 200000 | D147: UPIN
A148: 844 | B148: -200000 | C148: 200000 | D148: UPIN
A149: 845 | B149: -200000 | C149: 200000 | D149: UPIN
A150: 846 | B150: -200000 | C150: 200000 | D150: UPIN
A151: 847 | B151: -200000 | C151: 200000 | D151: UPIN
A152: 848 | B152: -200000 | C152: 200000 | D152: UPIN
A153: 849 | B153: -200000 | C153: 200000 | D153: UPIN
A154: 850 | B154: -200000 | C154: 200000 | D154: UPIN
A155: 851 | B155: -200000 | C155: 200000 | D155: UPIN
A156: 852 | B156: -200000 | C156: 200000 | D156: UPIN
A157: 853 | B157: -200000 | C157: 200000 | D157: UPIN
A158: 854 | B158: -200000 | C158: 200000 | D158: UPIN
A159: 855 | B159: -200000 | C159: 200000 | D159: UPIN
A160: 856 | B160: -200000 | C160: 200000 | D160: UPIN
A161: 857 | B161: -200000 | C161: 200000 | D161: UPIN
A162: 858 | B162: -200000 | C162: 200000 | D162: UPIN
A163: 859 | B163: -200000 | C163: 200000 | D163: UPIN
A164: 860 | B164: -200000 | C164: 200000 | D164: UPIN
A165: 861 | B165: -200000 | C165: 200000 | D165: UPIN
A166: 862 | B166: -200000 | C166: 200000 | D166: UPIN
A167: 863 | B167: -200000 | C167: 200000 | D167: UPIN
A168: 864 | B168: =-200000 -> -200000 | C168: =200000 -> 200000 | D168: UPIN
A169: 865 | B169: -200000 | C169: 200000 | D169: UPIN
A170: 866 | B170: -200000 | C170: 200000 | D170: UPIN
A171: 867 | B171: -200000 | C171: 200000 | D171: UPIN
A172: 868 | B172: -200000 | C172: 200000 | D172: UPIN
A173: 869 | B173: -200000 | C173: 200000 | D173: UPIN
A174: 870 | B174: -200000 | C174: 200000 | D174: UPIN
A175: 871 | B175: -200000 | C175: 200000 | D175: UPIN
A176: 872 | B176: -200000 | C176: 200000 | D176: UPIN
A177: 873 | B177: -200000 | C177: 200000 | D177: UPIN
A178: 874 | B178: -200000 | C178: 200000 | D178: UPIN
A179: 875 | B179: -200000 | C179: 200000 | D179: UPIN
A180: 876 | B180: -200000 | C180: 200000 | D180: UPIN
A181: 877 | B181: -200000 | C181: 200000 | D181: UPIN
A182: 878 | B182: -200000 | C182: 200000 | D182: UPIN
A183: 879 | B183: -200000 | C183: 200000 | D183: UPIN
A184: 880 | B184: =-200000 -> -200000 | C184: =200000 -> 200000 | D184: UPIN
A185: 881 | B185: -200000 | C185: 200000 | D185: UPIN
A186: 882 | B186: -200000 | C186: 200000 | D186: UPIN
A187: 883 | B187: -200000 | C187: 200000 | D187: UPIN
A188: 884 | B188: -200000 | C188: 200000 | D188: UPIN
A189: 885 | B189: -200000 | C189: 200000 | D189: UPIN
A190: 886 | B190: -200000 | C190: 200000 | D190: UPIN
A191: 887 | B191: -200000 | C191: 200000 | D191: UPIN
A192: 888 | B192: -200000 | C192: 200000 | D192: UPIN
A193: 889 | B193: -200000 | C193: 200000 | D193: UPIN
A194: 999 | B194: 0 | C194: =999999 -> 999999 | D194: Pupil numbers (actual and estimated)
A195: 1000 | B195: =-999999 -> -999999 | C195: =999999 -> 999999 | D195: Centrally held reserves (MATs Only)
A196: 1001 | D196: Total Trust Reserves
A197: 1002 | B197: =-999999 -> -999999 | C197: =999999 -> 999999 | D197: Adjustments to reserve balances
A199: 3 year forecast
A200: Line no. | B200: Minimum value | C200: Maximum value | D200: Description
A201: 1990 | B201: 0 | C201: 800000 | D201: DfE grant income
A202: 2500 | B202: 0 | C202: 400000 | D202: Other income
... 23 more rows

Sheet Trust validations table
A1: Validations table
A2: Trust responses to queries | C2: Please complete your answers in this table. You can then review your answers and paste into the online form.
A5: No of 3Y forecast validations outstanding | C5: =COUNTIF('Trust validations table'!F134:F145,"Response outstanding") -> 4
A6: No of validations outstanding | C6: =COUNTIF('Trust validations table'!F15:F133,"Response outstanding") -> 9
A8: Query reference | C8: Query | D8: Section query relates to | E8: Trust Response | F8: STATUS
A11: FQ1 | B11: =RIGHT(A11,2) -> Q1
A12: FQ2 | B12: Q2
A13: FQ3 | B13: Q3
A14: FQ4 | B14: Q4
A15: QU1 | B15: 1 | C15: =IF(VLOOKUP($A15,'BFR 2024'!$X$32:$AA$397,3,FALSE)=0,"",VLOOKUP($A15,'BFR 2024'!$X$32:$AA$396,3,FALSE)) -> You have forecast zero for GAG income for next year (102). Briefly tell us why this value is zero? | D15: Revenue Income: Line 102 - General Academy Grant (GAG) (excluding Student Service Grant) | F15: =IF(C15="","OK",IF(E15="","Response Outstanding","Response Provided")) -> Response Outstanding
A16: QU99 | B16: 99 | C16: =IF(VLOOKUP($A16,'BFR 2024'!$X$24:$AA$397,3,FALSE)=0,"",VLOOKUP($A16,'BFR 2024'!$X$24:$AA$396,3,FALSE)) -> Please explain why your GAG per pupil is greater than £30k | D16: GAG line 102 divided by pupil numbers line 999 | F16: Response Outstanding
A17: QU2 | B17: 2 | C17: =IF(VLOOKUP($A17,'BFR 2024'!$X$32:$AA$397,3,FALSE)=0,"",VLOOKUP($A17,'BFR 2024'!$X$32:$AA$396,3,FALSE)) ->  | D17: Revenue Income: Line 132 - Pupil Number Adjustment | F17: OK
A18: QU3 | B18: 3 | C18: =IF(VLOOKUP($A18,'BFR 2024'!$X$32:$AA$385,3,FALSE)=0,"",VLOOKUP($A18,'BFR 2024'!$X$32:$AA$384,3,FALSE)) -> Income totals are zero in any year - is this correct? | D18: Revenue totals | F18: Response Outstanding
A19: QU4 | B19: 4 | C19: =IF(VLOOKUP($A19,'BFR 2024'!$X$32:$AA$385,3,FALSE)=0,"",VLOOKUP($A19,'BFR 2024'!$X$32:$AA$384,3,FALSE)) -> Expenditure totals are zero for any year - is this correct? | D19: Revenue totals | F19: Response Outstanding
A20: QU5 | B20: 5 | C20: =IF(VLOOKUP($A20,'BFR 2024'!$X$32:$AA$397,3,FALSE)=0,"",VLOOKUP($A20,'BFR 2024'!$X$32:$AA$396,3,FALSE)) ->  | D20: Revenue expenditure: Line 380 - Total revenue expenditure | F20: OK
A21: QU6 | B21: 6 | C21: =IF(VLOOKUP($A21,'BFR 2024'!$X$32:$AA$397,3,FALSE)=0,"",VLOOKUP($A21,'BFR 2024'!$X$32:$AA$396,3,FALSE)) ->  | D21: Revenue totals: Line 400 - Net revenue income/(expenditure) for the period | F21: OK
A22: QU7 | B22: 7 | C22: =IF(VLOOKUP($A22,'BFR 2024'!$X$32:$AA$397,3,FALSE)=0,"",VLOOKUP($A22,'BFR 2024'!$X$32:$AA$396,3,FALSE)) -> Explain where the opening balance (410) is derived from. This should be from the prior year's Accounts Return. | D22: Revenue totals: Line 410 - Balance b/f from previous period | F22: Response Outstanding
A23: QU8 | B23: 8 | C23: =IF(VLOOKUP($A23,'BFR 2024'!$X$32:$AA$397,3,FALSE)=0,"",VLOOKUP($A23,'BFR 2024'!$X$32:$AA$396,3,FALSE)) -> Please explain why the balance brought forward from previous period (410) is £0 | D23: Revenue totals | F23: Response Outstanding
A24: QU9 | B24: 9 | C24: =IF(VLOOKUP($A24,'BFR 2024'!$X$32:$AA$397,3,FALSE)=0,"",VLOOKUP($A24,'BFR 2024'!$X$32:$AA$396,3,FALSE)) ->  | D24: Revenue totals | F24: OK
A25: QU10 | B25: 10 | C25: =IF(VLOOKUP($A25,'BFR 2024'!$X$32:$AA$397,3,FALSE)=0,"",VLOOKUP($A25,'BFR 2024'!$X$32:$AA$396,3,FALSE)) ->  | D25: Revenue totals: Line 430 - Balance c/f to next period | F25: OK
A26: QU430 | B26: 430 | C26: =IF(VLOOKUP($A26,'BFR 2024'!$X$32:$AA$397,3,FALSE)=0,"",VLOOKUP($A26,'BFR 2024'!$X$32:$AA$396,3,FALSE)) ->  | D26: 20% reserves value
A27: QU11 | B27: 11 | C27: =IF(VLOOKUP($A27,'BFR 2024'!$X$32:$AA$397,3,FALSE)=0,"",VLOOKUP($A27,'BFR 2024'!$X$32:$AA$396,3,FALSE)) ->  | D27: Capital income: Line 570 - Non Government capital income | F27: OK
A28: QU12 | B28: 12 | C28: =IF(VLOOKUP($A28,'BFR 2024'!$X$32:$AA$397,3,FALSE)=0,"",VLOOKUP($A28,'BFR 2024'!$X$32:$AA$396,3,FALSE)) ->  | D28: Capital income: Line 571 - Other Government Grant capital income | F28: OK
A29: QU13 | B29: 13 | C29: =IF(VLOOKUP($A29,'BFR 2024'!$X$32:$AA$397,3,FALSE)=0,"",VLOOKUP($A29,'BFR 2024'!$X$32:$AA$396,3,FALSE)) ->  | D29: Capital income: Line 560 - Local authority capital income (cash) | F29: OK
A30: QU14 | B30: 14 | C30: =IF(VLOOKUP($A30,'BFR 2024'!$X$32:$AA$397,3,FALSE)=0,"",VLOOKUP($A30,'BFR 2024'!$X$32:$AA$396,3,FALSE)) ->  | D30: Capital totals: Line 660 - Net Capital income/(expenditure) for the period | F30: OK
A31: QU15 | B31: 15 | C31: =IF(VLOOKUP($A31,'BFR 2024'!$X$32:$AA$397,3,FALSE)=0,"",VLOOKUP($A31,'BFR 2024'!$X$32:$AA$396,3,FALSE)) -> Check that the figures you've entered for Cash at bank and in hand (700) are correct. If so, explain why your bank balances are all NIL. | D31: Other items: Line 700 - Cash at bank and in hand | F31: Response Outstanding
A32: QU16 | B32: 16 | C32: =IF(VLOOKUP($A32,'BFR 2024'!$X$32:$AA$397,3,FALSE)=0,"",VLOOKUP($A32,'BFR 2024'!$X$32:$AA$396,3,FALSE)) -> Enter your overdraft balances, if not applicable, please state this. If your overdraft was cleared before the balance dates then provide a brief explanation. | D32: Other items: Line 701 - Overdrafts | F32: Response Outstanding
A33: QU17 | B33: 17 | C33: =IF(VLOOKUP($A33,'BFR 2024'!$X$32:$AA$397,3,FALSE)=0,"",VLOOKUP($A33,'BFR 2024'!$X$32:$AA$396,3,FALSE)) ->  | D33: Other items: Line 725 - Investments | F33: OK
A34: QU18 | B34: 18 | C34: =IF(VLOOKUP($A34,'BFR 2024'!$X$32:$AA$397,3,FALSE)=0,"",VLOOKUP($A34,'BFR 2024'!$X$32:$AA$396,3,FALSE)) ->  | D34: Other items: Line 785 - Increase/(Decrease) in outstanding loans | F34: OK
A35: QU19 | B35: 19 | C35: =IF(VLOOKUP($A35,'BFR 2024'!$X$32:$AA$397,3,FALSE)=0,"",VLOOKUP($A35,'BFR 2024'!$X$32:$AA$396,3,FALSE)) ->  | D35: Other items: Line 789 -Closing outstanding loans | F35: OK
A36: QU20 | B36: 20 | C36: =IF(VLOOKUP($A36,'BFR 2024'!$X$32:$AA$397,3,FALSE)=0,"",VLOOKUP($A36,'BFR 2024'!$X$32:$AA$396,3,FALSE)) ->  | D36: Other items: Line 712 - Impairment charges | F36: OK
A37: QU21 | B37: 21 | C37: =IF(VLOOKUP($A37,'BFR 2024'!$X$32:$AA$397,3,FALSE)=0,"",VLOOKUP($A37,'BFR 2024'!$X$32:$AA$396,3,FALSE)) ->  | D37: Capital income: Line 585 - Transfers between Revenue and Capital (contra line 255) | F37: OK
A38: QU22 | B38: 22 | C38: =IF(VLOOKUP($A38,'BFR 2024'!$X$23:$AA$397,3,FALSE)=0,"",VLOOKUP($A38,'BFR 2024'!$X$23:$AA$396,3,FALSE)) -> Check that you've entered pupil numbers correctly (without rounding) or explain why you've inputted no pupil numbers. | D38: Other items: Line 999 - Pupil numbers | F38: Response Outstanding
A39: QU379 | B39: 379 | C39: =IF(VLOOKUP($A39,'BFR 2024'!$X$23:$AA$397,3,FALSE)=0,"",VLOOKUP($A39,'BFR 2024'!$X$23:$AA$396,3,FALSE)) ->  | D39: Building repair & maintenance / Building improvements: Line 379 disclosure only | F39: OK
A40: QU23 | B40: 23 | C40: =IF(VLOOKUP($A40,'BFR 2024'!$X$32:$AA$397,3,FALSE)=0,"",VLOOKUP($A40,'BFR 2024'!$X$32:$AA$396,3,FALSE)) ->  | D40: Revenue expenditure: Line 395 - Other Non cash costs | F40: OK
A41: QU500 | B41: 500 | C41: =IF(VLOOKUP($A41,'BFR 2024'!$X$32:$AA$397,3,FALSE)=0,"",VLOOKUP($A41,'BFR 2024'!$X$32:$AA$396,3,FALSE)) ->  | D41: Trust reserves: Line 1001 - Total Trust Reserves | F41: OK
A42: QU502 | B42: 502 | C42: =IF(VLOOKUP($A42,'BFR 2024'!$X$32:$AA$397,3,FALSE)=0,"",VLOOKUP($A42,'BFR 2024'!$X$32:$AA$396,3,FALSE)) ->  | D42: Trust reserves: Line 1000 - Centrally held reserves | F42: OK
A43: QU503 | B43: 503 | C43: =IF(VLOOKUP($A43,'BFR 2024'!$X$32:$AA$397,3,FALSE)=0,"",VLOOKUP($A43,'BFR 2024'!$X$32:$AA$396,3,FALSE)) ->  | D43: Trust reserves: Line 1002 - Adjustments to reserve balances | F43: OK
A44: QU310 | B44: 310 | C44: =IF(VLOOKUP($A44,'BFR 2024'!$X$32:$AA$397,3,FALSE)=0,"",VLOOKUP($A44,'BFR 2024'!$X$32:$AA$396,3,FALSE)) ->  | D44: Trust reserves: Line 800 - Academy reserves | F44: OK
A45: QU311 | B45: =1+B44 -> 311 | C45: =IF(VLOOKUP($A45,'BFR 2024'!$X$32:$AA$397,3,FALSE)=0,"",VLOOKUP($A45,'BFR 2024'!$X$32:$AA$396,3,FALSE)) ->  | D45: Trust reserves: Line 800 - Academy reserves | F45: OK
A46: QU312 | B46: =1+B45 -> 312 | C46: =IF(VLOOKUP($A46,'BFR 2024'!$X$32:$AA$397,3,FALSE)=0,"",VLOOKUP($A46,'BFR 2024'!$X$32:$AA$396,3,FALSE)) ->  | D46: Trust reserves: Line 800 - Academy reserves | F46: OK
A47: QU313 | B47: 313 | C47: =IF(VLOOKUP($A47,'BFR 2024'!$X$32:$AA$397,3,FALSE)=0,"",VLOOKUP($A47,'BFR 2024'!$X$32:$AA$396,3,FALSE)) ->  | D47: Trust reserves: Line 800 - Academy reserves | F47: OK
A48: QU314 | B48: 314 | C48: =IF(VLOOKUP($A48,'BFR 2024'!$X$32:$AA$397,3,FALSE)=0,"",VLOOKUP($A48,'BFR 2024'!$X$32:$AA$396,3,FALSE)) ->  | D48: Trust reserves: Line 800 - Academy reserves | F48: OK
A49: QU315 | B49: 315 | C49: =IF(VLOOKUP($A49,'BFR 2024'!$X$32:$AA$397,3,FALSE)=0,"",VLOOKUP($A49,'BFR 2024'!$X$32:$AA$396,3,FALSE)) ->  | D49: Trust reserves: Line 800 - Academy reserves | F49: OK
A50: QU316 | B50: 316 | C50: =IF(VLOOKUP($A50,'BFR 2024'!$X$32:$AA$397,3,FALSE)=0,"",VLOOKUP($A50,'BFR 2024'!$X$32:$AA$396,3,FALSE)) ->  | D50: Trust reserves: Line 800 - Academy reserves | F50: =IF(C50="","OK",IF(E50="","Response Outstanding","Response Provided")) -> OK
A51: QU317 | B51: 317 | C51: =IF(VLOOKUP($A51,'BFR 2024'!$X$32:$AA$397,3,FALSE)=0,"",VLOOKUP($A51,'BFR 2024'!$X$32:$AA$396,3,FALSE)) ->  | D51: Trust reserves: Line 800 - Academy reserves | F51: OK
A52: QU318 | B52: 318 | C52: =IF(VLOOKUP($A52,'BFR 2024'!$X$32:$AA$397,3,FALSE)=0,"",VLOOKUP($A52,'BFR 2024'!$X$32:$AA$396,3,FALSE)) ->  | D52: Trust reserves: Line 800 - Academy reserves | F52: OK
A53: QU319 | B53: 319 | C53: =IF(VLOOKUP($A53,'BFR 2024'!$X$32:$AA$397,3,FALSE)=0,"",VLOOKUP($A53,'BFR 2024'!$X$32:$AA$396,3,FALSE)) ->  | D53: Trust reserves: Line 800 - Academy reserves | F53: OK
A54: QU320 | B54: 320 | C54: =IF(VLOOKUP($A54,'BFR 2024'!$X$32:$AA$397,3,FALSE)=0,"",VLOOKUP($A54,'BFR 2024'!$X$32:$AA$396,3,FALSE)) ->  | D54: Trust reserves: Line 800 - Academy reserves | F54: OK
A55: QU321 | B55: 321 | C55: =IF(VLOOKUP($A55,'BFR 2024'!$X$32:$AA$397,3,FALSE)=0,"",VLOOKUP($A55,'BFR 2024'!$X$32:$AA$396,3,FALSE)) ->  | D55: Trust reserves: Line 800 - Academy reserves | F55: OK
A56: QU322 | B56: 322 | C56: =IF(VLOOKUP($A56,'BFR 2024'!$X$32:$AA$397,3,FALSE)=0,"",VLOOKUP($A56,'BFR 2024'!$X$32:$AA$396,3,FALSE)) ->  | D56: Trust reserves: Line 800 - Academy reserves | F56: OK
A57: QU323 | B57: 323 | C57: =IF(VLOOKUP($A57,'BFR 2024'!$X$32:$AA$397,3,FALSE)=0,"",VLOOKUP($A57,'BFR 2024'!$X$32:$AA$396,3,FALSE)) ->  | D57: Trust reserves: Line 800 - Academy reserves | F57: OK
A58: QU324 | B58: 324 | C58: =IF(VLOOKUP($A58,'BFR 2024'!$X$32:$AA$397,3,FALSE)=0,"",VLOOKUP($A58,'BFR 2024'!$X$32:$AA$396,3,FALSE)) ->  | D58: Trust reserves: Line 800 - Academy reserves | F58: OK
A59: QU325 | B59: 325 | C59: =IF(VLOOKUP($A59,'BFR 2024'!$X$32:$AA$397,3,FALSE)=0,"",VLOOKUP($A59,'BFR 2024'!$X$32:$AA$396,3,FALSE)) ->  | D59: Trust reserves: Line 800 - Academy reserves | F59: OK
A60: QU326 | B60: 326 | C60: =IF(VLOOKUP($A60,'BFR 2024'!$X$32:$AA$397,3,FALSE)=0,"",VLOOKUP($A60,'BFR 2024'!$X$32:$AA$396,3,FALSE)) ->  | D60: Trust reserves: Line 800 - Academy reserves | F60: OK
A61: QU327 | B61: 327 | C61: =IF(VLOOKUP($A61,'BFR 2024'!$X$32:$AA$397,3,FALSE)=0,"",VLOOKUP($A61,'BFR 2024'!$X$32:$AA$396,3,FALSE)) ->  | D61: Trust reserves: Line 800 - Academy reserves | F61: OK
A62: QU328 | B62: 328 | C62: =IF(VLOOKUP($A62,'BFR 2024'!$X$32:$AA$397,3,FALSE)=0,"",VLOOKUP($A62,'BFR 2024'!$X$32:$AA$396,3,FALSE)) ->  | D62: Trust reserves: Line 800 - Academy reserves | F62: OK
A63: QU329 | B63: 329 | C63: =IF(VLOOKUP($A63,'BFR 2024'!$X$32:$AA$397,3,FALSE)=0,"",VLOOKUP($A63,'BFR 2024'!$X$32:$AA$396,3,FALSE)) ->  | D63: Trust reserves: Line 800 - Academy reserves | F63: OK
A64: QU330 | B64: 330 | C64: =IF(VLOOKUP($A64,'BFR 2024'!$X$32:$AA$397,3,FALSE)=0,"",VLOOKUP($A64,'BFR 2024'!$X$32:$AA$396,3,FALSE)) ->  | D64: Trust reserves: Line 800 - Academy reserves | F64: OK
A65: QU331 | B65: 331 | C65: =IF(VLOOKUP($A65,'BFR 2024'!$X$32:$AA$397,3,FALSE)=0,"",VLOOKUP($A65,'BFR 2024'!$X$32:$AA$396,3,FALSE)) ->  | D65: Trust reserves: Line 800 - Academy reserves | F65: OK
A66: QU332 | B66: 332 | C66: =IF(VLOOKUP($A66,'BFR 2024'!$X$32:$AA$397,3,FALSE)=0,"",VLOOKUP($A66,'BFR 2024'!$X$32:$AA$396,3,FALSE)) ->  | D66: Trust reserves: Line 800 - Academy reserves | F66: OK
A67: QU333 | B67: 333 | C67: =IF(VLOOKUP($A67,'BFR 2024'!$X$32:$AA$397,3,FALSE)=0,"",VLOOKUP($A67,'BFR 2024'!$X$32:$AA$396,3,FALSE)) ->  | D67: Trust reserves: Line 800 - Academy reserves | F67: OK
A68: QU334 | B68: 334 | C68: =IF(VLOOKUP($A68,'BFR 2024'!$X$32:$AA$397,3,FALSE)=0,"",VLOOKUP($A68,'BFR 2024'!$X$32:$AA$396,3,FALSE)) ->  | D68: Trust reserves: Line 800 - Academy reserves | F68: OK
A69: QU335 | B69: 335 | C69: =IF(VLOOKUP($A69,'BFR 2024'!$X$32:$AA$397,3,FALSE)=0,"",VLOOKUP($A69,'BFR 2024'!$X$32:$AA$396,3,FALSE)) ->  | D69: Trust reserves: Line 800 - Academy reserves | F69: OK
A70: QU336 | B70: 336 | C70: =IF(VLOOKUP($A70,'BFR 2024'!$X$32:$AA$397,3,FALSE)=0,"",VLOOKUP($A70,'BFR 2024'!$X$32:$AA$396,3,FALSE)) ->  | D70: Trust reserves: Line 800 - Academy reserves | F70: OK
A71: QU337 | B71: 337 | C71: =IF(VLOOKUP($A71,'BFR 2024'!$X$32:$AA$397,3,FALSE)=0,"",VLOOKUP($A71,'BFR 2024'!$X$32:$AA$396,3,FALSE)) ->  | D71: Trust reserves: Line 800 - Academy reserves | F71: OK
A72: QU338 | B72: 338 | C72: =IF(VLOOKUP($A72,'BFR 2024'!$X$32:$AA$397,3,FALSE)=0,"",VLOOKUP($A72,'BFR 2024'!$X$32:$AA$396,3,FALSE)) ->  | D72: Trust reserves: Line 800 - Academy reserves | F72: OK
A73: QU339 | B73: 339 | C73: =IF(VLOOKUP($A73,'BFR 2024'!$X$32:$AA$397,3,FALSE)=0,"",VLOOKUP($A73,'BFR 2024'!$X$32:$AA$396,3,FALSE)) ->  | D73: Trust reserves: Line 800 - Academy reserves | F73: OK
A74: QU340 | B74: 340 | C74: =IF(VLOOKUP($A74,'BFR 2024'!$X$32:$AA$397,3,FALSE)=0,"",VLOOKUP($A74,'BFR 2024'!$X$32:$AA$396,3,FALSE)) ->  | D74: Trust reserves: Line 800 - Academy reserves | F74: OK
A75: QU341 | B75: 341 | C75: =IF(VLOOKUP($A75,'BFR 2024'!$X$32:$AA$397,3,FALSE)=0,"",VLOOKUP($A75,'BFR 2024'!$X$32:$AA$396,3,FALSE)) ->  | D75: Trust reserves: Line 800 - Academy reserves | F75: OK
A76: QU342 | B76: 342 | C76: =IF(VLOOKUP($A76,'BFR 2024'!$X$32:$AA$397,3,FALSE)=0,"",VLOOKUP($A76,'BFR 2024'!$X$32:$AA$396,3,FALSE)) ->  | D76: Trust reserves: Line 800 - Academy reserves | F76: OK
A77: QU343 | B77: 343 | C77: =IF(VLOOKUP($A77,'BFR 2024'!$X$32:$AA$397,3,FALSE)=0,"",VLOOKUP($A77,'BFR 2024'!$X$32:$AA$396,3,FALSE)) ->  | D77: Trust reserves: Line 800 - Academy reserves | F77: OK
A78: QU344 | B78: 344 | C78: =IF(VLOOKUP($A78,'BFR 2024'!$X$32:$AA$397,3,FALSE)=0,"",VLOOKUP($A78,'BFR 2024'!$X$32:$AA$396,3,FALSE)) ->  | D78: Trust reserves: Line 800 - Academy reserves | F78: OK
A79: QU345 | B79: 345 | C79: =IF(VLOOKUP($A79,'BFR 2024'!$X$32:$AA$397,3,FALSE)=0,"",VLOOKUP($A79,'BFR 2024'!$X$32:$AA$396,3,FALSE)) ->  | D79: Trust reserves: Line 800 - Academy reserves | F79: OK
A80: QU346 | B80: 346 | C80: =IF(VLOOKUP($A80,'BFR 2024'!$X$32:$AA$397,3,FALSE)=0,"",VLOOKUP($A80,'BFR 2024'!$X$32:$AA$396,3,FALSE)) ->  | D80: Trust reserves: Line 800 - Academy reserves | F80: OK
A81: QU347 | B81: 347 | C81: =IF(VLOOKUP($A81,'BFR 2024'!$X$32:$AA$397,3,FALSE)=0,"",VLOOKUP($A81,'BFR 2024'!$X$32:$AA$396,3,FALSE)) ->  | D81: Trust reserves: Line 800 - Academy reserves | F81: OK
A82: QU348 | B82: 348 | C82: =IF(VLOOKUP($A82,'BFR 2024'!$X$32:$AA$397,3,FALSE)=0,"",VLOOKUP($A82,'BFR 2024'!$X$32:$AA$396,3,FALSE)) ->  | D82: Trust reserves: Line 800 - Academy reserves | F82: =IF(C82="","OK",IF(E82="","Response Outstanding","Response Provided")) -> OK
A83: QU349 | B83: 349 | C83: =IF(VLOOKUP($A83,'BFR 2024'!$X$32:$AA$397,3,FALSE)=0,"",VLOOKUP($A83,'BFR 2024'!$X$32:$AA$396,3,FALSE)) ->  | D83: Trust reserves: Line 800 - Academy reserves | F83: OK
A84: QU350 | B84: 350 | C84: =IF(VLOOKUP($A84,'BFR 2024'!$X$32:$AA$397,3,FALSE)=0,"",VLOOKUP($A84,'BFR 2024'!$X$32:$AA$396,3,FALSE)) ->  | D84: Trust reserves: Line 800 - Academy reserves | F84: OK
A85: QU351 | B85: 351 | C85: =IF(VLOOKUP($A85,'BFR 2024'!$X$32:$AA$397,3,FALSE)=0,"",VLOOKUP($A85,'BFR 2024'!$X$32:$AA$396,3,FALSE)) ->  | D85: Trust reserves: Line 800 - Academy reserves | F85: OK
A86: QU352 | B86: 352 | C86: =IF(VLOOKUP($A86,'BFR 2024'!$X$32:$AA$397,3,FALSE)=0,"",VLOOKUP($A86,'BFR 2024'!$X$32:$AA$396,3,FALSE)) ->  | D86: Trust reserves: Line 800 - Academy reserves | F86: OK
A87: QU353 | B87: 353 | C87: =IF(VLOOKUP($A87,'BFR 2024'!$X$32:$AA$397,3,FALSE)=0,"",VLOOKUP($A87,'BFR 2024'!$X$32:$AA$396,3,FALSE)) ->  | D87: Trust reserves: Line 800 - Academy reserves | F87: OK
A88: QU354 | B88: 354 | C88: =IF(VLOOKUP($A88,'BFR 2024'!$X$32:$AA$397,3,FALSE)=0,"",VLOOKUP($A88,'BFR 2024'!$X$32:$AA$396,3,FALSE)) ->  | D88: Trust reserves: Line 800 - Academy reserves | F88: OK
A89: QU355 | B89: 355 | C89: =IF(VLOOKUP($A89,'BFR 2024'!$X$32:$AA$397,3,FALSE)=0,"",VLOOKUP($A89,'BFR 2024'!$X$32:$AA$396,3,FALSE)) ->  | D89: Trust reserves: Line 800 - Academy reserves | F89: OK
A90: QU356 | B90: 356 | C90: =IF(VLOOKUP($A90,'BFR 2024'!$X$32:$AA$397,3,FALSE)=0,"",VLOOKUP($A90,'BFR 2024'!$X$32:$AA$396,3,FALSE)) ->  | D90: Trust reserves: Line 800 - Academy reserves | F90: OK
A91: QU357 | B91: 357 | C91: =IF(VLOOKUP($A91,'BFR 2024'!$X$32:$AA$397,3,FALSE)=0,"",VLOOKUP($A91,'BFR 2024'!$X$32:$AA$396,3,FALSE)) ->  | D91: Trust reserves: Line 800 - Academy reserves | F91: OK
A92: QU358 | B92: 358 | C92: =IF(VLOOKUP($A92,'BFR 2024'!$X$32:$AA$397,3,FALSE)=0,"",VLOOKUP($A92,'BFR 2024'!$X$32:$AA$396,3,FALSE)) ->  | D92: Trust reserves: Line 800 - Academy reserves | F92: OK
A93: QU359 | B93: 359 | C93: =IF(VLOOKUP($A93,'BFR 2024'!$X$32:$AA$397,3,FALSE)=0,"",VLOOKUP($A93,'BFR 2024'!$X$32:$AA$396,3,FALSE)) ->  | D93: Trust reserves: Line 800 - Academy reserves | F93: OK
A94: QU360 | B94: 360 | C94: =IF(VLOOKUP($A94,'BFR 2024'!$X$32:$AA$397,3,FALSE)=0,"",VLOOKUP($A94,'BFR 2024'!$X$32:$AA$396,3,FALSE)) ->  | D94: Trust reserves: Line 800 - Academy reserves | F94: OK
A95: QU361 | B95: 361 | C95: =IF(VLOOKUP($A95,'BFR 2024'!$X$32:$AA$397,3,FALSE)=0,"",VLOOKUP($A95,'BFR 2024'!$X$32:$AA$396,3,FALSE)) ->  | D95: Trust reserves: Line 800 - Academy reserves | F95: OK
A96: QU362 | B96: 362 | C96: =IF(VLOOKUP($A96,'BFR 2024'!$X$32:$AA$397,3,FALSE)=0,"",VLOOKUP($A96,'BFR 2024'!$X$32:$AA$396,3,FALSE)) ->  | D96: Trust reserves: Line 800 - Academy reserves | F96: OK
A97: QU363 | B97: 363 | C97: =IF(VLOOKUP($A97,'BFR 2024'!$X$32:$AA$397,3,FALSE)=0,"",VLOOKUP($A97,'BFR 2024'!$X$32:$AA$396,3,FALSE)) ->  | D97: Trust reserves: Line 800 - Academy reserves | F97: OK
A98: QU364 | B98: 364 | C98: =IF(VLOOKUP($A98,'BFR 2024'!$X$32:$AA$397,3,FALSE)=0,"",VLOOKUP($A98,'BFR 2024'!$X$32:$AA$396,3,FALSE)) ->  | D98: Trust reserves: Line 800 - Academy reserves | F98: OK
A99: QU365 | B99: 365 | C99: =IF(VLOOKUP($A99,'BFR 2024'!$X$32:$AA$397,3,FALSE)=0,"",VLOOKUP($A99,'BFR 2024'!$X$32:$AA$396,3,FALSE)) ->  | D99: Trust reserves: Line 800 - Academy reserves | F99: OK
A100: QU366 | B100: 366 | C100: =IF(VLOOKUP($A100,'BFR 2024'!$X$32:$AA$397,3,FALSE)=0,"",VLOOKUP($A100,'BFR 2024'!$X$32:$AA$396,3,FALSE)) ->  | D100: Trust reserves: Line 800 - Academy reserves | F100: OK
A101: QU367 | B101: 367 | C101: =IF(VLOOKUP($A101,'BFR 2024'!$X$32:$AA$397,3,FALSE)=0,"",VLOOKUP($A101,'BFR 2024'!$X$32:$AA$396,3,FALSE)) ->  | D101: Trust reserves: Line 800 - Academy reserves | F101: OK
A102: QU368 | B102: 368 | C102: =IF(VLOOKUP($A102,'BFR 2024'!$X$32:$AA$397,3,FALSE)=0,"",VLOOKUP($A102,'BFR 2024'!$X$32:$AA$396,3,FALSE)) ->  | D102: Trust reserves: Line 800 - Academy reserves | F102: OK
A103: QU369 | B103: 369 | C103: =IF(VLOOKUP($A103,'BFR 2024'!$X$32:$AA$397,3,FALSE)=0,"",VLOOKUP($A103,'BFR 2024'!$X$32:$AA$396,3,FALSE)) ->  | D103: Trust reserves: Line 800 - Academy reserves | F103: OK
A104: QU370 | B104: 370 | C104: =IF(VLOOKUP($A104,'BFR 2024'!$X$32:$AA$397,3,FALSE)=0,"",VLOOKUP($A104,'BFR 2024'!$X$32:$AA$396,3,FALSE)) ->  | D104: Trust reserves: Line 800 - Academy reserves | F104: OK
A105: QU371 | B105: 371 | C105: =IF(VLOOKUP($A105,'BFR 2024'!$X$32:$AA$397,3,FALSE)=0,"",VLOOKUP($A105,'BFR 2024'!$X$32:$AA$396,3,FALSE)) ->  | D105: Trust reserves: Line 800 - Academy reserves | F105: OK
A106: QU372 | B106: 372 | C106: =IF(VLOOKUP($A106,'BFR 2024'!$X$32:$AA$397,3,FALSE)=0,"",VLOOKUP($A106,'BFR 2024'!$X$32:$AA$396,3,FALSE)) ->  | D106: Trust reserves: Line 800 - Academy reserves | F106: OK
A107: QU373 | B107: 373 | C107: =IF(VLOOKUP($A107,'BFR 2024'!$X$32:$AA$397,3,FALSE)=0,"",VLOOKUP($A107,'BFR 2024'!$X$32:$AA$396,3,FALSE)) ->  | D107: Trust reserves: Line 800 - Academy reserves | F107: OK
A108: QU374 | B108: 374 | C108: =IF(VLOOKUP($A108,'BFR 2024'!$X$32:$AA$397,3,FALSE)=0,"",VLOOKUP($A108,'BFR 2024'!$X$32:$AA$396,3,FALSE)) ->  | D108: Trust reserves: Line 800 - Academy reserves | F108: OK
A109: QU375 | B109: 375 | C109: =IF(VLOOKUP($A109,'BFR 2024'!$X$32:$AA$397,3,FALSE)=0,"",VLOOKUP($A109,'BFR 2024'!$X$32:$AA$396,3,FALSE)) ->  | D109: Trust reserves: Line 800 - Academy reserves | F109: OK
A110: QU376 | B110: =1+B109 -> 376 | C110: =IF(VLOOKUP($A110,'BFR 2024'!$X$32:$AA$397,3,FALSE)=0,"",VLOOKUP($A110,'BFR 2024'!$X$32:$AA$396,3,FALSE)) ->  | D110: Trust reserves: Line 800 - Academy reserves | F110: OK
A111: QU377 | B111: 377 | C111: =IF(VLOOKUP($A111,'BFR 2024'!$X$32:$AA$397,3,FALSE)=0,"",VLOOKUP($A111,'BFR 2024'!$X$32:$AA$396,3,FALSE)) ->  | D111: Trust reserves: Line 800 - Academy reserves | F111: OK
A112: QU378 | B112: 378 | C112: =IF(VLOOKUP($A112,'BFR 2024'!$X$32:$AA$397,3,FALSE)=0,"",VLOOKUP($A112,'BFR 2024'!$X$32:$AA$396,3,FALSE)) ->  | D112: Trust reserves: Line 800 - Academy reserves | F112: OK
A113: QU379 | B113: 379 | C113: =IF(VLOOKUP($A113,'BFR 2024'!$X$32:$AA$397,3,FALSE)=0,"",VLOOKUP($A113,'BFR 2024'!$X$32:$AA$396,3,FALSE)) ->  | D113: Trust reserves: Line 800 - Academy reserves | F113: OK
A114: QU380 | B114: 380 | C114: =IF(VLOOKUP($A114,'BFR 2024'!$X$32:$AA$397,3,FALSE)=0,"",VLOOKUP($A114,'BFR 2024'!$X$32:$AA$396,3,FALSE)) ->  | D114: Trust reserves: Line 800 - Academy reserves | F114: =IF(C114="","OK",IF(E114="","Response Outstanding","Response Provided")) -> OK
A115: QU381 | B115: 381 | C115: =IF(VLOOKUP($A115,'BFR 2024'!$X$32:$AA$397,3,FALSE)=0,"",VLOOKUP($A115,'BFR 2024'!$X$32:$AA$396,3,FALSE)) ->  | D115: Trust reserves: Line 800 - Academy reserves | F115: OK
A116: QU382 | B116: 382 | C116: =IF(VLOOKUP($A116,'BFR 2024'!$X$32:$AA$397,3,FALSE)=0,"",VLOOKUP($A116,'BFR 2024'!$X$32:$AA$396,3,FALSE)) ->  | D116: Trust reserves: Line 800 - Academy reserves | F116: OK
A117: QU383 | B117: 383 | C117: =IF(VLOOKUP($A117,'BFR 2024'!$X$32:$AA$397,3,FALSE)=0,"",VLOOKUP($A117,'BFR 2024'!$X$32:$AA$396,3,FALSE)) ->  | D117: Trust reserves: Line 800 - Academy reserves | F117: OK
A118: QU384 | B118: 384 | C118: =IF(VLOOKUP($A118,'BFR 2024'!$X$32:$AA$397,3,FALSE)=0,"",VLOOKUP($A118,'BFR 2024'!$X$32:$AA$396,3,FALSE)) ->  | D118: Trust reserves: Line 800 - Academy reserves | F118: OK
A119: QU385 | B119: 385 | C119: =IF(VLOOKUP($A119,'BFR 2024'!$X$32:$AA$397,3,FALSE)=0,"",VLOOKUP($A119,'BFR 2024'!$X$32:$AA$396,3,FALSE)) ->  | D119: Trust reserves: Line 800 - Academy reserves | F119: OK
A120: QU386 | B120: 386 | C120: =IF(VLOOKUP($A120,'BFR 2024'!$X$32:$AA$397,3,FALSE)=0,"",VLOOKUP($A120,'BFR 2024'!$X$32:$AA$396,3,FALSE)) ->  | D120: Trust reserves: Line 800 - Academy reserves | F120: OK
A121: QU387 | B121: 387 | C121: =IF(VLOOKUP($A121,'BFR 2024'!$X$32:$AA$397,3,FALSE)=0,"",VLOOKUP($A121,'BFR 2024'!$X$32:$AA$396,3,FALSE)) ->  | D121: Trust reserves: Line 800 - Academy reserves | F121: OK
A122: QU388 | B122: 388 | C122: =IF(VLOOKUP($A122,'BFR 2024'!$X$32:$AA$397,3,FALSE)=0,"",VLOOKUP($A122,'BFR 2024'!$X$32:$AA$396,3,FALSE)) ->  | D122: Trust reserves: Line 800 - Academy reserves | F122: OK
A123: QU389 | B123: 389 | C123: =IF(VLOOKUP($A123,'BFR 2024'!$X$32:$AA$397,3,FALSE)=0,"",VLOOKUP($A123,'BFR 2024'!$X$32:$AA$396,3,FALSE)) ->  | D123: Trust reserves: Line 800 - Academy reserves | F123: OK
A124: QU390 | B124: 390 | C124: =IF(VLOOKUP($A124,'BFR 2024'!$X$32:$AA$397,3,FALSE)=0,"",VLOOKUP($A124,'BFR 2024'!$X$32:$AA$396,3,FALSE)) ->  | D124: Trust reserves: Line 800 - Academy reserves | F124: OK
A125: QU391 | B125: 391 | C125: =IF(VLOOKUP($A125,'BFR 2024'!$X$32:$AA$397,3,FALSE)=0,"",VLOOKUP($A125,'BFR 2024'!$X$32:$AA$396,3,FALSE)) ->  | D125: Trust reserves: Line 800 - Academy reserves | F125: OK
A126: QU392 | B126: 392 | C126: =IF(VLOOKUP($A126,'BFR 2024'!$X$32:$AA$397,3,FALSE)=0,"",VLOOKUP($A126,'BFR 2024'!$X$32:$AA$396,3,FALSE)) ->  | D126: Trust reserves: Line 800 - Academy reserves | F126: OK
A127: QU393 | B127: 393 | C127: =IF(VLOOKUP($A127,'BFR 2024'!$X$32:$AA$397,3,FALSE)=0,"",VLOOKUP($A127,'BFR 2024'!$X$32:$AA$396,3,FALSE)) ->  | D127: Trust reserves: Line 800 - Academy reserves | F127: OK
A128: QU394 | B128: 394 | C128: =IF(VLOOKUP($A128,'BFR 2024'!$X$32:$AA$397,3,FALSE)=0,"",VLOOKUP($A128,'BFR 2024'!$X$32:$AA$396,3,FALSE)) ->  | D128: Trust reserves: Line 800 - Academy reserves | F128: OK
A129: QU395 | B129: 395 | C129: =IF(VLOOKUP($A129,'BFR 2024'!$X$32:$AA$397,3,FALSE)=0,"",VLOOKUP($A129,'BFR 2024'!$X$32:$AA$396,3,FALSE)) ->  | D129: Trust reserves: Line 800 - Academy reserves | F129: OK
A130: QU396 | B130: 396 | C130: =IF(VLOOKUP($A130,'BFR 2024'!$X$32:$AA$397,3,FALSE)=0,"",VLOOKUP($A130,'BFR 2024'!$X$32:$AA$396,3,FALSE)) ->  | D130: Trust reserves: Line 800 - Academy reserves | F130: OK
A131: QU397 | B131: 397 | C131: =IF(VLOOKUP($A131,'BFR 2024'!$X$32:$AA$397,3,FALSE)=0,"",VLOOKUP($A131,'BFR 2024'!$X$32:$AA$396,3,FALSE)) ->  | D131: Trust reserves: Line 800 - Academy reserves | F131: OK
A132: QU398 | B132: 398 | C132: =IF(VLOOKUP($A132,'BFR 2024'!$X$32:$AA$397,3,FALSE)=0,"",VLOOKUP($A132,'BFR 2024'!$X$32:$AA$396,3,FALSE)) ->  | D132: Trust reserves: Line 800 - Academy reserves | F132: OK
A133: QU399 | B133: 399 | C133: =IF(VLOOKUP($A133,'BFR 2024'!$X$32:$AA$397,3,FALSE)=0,"",VLOOKUP($A133,'BFR 2024'!$X$32:$AA$396,3,FALSE)) ->  | D133: Trust reserves: Line 800 - Academy reserves | F133: OK
A134: QU2980 | B134: 2980 | C134: =IF(VLOOKUP($A134,'BFR 2024'!$X$32:$AA$397,3,FALSE)=0,"",VLOOKUP($A134,'BFR 2024'!$X$32:$AA$396,3,FALSE)) -> Provide a brief summary of your assumptions regarding income. | D134: 3 year forecast: Line 2980 - subtotal income | F134: Response Outstanding
A135: QU2980a | B135: 2980a | C135: =IF(VLOOKUP($A135,'BFR 2024'!$X$32:$AA$397,3,FALSE)=0,"",VLOOKUP($A135,'BFR 2024'!$X$32:$AA$396,3,FALSE)) -> Explain why one or more of the forecast years is zero. | D135: 3 year forecast: Line 2980 - subtotal income at zero | F135: Response Outstanding
A136: QU3800 | B136: 3800 | C136: =IF(VLOOKUP($A136,'BFR 2024'!$X$32:$AA$397,3,FALSE)=0,"",VLOOKUP($A136,'BFR 2024'!$X$32:$AA$396,3,FALSE)) -> Provide a brief summary of your assumptions regarding expenditure. | D136: 3 year forecast: Line 3800- subtotal costs | F136: Response Outstanding
A137: QU3800a | B137: 3800a | C137: =IF(VLOOKUP($A137,'BFR 2024'!$X$32:$AA$397,3,FALSE)=0,"",VLOOKUP($A137,'BFR 2024'!$X$32:$AA$396,3,FALSE)) -> Explain why one or more of the forecast years is zero. | D137: 3 year forecast: Line 3800- subtotal costs at zero | F137: Response Outstanding
A138: QU6600 | B138: 6600 | C138: =IF(VLOOKUP($A138,'BFR 2024'!$X$32:$AA$397,3,FALSE)=0,"",VLOOKUP($A138,'BFR 2024'!$X$32:$AA$396,3,FALSE)) ->  | D138: 3 year forecast: Line 6600 - Capital Net | F138: =IF(C138="","OK",IF(E138="","Response Outstanding","Response Provided")) -> OK
A139: QU7200 | B139: 7200 | C139: =IF(VLOOKUP($A139,'BFR 2024'!$X$32:$AA$397,3,FALSE)=0,"",VLOOKUP($A139,'BFR 2024'!$X$32:$AA$396,3,FALSE)) ->  | D139: 3 year forecast: Line 7200 - Depreciation | F139: OK
A140: QU7100 | B140: 7100 | C140: =IF(VLOOKUP($A140,'BFR 2024'!$X$32:$AA$397,3,FALSE)=0,"",VLOOKUP($A140,'BFR 2024'!$X$32:$AA$396,3,FALSE)) ->  | D140: 3 year forecast: Line 7100 - Any other non cash costs | F140: OK
A141: QU7000 | B141: 7000 | C141: =IF(VLOOKUP($A141,'BFR 2024'!$X$32:$AA$397,3,FALSE)=0,"",VLOOKUP($A141,'BFR 2024'!$X$32:$AA$396,3,FALSE)) ->  | D141: 3 year forecast: Line 7000 - Cash | F141: OK
A142: QU4300 | B142: 4300 | C142: =IF(VLOOKUP($A142,'BFR 2024'!$X$32:$AA$397,3,FALSE)=0,"",VLOOKUP($A142,'BFR 2024'!$X$32:$AA$396,3,FALSE)) ->  | D142: 3 year forecast: Line 4300 - Revenue Reserve balance c/f 31 Aug 2023/ 2024/2025 | F142: OK
A143: QU8000 | B143: 8000 | C143: =IF(VLOOKUP($A143,'BFR 2024'!$X$32:$AA$397,3,FALSE)=0,"",VLOOKUP($A143,'BFR 2024'!$X$32:$AA$396,3,FALSE)) ->  | D143: 3 year forecast: Line 8000 - Trust reserves balances at 31 Aug 2023/ 2024/2025 | F143: OK
A144: QU8001 | B144: 8001 | C144: =IF(VLOOKUP($A144,'BFR 2024'!$X$32:$AA$397,3,FALSE)=0,"",VLOOKUP($A144,'BFR 2024'!$X$32:$AA$396,3,FALSE)) ->  | D144: 3 year forecast: Line 8001 - Reported as | F144: OK
A145: QU9000 | B145: 9000 | C145: =IF(VLOOKUP($A145,'BFR 2024'!$X$32:$AA$397,3,FALSE)=0,"",VLOOKUP($A145,'BFR 2024'!$X$32:$AA$396,3,FALSE)) ->  | D145: 3 year forecast: Line 9000 - Pupil numbers | F145: OK

Sheet 2022-23 CoA to BFR mapping
A1: CoA code | B1: CoA account code description | C1: BFR Line | D1: BFR Line Description | E1: Signage in BFR
A2: 510150 | B2: IN: DfE Revenue Grants: Rates reclaim | C2: 101 | D2: Rates reclaim | E2: Positive / Negative
A3: 510100 | B3: IN: DfE Revenue Grants: GAG (not stud supp and trust grants) | C3: 102 | D3: General Academy Grant (GAG) (excluding Student Service Grant) | E3: Positive
A4: 510110 | B4: IN: DfE Revenue Grants: GAG (student support) | C4: 103 | D4: Student Services Grant (Academy Post 16 Bursary Funding) | E4: Positive
A5: 510120 | B5: IN: DfE Revenue Grants: GAG (start up grants) | C5: 105 | D5: Start Up Grants | E5: Positive
A6: 510200 | B6: IN: DfE Revenue Grants: Pupil Premium | C6: 108 | D6: Pupil Premium & Service Premium | E6: Positive
A7: 510140 | B7: IN: DfE Revenue Grants: Pupil number adjustment | C7: 132 | D7: Pupil Number Adjustment | E7: Positive / Negative
A8: 510130 | B8: IN: DfE Revenue Grants: Trust level grants | C8: 135 | D8: Other DfE/ESFA revenue grants | E8: Positive
A9: 510400 | B9: IN: DfE Revenue Grants: PE & Sports grant | C9: 135 | D9: Other DfE/ESFA revenue grants | E9: Positive
A10: 510450 | B10: IN: DfE Revenue Grants: Year 7 catch up | C10: 135 | D10: Other DfE/ESFA revenue grants | E10: Positive
A11: 510500 | B11: IN: DfE Revenue Grants: Teachers Pay Grant | C11: 135 | D11: Other DfE/ESFA revenue grants | E11: Positive
A12: 510510 | B12: IN: DfE Revenue Grants: Teachers Pension Employer Contribution Grant | C12: 135 | D12: Other DfE/ESFA revenue grants | E12: Positive
A13: 510550 | B13: IN: DfE Revenue Grants: Teaching Schools grant | C13: 135 | D13: Other DfE/ESFA revenue grants | E13: Positive
A14: 510600 | B14: IN: DfE Revenue Grants: ITT Bursaries Grant | C14: 135 | D14: Other DfE/ESFA revenue grants | E14: Positive
A15: 510700 | B15: IN: DfE Revenue Grants: 16 to 19 | C15: 135 | D15: Other DfE/ESFA revenue grants | E15: Positive
A16: 510950 | B16: IN: DfE Revenue Grants: Other DfE revenue grants | C16: 135 | D16: Other DfE/ESFA revenue grants | E16: Positive
A17: 570200 | B17: IN: Boarding Income: DfE grants | C17: 135 | D17: Other DfE/ESFA revenue grants | E17: Positive
A18: 510250 | B18: IN: DfE Revenue Grants: Universal Inf Free School Meals | C18: 136 | D18: Universal Infant Free School Meals | E18: Positive
A19: 510300 | B19: IN: DfE Revenue Grants: Insurance top up | C19: 137 | D19: Insurance | E19: Positive
A20: 510350 | B20: IN: DfE Revenue Grants: Sponsor capacity grant | C20: 138 | D20: Sponsor Capacity Grant | E20: Positive
A21: 515100 | B21: IN: DfE Group Grants: Standards & Testing Agency | C21: 150 | D21: Other DfE/ESFA family revenue Grants | E21: Positive / Negative
A22: 515200 | B22: IN: DfE Group Grants: Office of Childrens Commissioner | C22: 150 | D22: Other DfE/ESFA family revenue Grants | E22: Positive / Negative
A23: 515250 | B23: IN: DfE Group Grants: Student Loans Company | C23: 150 | D23: Other DfE/ESFA family revenue Grants | E23: Positive / Negative
A24: 515300 | B24: IN: DfE Group Grants: Office for Students | C24: 150 | D24: Other DfE/ESFA family revenue Grants | E24: Positive / Negative
A25: 515350 | B25: IN: DfE Group Grants: Engineering Contruction ITB | C25: 150 | D25: Other DfE/ESFA family revenue Grants | E25: Positive / Negative
A26: 515400 | B26: IN: DfE Group Grants: Construction ITB | C26: 150 | D26: Other DfE/ESFA family revenue Grants | E26: Positive / Negative
A27: 570220 | B27: IN: Boarding Income: Standards & Testing Agency | C27: 150 | D27: Other DfE/ESFA family revenue Grants | E27: Positive / Negative
A28: 570240 | B28: IN: Boarding Income: Office of Childrens Commissioner | C28: 150 | D28: Other DfE/ESFA family revenue Grants | E28: Positive / Negative
A29: 520100 | B29: IN: Other Grants: LA - SEN | C29: 200 | D29: Local authority revenue income | E29: Positive / Negative
A30: 520150 | B30: IN: Other Grants: LA - Early Years | C30: 200 | D30: Local authority revenue income | E30: Positive / Negative
A31: 520200 | B31: IN: Other Grants: LA - Other grants | C31: 200 | D31: Local authority revenue income | E31: Positive / Negative
A32: 520300 | B32: IN: Other Grants: Government grant - not DfE | C32: 205 | D32: Other government grants | E32: Positive / Negative
A33: 570250 | B33: IN: Boarding Income: Other government grants | C33: 205 | D33: Other government grants | E33: Positive / Negative
A34: 520350 | B34: IN: Other Grants: Other revenue grants | C34: 210 | D34: Grants from Non government bodies | E34: Positive / Negative
A35: 530100 | B35: IN: Trading Income: Hire of facilities | C35: 211 | D35: Income from trading activities | E35: Positive / Negative
A36: 530200 | B36: IN: Trading Income: Catering inc (visitors & staf) | C36: 211 | D36: Income from trading activities | E36: Positive / Negative
A37: 530250 | B37: IN: Trading Income: Rental Income | C37: 211 | D37: Income from trading activities | E37: Positive / Negative
A38: 530300 | B38: IN: Trading Income: Supply teacher insurance claim | C38: 211 | D38: Income from trading activities | E38: Positive / Negative
A39: 530350 | B39: IN: Trading Income: RPA claims | C39: 211 | D39: Income from trading activities | E39: Positive / Negative
A40: 530400 | B40: IN: Trading Income: Sale of uniforms | C40: 211 | D40: Income from trading activities | E40: Positive / Negative
A41: 530500 | B41: IN: Trading Income: Income from clubs | C41: 211 | D41: Income from trading activities | E41: Positive / Negative
A42: 530550 | B42: IN: Trading Income: Parental income from nursery provision | C42: 211 | D42: Income from trading activities | E42: Positive / Negative
A43: 530580 | B43: IN: Trading Income: Parental income from wraparound provision | C43: 211 | D43: Income from trading activities | E43: Positive / Negative
A44: 530600 | B44: IN: Trading Income: Income from music | C44: 211 | D44: Income from trading activities | E44: Positive / Negative
A45: 530650 | B45: IN: Trading Income: Sale of goods or services | C45: 211 | D45: Income from trading activities | E45: Positive / Negative
A46: 530700 | B46: IN: Trading Income: Other trading income | C46: 211 | D46: Income from trading activities | E46: Positive / Negative
A47: 530990 | B47: IN: Trading Income: Trust contribution from academy | C47: 211 | D47: Income from trading activities | E47: Positive / Negative
A48: 595200 | B48: IN: Academy transfer in: Revenue transferred in | C48: 212 | D48: Revenue surplus transfer of an existing academy into the trust | E48: Positive
A49: 599200 | B49: IN: Academy transfer out: Revenue transferred out | C49: 212 | D49: Revenue surplus transfer of an existing academy into the trust | E49: Negative
A50: 590200 | B50: IN: Academy conversions: Local authority revenue -surplus | C50: 215 | D50: Revenue surplus transfer to academy on conversion | E50: Positive
A51: 590350 | B51: IN: Academy conversions: Other body revenue | C51: 215 | D51: Revenue surplus transfer to academy on conversion | E51: Positive
A52: 525100 | B52: IN: Other Income: Academy trusts | C52: 220 | D52: Other income, including investment income | E52: Positive / Negative
A53: 525150 | B53: IN: Other Income: Govt sources - not grant | C53: 220 | D53: Other income, including investment income | E53: Positive / Negative
A54: 525200 | B54: IN: Other Income: Non-govt revenue | C54: 220 | D54: Other income, including investment income | E54: Positive / Negative
A55: 525300 | B55: IN: Other Income: Catering income from pupils | C55: 211 | D55: Other income, including investment income | E55: Positive / Negative
A56: 525400 | B56: IN: Other Income: Educational trips & visits | C56: 220 | D56: Other income, including investment income | E56: Positive / Negative
A57: 525500 | B57: IN: Other Income: Apprenticeship levy drawdown | C57: 220 | D57: Other income, including investment income | E57: Positive / Negative
A58: 525600 | B58: IN: Other Income: Teaching School other income | C58: 220 | D58: Other income, including investment income | E58: Positive / Negative
A59: 525750 | B59: IN: Other Income: Investment income | C59: 220 | D59: Other income, including investment income | E59: Positive / Negative
A60: 570100 | B60: IN: Boarding Income: Fee Income | C60: 220 | D60: Other income, including investment income | E60: Positive / Negative
A61: 570300 | B61: IN: Boarding Income: Other boarding income | C61: 220 | D61: Other income, including investment income | E61: Positive / Negative
A62: 580300 | B62: IN: Donations: Revenue donations - general | C62: 220 | D62: Other income, including investment income | E62: Positive / Negative
A63: 580350 | B63: IN: Donations: Revenue donations - charity | C63: 220 | D63: Other income, including investment income | E63: Positive / Negative
A64: 580400 | B64: IN: Donations: Revenue donations - gift aid | C64: 220 | D64: Other income, including investment income | E64: Positive / Negative
A65: 560400 | B65: IN: Other capital income: Contributions from revenue | C65: 255 | D65: Transfers between Revenue and Capital (line 585) | E65: Negative
A66: 892800 | B66: SP: Asset financing: Revenue contributions to capital | C66: 255 | D66: Transfers between Revenue and Capital (line 585) | E66: Positive/ Negative
A67: 610100 | B67: SF: Leadership: Wages and salaries | C67: 310 | D67: Wages and Salaries | E67: Positive
A68: 612100 | B68: SF: Teachers: Wages and salaries | C68: 310 | D68: Wages and Salaries | E68: Positive
A69: 612150 | B69: SF: Teachers: Overtime | C69: 310 | D69: Wages and Salaries | E69: Positive
A70: 615100 | B70: SF: Teaching Assistants: Wages and salaries | C70: 310 | D70: Wages and Salaries | E70: Positive
A71: 615150 | B71: SF: Teaching Assistants: Overtime | C71: 310 | D71: Wages and Salaries | E71: Positive
A72: 620100 | B72: SF: Librarians: Wages and salaries | C72: 310 | D72: Wages and Salaries | E72: Positive
A73: 620150 | B73: SF: Librarians: Overtime | C73: 310 | D73: Wages and Salaries | E73: Positive
A74: 622100 | B74: SF: Technicians: Wages and salaries | C74: 310 | D74: Wages and Salaries | E74: Positive
A75: 622150 | B75: SF: Technicians: Overtime | C75: 310 | D75: Wages and Salaries | E75: Positive
A76: 623100 | B76: SF: Cover supervisors: Wages and salaries | C76: 310 | D76: Wages and Salaries | E76: Positive
A77: 623150 | B77: SF: Cover supervisors: Overtime | C77: 310 | D77: Wages and Salaries | E77: Positive
A78: 625100 | B78: SF: Finance and Admin: Wages and salaries | C78: 310 | D78: Wages and Salaries | E78: Positive
A79: 625150 | B79: SF: Finance and Admin: Overtime | C79: 310 | D79: Wages and Salaries | E79: Positive
A80: 627100 | B80: SF: Site Staff: Wages and salaries | C80: 310 | D80: Wages and Salaries | E80: Positive
A81: 627150 | B81: SF: Site Staff: Overtime | C81: 310 | D81: Wages and Salaries | E81: Positive
A82: 630100 | B82: SF: Cleaning Staff: Wages and salaries | C82: 310 | D82: Wages and Salaries | E82: Positive
A83: 630150 | B83: SF: Cleaning Staff: Overtime | C83: 310 | D83: Wages and Salaries | E83: Positive
A84: 632100 | B84: SF: Catering Staff: Wages and salaries | C84: 310 | D84: Wages and Salaries | E84: Positive
A85: 632150 | B85: SF: Catering Staff: Overtime | C85: 310 | D85: Wages and Salaries | E85: Positive
A86: 635100 | B86: SF: Midday Supervisors: Wages and salaries | C86: 310 | D86: Wages and Salaries | E86: Positive
A87: 635150 | B87: SF: Midday Supervisors: Overtime | C87: 310 | D87: Wages and Salaries | E87: Positive
A88: 637100 | B88: SF: Nursery Staff: Wages and salaries | C88: 310 | D88: Wages and Salaries | E88: Positive
A89: 637150 | B89: SF: Nursery Staff: Overtime | C89: 310 | D89: Wages and Salaries | E89: Positive
A90: 640100 | B90: SF: Family Support Workers: Wages and salaries | C90: 310 | D90: Wages and Salaries | E90: Positive
A91: 640150 | B91: SF: Family Support Workers: Overtime | C91: 310 | D91: Wages and Salaries | E91: Positive
A92: 642100 | B92: SF: Exam Invigilators: Wages and salaries | C92: 310 | D92: Wages and Salaries | E92: Positive
A93: 642150 | B93: SF: Exam Invigilators: Overtime | C93: 310 | D93: Wages and Salaries | E93: Positive
A94: 645100 | B94: SF: Community Facilities Staff: Wages and salaries | C94: 310 | D94: Wages and Salaries | E94: Positive
A95: 645150 | B95: SF: Community Facilities Staff: Overtime | C95: 310 | D95: Wages and Salaries | E95: Positive
A96: 647100 | B96: SF: Other Staff: Wages and salaries | C96: 310 | D96: Wages and Salaries | E96: Positive
A97: 647150 | B97: SF: Other Staff: Overtime | C97: 310 | D97: Wages and Salaries | E97: Positive
A98: 648100 | B98: SF: Cost of raising funds: Wages and salaries | C98: 310 | D98: Wages and Salaries | E98: Positive
A99: 648150 | B99: SF: Cost of raising funds: Overtime | C99: 310 | D99: Wages and Salaries | E99: Positive
A100: 650400 | B100: SF: Supply Staff: Teachers - long term cover:Wages and salaries | C100: 310 | D100: Wages and Salaries | E100: Positive
A101: 650450 | B101: SF: Supply Staff: Teachers - short term cover:Wages and salaries | C101: 310 | D101: Wages and Salaries | E101: Positive
A102: 650500 | B102: SF: Supply Staff: Teaching assistants:Wages and salareis | C102: 310 | D102: Wages and Salaries | E102: Positive
A103: 650550 | B103: SF: Supply Staff: Support staff:Wages and salaries | C103: 310 | D103: Wages and Salaries | E103: Positive
A104: 655100 | B104: SF: Boarding Staff - direct: Wages and salaries | C104: 310 | D104: Wages and Salaries | E104: Positive
A105: 655150 | B105: SF: Boarding Staff - direct: Overtime | C105: 310 | D105: Wages and Salaries | E105: Positive
A106: 655500 | B106: SF: Boarding Staff - direct: Agency staff - direct staff | C106: 310 | D106: Wages and Salaries | E106: Positive
A107: 656100 | B107: SF: Boarding Staff - indirect: Wages and salaries | C107: 310 | D107: Wages and Salaries | E107: Positive
A108: 656150 | B108: SF: Boarding Staff - indirect: Overtime | C108: 310 | D108: Wages and Salaries | E108: Positive
A109: 656520 | B109: SF: Boarding Staff - indirect: Agency staff - support | C109: 310 | D109: Wages and Salaries | E109: Positive
A110: 845100 | B110: SP: Bought in supply cover: Agency teaching staff long term | C110: 310 | D110: Wages and Salaries | E110: Positive
A111: 845150 | B111: SP: Bought in supply cover: Agency teaching staff short term | C111: 310 | D111: Wages and Salaries | E111: Positive
A112: 845200 | B112: SP: Bought in supply cover: Agency teaching assistants | C112: 310 | D112: Wages and Salaries | E112: Positive
A113: 845250 | B113: SP: Bought in supply cover: Agency support staff | C113: 310 | D113: Wages and Salaries | E113: Positive
A114: 872100 | B114: SP: Teaching School Hub: Staff costs - direct | C114: 310 | D114: Wages and Salaries | E114: Positive
A115: 872500 | B115: SP: Teaching School Hub: Staff costs - support | C115: 310 | D115: Wages and Salaries | E115: Positive
A116: 610200 | B116: SF: Leadership: Employers national insurance | C116: 311 | D116: Social Security Costs | E116: Positive
A117: 612200 | B117: SF: Teachers: Employers national insurance | C117: 311 | D117: Social Security Costs | E117: Positive
A118: 615200 | B118: SF: Teaching Assistants: Employers national insurance | C118: 311 | D118: Social Security Costs | E118: Positive
A119: 620200 | B119: SF: Librarians: Employers national insurance | C119: 311 | D119: Social Security Costs | E119: Positive
A120: 622200 | B120: SF: Technicians: Employers national insurance | C120: 311 | D120: Social Security Costs | E120: Positive
A121: 623200 | B121: SF: Cover supervisors: Employers national insurance | C121: 311 | D121: Social Security Costs | E121: Positive
A122: 625200 | B122: SF: Finance and Admin: Employers national insurance | C122: 311 | D122: Social Security Costs | E122: Positive
A123: 627200 | B123: SF: Site Staff: Employers national insurance | C123: 311 | D123: Social Security Costs | E123: Positive
A124: 630200 | B124: SF: Cleaning Staff: Employers national insurance | C124: 311 | D124: Social Security Costs | E124: Positive
A125: 632200 | B125: SF: Catering Staff: Employers national insurance | C125: 311 | D125: Social Security Costs | E125: Positive
A126: 635200 | B126: SF: Midday Supervisors: Employers national insurance | C126: 311 | D126: Social Security Costs | E126: Positive
A127: 637200 | B127: SF: Nursery Staff: Employers national insurance | C127: 311 | D127: Social Security Costs | E127: Positive
A128: 640200 | B128: SF: Family Support Workers: Employers national insurance | C128: 311 | D128: Social Security Costs | E128: Positive
A129: 642200 | B129: SF: Exam Invigilators: Employers national insurance | C129: 311 | D129: Social Security Costs | E129: Positive
A130: 645200 | B130: SF: Community Facilities Staff: Employers national insurance | C130: 311 | D130: Social Security Costs | E130: Positive
A131: 647200 | B131: SF: Other Staff: Employers national insurance | C131: 311 | D131: Social Security Costs | E131: Positive
A132: 648200 | B132: SF: Cost of raising funds: Employers national insurance | C132: 311 | D132: Social Security Costs | E132: Positive
A133: 650410 | B133: SF: Supply Staff: Teachers - long term cover:Employers national insurance | C133: 311 | D133: Social Security Costs | E133: Positive
A134: 650460 | B134: SF: Supply Staff: Teachers - short term cover:Employers national insurance | C134: 311 | D134: Social Security Costs | E134: Positive
A135: 650510 | B135: SF: Supply Staff: Teaching assistants:Employers national insurance | C135: 311 | D135: Social Security Costs | E135: Positive
A136: 650560 | B136: SF: Supply Staff: Support staff:Employers national insurance | C136: 311 | D136: Social Security Costs | E136: Positive
A137: 655200 | B137: SF: Boarding Staff - direct: Employers national insurance | C137: 311 | D137: Social Security Costs | E137: Positive
A138: 656200 | B138: SF: Boarding Staff - indirect: Employers national insurance | C138: 311 | D138: Social Security Costs | E138: Positive
A139: 675100 | B139: SF: Ind Emp Exp: Apprenticeship levy | C139: 311 | D139: Social Security Costs | E139: Positive
A140: 675690 | B140: SF: Ind Emp Exp: notional Apprenticeship levy exp | C140: 311 | D140: Social Security Costs | E140: Positive
A141: 610300 | B141: SF: Leadership: Employers pension contribution | C141: 320 | D141: Pension Cost: Teaching staff | E141: Positive
A142: 612300 | B142: SF: Teachers: Employers pension contribution | C142: 320 | D142: Pension Cost: Teaching staff | E142: Positive
A143: 623300 | B143: SF: Cover supervisors: Employers pension contribution | C143: 320 | D143: Pension Cost: Teaching staff | E143: Positive
A144: 650420 | B144: SF: Supply Staff: Teachers - long term cover:Employers pension | C144: 320 | D144: Pension Cost: Teaching staff | E144: Positive
A145: 650470 | B145: SF: Supply Staff: Teachers - short term cover:Employers pension | C145: 320 | D145: Pension Cost: Teaching staff | E145: Positive
A146: 615300 | B146: SF: Teaching Assistants: Employers pension contribution | C146: 325 | D146: Pension Cost: Non-teaching staff | E146: Positive
A147: 620300 | B147: SF: Librarians: Employers pension contribution | C147: 325 | D147: Pension Cost: Non-teaching staff | E147: Positive
A148: 622300 | B148: SF: Technicians: Employers pension contribution | C148: 325 | D148: Pension Cost: Non-teaching staff | E148: Positive
A149: 625300 | B149: SF: Finance and Admin: Employers pension contribution | C149: 325 | D149: Pension Cost: Non-teaching staff | E149: Positive
A150: 627300 | B150: SF: Site Staff: Employers pension contribution | C150: 325 | D150: Pension Cost: Non-teaching staff | E150: Positive
A151: 630300 | B151: SF: Cleaning Staff: Employers pension contribution | C151: 325 | D151: Pension Cost: Non-teaching staff | E151: Positive
A152: 632300 | B152: SF: Catering Staff: Employers pension contribution | C152: 325 | D152: Pension Cost: Non-teaching staff | E152: Positive
A153: 635300 | B153: SF: Midday Supervisors: Employers pension contribution | C153: 325 | D153: Pension Cost: Non-teaching staff | E153: Positive
A154: 637300 | B154: SF: Nursery Staff: Employers pension contribution | C154: 325 | D154: Pension Cost: Non-teaching staff | E154: Positive
A155: 640300 | B155: SF: Family Support Workers: Employers pension contribution | C155: 325 | D155: Pension Cost: Non-teaching staff | E155: Positive
A156: 642300 | B156: SF: Exam Invigilators: Employers pension contribution | C156: 325 | D156: Pension Cost: Non-teaching staff | E156: Positive
A157: 645300 | B157: SF: Community Facilities Staff: Employers pension contribution | C157: 325 | D157: Pension Cost: Non-teaching staff | E157: Positive
A158: 647300 | B158: SF: Other Staff: Employers pension contribution | C158: 325 | D158: Pension Cost: Non-teaching staff | E158: Positive
A159: 648300 | B159: SF: Cost of raising funds: Employers pension contribution | C159: 325 | D159: Pension Cost: Non-teaching staff | E159: Positive
A160: 650520 | B160: SF: Supply Staff: Teaching assistants:Employers pension | C160: 325 | D160: Pension Cost: Non-teaching staff | E160: Positive
A161: 650570 | B161: SF: Supply Staff: Support staff:Employers pension | C161: 325 | D161: Pension Cost: Non-teaching staff | E161: Positive
A162: 655300 | B162: SF: Boarding Staff - direct: Employers pension contribution | C162: 325 | D162: Pension Cost: Non-teaching staff | E162: Positive
A163: 656300 | B163: SF: Boarding Staff - indirect: Employers pension contribution | C163: 325 | D163: Pension Cost: Non-teaching staff | E163: Positive
A164: 655550 | B164: SF: Boarding Staff - direct: Compensation - direct staff | C164: 330 | D164: Other Staff Support Costs | E164: Positive
A165: 656570 | B165: SF: Boarding Staff - indirect: Compensation - support | C165: 330 | D165: Other Staff Support Costs | E165: Positive
A166: 656600 | B166: SF: Boarding Staff - indirect: Staff Welfare | C166: 330 | D166: Other Staff Support Costs | E166: Positive
A167: 656620 | B167: SF: Boarding Staff - indirect: Staff Development | C167: 330 | D167: Other Staff Support Costs | E167: Positive
A168: 656650 | B168: SF: Boarding Staff - indirect: Staff training | C168: 330 | D168: Other Staff Support Costs | E168: Positive
A169: 656700 | B169: SF: Boarding Staff - indirect: Staff insurance | C169: 330 | D169: Other Staff Support Costs | E169: Positive
A170: 675150 | B170: SF: Ind Emp Exp: Ex-gratia/severance - teachers | C170: 330 | D170: Other Staff Support Costs | E170: Positive
A171: 675170 | B171: SF: Ind Emp Exp: Ex-gratia/severance - support | C171: 330 | D171: Other Staff Support Costs | E171: Positive
A172: 675200 | B172: SF: Ind Emp Exp: Redundancy - teachers | C172: 310 | D172: Other Staff Support Costs | E172: Positive
A173: 675220 | B173: SF: Ind Emp Exp: Redundancy - support staff | C173: 330 | D173: Other Staff Support Costs | E173: Positive
A174: 675250 | B174: SF: Ind Emp Exp: Other restructuring - teachers | C174: 330 | D174: Other Staff Support Costs | E174: Positive
A175: 675270 | B175: SF: Ind Emp Exp: Other restructuring - support | C175: 330 | D175: Other Staff Support Costs | E175: Positive
A176: 675300 | B176: SF: Ind Emp Exp: Secondment income - teachers | C176: 330 | D176: Other Staff Support Costs | E176: Positive
A177: 675320 | B177: SF: Ind Emp Exp: Secondment income - support | C177: 330 | D177: Other Staff Support Costs | E177: Positive
A178: 675400 | B178: SF: Ind Emp Exp: Staff travel | C178: 330 | D178: Other Staff Support Costs | E178: Positive
A179: 675410 | B179: SF: Ind Emp Exp: Staff subsistence | C179: 330 | D179: Other Staff Support Costs | E179: Positive
A180: 675420 | B180: SF: Ind Emp Exp: Interview expenses | C180: 330 | D180: Other Staff Support Costs | E180: Positive
A181: 675430 | B181: SF: Ind Emp Exp: Staff uniforms | C181: 330 | D181: Other Staff Support Costs | E181: Positive
A182: 675440 | B182: SF: Ind Emp Exp: Childcare vouchers | C182: 330 | D182: Other Staff Support Costs | E182: Positive
A183: 675450 | B183: SF: Ind Emp Exp: Staff medical fees | C183: 330 | D183: Other Staff Support Costs | E183: Positive
A184: 675460 | B184: SF: Ind Emp Exp: Duty meals | C184: 330 | D184: Other Staff Support Costs | E184: Positive
A185: 675500 | B185: SF: Ind Emp Exp: Recruitment - teachers | C185: 330 | D185: Other Staff Support Costs | E185: Positive
A186: 675510 | B186: SF: Ind Emp Exp: Recruitment - support staff | C186: 330 | D186: Other Staff Support Costs | E186: Positive
A187: 675520 | B187: SF: Ind Emp Exp: Recruitment - leadership | C187: 330 | D187: Other Staff Support Costs | E187: Positive
A188: 675550 | B188: SF: Ind Emp Exp: Staff Advertising - teachers | C188: 330 | D188: Other Staff Support Costs | E188: Positive
A189: 675560 | B189: SF: Ind Emp Exp: Staff Advertising - support | C189: 330 | D189: Other Staff Support Costs | E189: Positive
A190: 675570 | B190: SF: Ind Emp Exp: Recruitment - leadership | C190: 330 | D190: Other Staff Support Costs | E190: Positive
A191: 675600 | B191: SF: Ind Emp Exp: DBS checks - teachers | C191: 330 | D191: Other Staff Support Costs | E191: Positive
A192: 675620 | B192: SF: Ind Emp Exp: DBS checks - support staff | C192: 330 | D192: Other Staff Support Costs | E192: Positive
A193: 675650 | B193: SF: Ind Emp Exp: Staff training - teachers | C193: 330 | D193: Other Staff Support Costs | E193: Positive
A194: 675670 | B194: SF: Ind Emp Exp: Staff training - support staff | C194: 330 | D194: Other Staff Support Costs | E194: Positive
A195: 675700 | B195: SF: Ind Emp Exp: Other Ind Emp Expense - teachers | C195: 330 | D195: Other Staff Support Costs | E195: Positive
A196: 675720 | B196: SF: Ind Emp Exp: Other Ind Emp Expense - support | C196: 330 | D196: Other Staff Support Costs | E196: Positive
A197: 675750 | B197: SF: Ind Emp Exp: Supply insurance - teachers | C197: 330 | D197: Other Staff Support Costs | E197: Positive
A198: 675770 | B198: SF: Ind Emp Exp: Supply insurance - support | C198: 330 | D198: Other Staff Support Costs | E198: Positive
A199: 675780 | B199: SF: Ind Emp Exp: Employers liability insurance | C199: 330 | D199: Other Staff Support Costs | E199: Positive
A200: 675800 | B200: SF: Ind Emp Exp: Hospitality | C200: 330 | D200: Other Staff Support Costs | E200: Positive
... 653 more rows
